Workbook

Sheet Notes
A1: SupertrendIndicator.xlsm; Traders Tip spreadsheet created for the July 2023 Issue
A2: Coded beginning 2023-May-06 by Ronald McAllister (rpmac_xltt@sprynet.com)
A4: This Workbook demonstrates an EXCEL version of the ideas presented
A5: by Barbara Star, PhD in an article titled "Stay On Track With The Supertrend Indicator",
A6: which originally appeared in the July 2023 issue of
A7: "Technical Analysis of Stocks and Commodities" magazine.
A33: ERROR 9 (already fixed in this spreadsheet)
A34: On or about Jan 29, 2020 Yahoo Finance changed the format of the split factor expression used their historical data downloads.
A35: The Split expression went from using "/" as in "New Share Number/Old Share Number",
A36: to using ":" as in "New Share Number:Old Share Number".
A37: This caused the then current version of my VBA code to fail with a "Runtime Error '9': subscript out of range".
A39: Fix for this ERROR 9
A40: For T-Tip spreadsheets from September 2018 up to present:
A41: Selecting the Debug option takes one into the VBA at the code line which causes the failure:
A42: CellArray(C_A_RowNdx, C_A_ColNdx + 1) = SplitFactors(1)
A43: Two lines above the failing VBA line is a line that reads:
A44: SplitFactors = Split(CsvColumns(CsvColNdx), "/")
A45: Change the / to a :
A46: The corrected line should now read
A47: SplitFactors = Split(CsvColumns(CsvColNdx), ":")
A49: If you are fixing several spreadsheets and do not want to use the failure to find the fix location,
A50: you can use VBA’s FIND dialog (Ctrl F) to look for the substring
A51: SplitFactors =
A52: Do include one space and the equal sign in your FIND string
A53: Select the "Current Project" option
A54: There should only be one instance.
A56: T-Tip spreadsheets prior to the September 2018 spreadsheet do not hard fail.
A58: They just get weird results in the split columns of the Input Price Data tab (soft fail).
A59: These older spreadsheets used different data retrieval and formatting logic.
A61: To fix these older spreadsheets:
A62: In the VBA editor, use find (CTRL-F).
A63: Select the "Current Project" option, and search for the following:
A64: OtherChar:="/"
A65: You are looking for a hit in a line reading:
A66: Other:=True, OtherChar:="/", _
A67: This line is part of a multiline block of code starting with a line that reads:
A68: SplitRange.Offset(0, 1).Resize(SpRows, 1).TextToColumns
A69: Change the / to a : so that the line reads
A70: Other:=True, OtherChar:=":", _
A73: 2019-04-04 Finally came up with a mechanism to align the left location and overall length of the cursor scroll bar so that the left most and right most
A74: scroll bar thumb positions visually align reasonably well with the left and right ends of the price chart horizontal axis.
A75: Makes it a little easier to visually align the Thumb and thus the cursor with points of interest on the charts.
A77: Older:
B78: My sincere apologies to our Macintosh based readers: Neither MSXML nor WinHttpRequest are supported in your environment. So as it stands this version of the spreadsheet will not work for you.
B79: See "Why this approach does not work for Macintosh" below.
B80: I am investigating cURL as a non-Querytable based approach for the Macintosh environment.
A82: The new Yahoo Finance history download interface has changed rather radically. The biggest hurdle being a pseudo-security requirement of adding a
B83: crumb character string to any URL requesting any type of history download. That crumb must match up (by way of some sort of hash algorithm) with
B84: the Yahoo Finance cookie that must also be sent with any request to the new Yahoo History down load interface.
B86: A crumb value is returned, buried in the HTML for any of what I call the "entry level" Yahoo Finance web pages (no crumb security requirement for entry level pages).
B87: A crumb may come with other Yahoo Finance pages. A crumb may even accompany some of the secured pages as well. I have not checked.
B89: Entry level pages are the top level pages of the various Yahoo Finance dialogs and include: Quote Lookup, Stock Summary Quote, and any of the pages
B90: with links in the horizontal row with the "Summary" link on the quote summary page such as Options, Historical Data, and the rest.
B92: To date I have found no way to get at this crumb value using any native EXCEL capabilities.
B94: So this crumb requirement effectively shuts out any solution that attempts to exclusively use built-in facilities of EXCEL, which is to say a purely Querytables solution.
B96: The approach built for this Traders Tip spreadsheet uses WINHTTP calls to Load the InputPriceData worksheet.
B98: First I call to get the HTML text for the Yahoo Summary Quote page using the requested symbol. From this HTML text I extract the full company name,
B99: the market it trades, the market status and time stamp, and finally the associated crumb string. There is a bunch of other useful bits buried in this HTML
B100: text that do not necessarily appear on the web page your browser presents. Perhaps some day I will go after and build a worksheet with these other bits.
B102: Next I add the freshly extracted crumb string to the URLs I use in three separate WINHTTP calls to retrieve Price history, Split history, and Dividend history respectively.
B104: From there VBA code proceeds as in the past to fill in the cell formulas and formatting that make the "prettied up" InputPriceData sheet.
A106: Why this approach works for Windows:
B107: WINHTTP maintains a temporary computer memory cache where cookies are maintained for as long as the WINHTTP object is instantiated.
B108: WINHTTP updates this cache any time a "set cookie" header accompanies a web response.
B109: Subsequent WINHTTP calls automatically search this cache for cookies and add any "appropriate" cookies to the headers
B110: of any web requests that get sent out.
B111: This cookie handling automation means that even if the response to our WINHTTP call for the Summary web page includes a new version of
B112: the Yahoo Finance cookie, the imbedded Crumb value will always match the cookie newly installed in the cache!
A115: Why this approach does not work for Macintosh:
B116: For what it is worth, the Macintosh version of the MS Office suite of products do in fact maintain a special, shared amongst themselves only, cookie cache.
B117: They automate cookie handling into and from this cache JUST for the Office products and any Querytable activity they might originate.
B119: This cache is not tied to, nor shared with, any browser that might be installed on the MAC. And I have not found anything with HTTP capabilities similar to
B120: MSXML that can work with that Office product cookie cache.
B122: When working in the MAC EXCEL environment, I have not yet become conversant with a Mac based WINHTTP like capability.
B123: So l currently have no mechanism to replicate the non-Querytable data retrieval process I am using in Windows environments.
B124: A software product called CURL has been suggested as providing this capability in the MAC environment.
B125: A version of CURL is available for the Windows So some day I may explore its capabilities and how to access those capabilities from VBA.
A127: Calculation and Chart Worksheet Usage Comments:
C128: In General, Items in Bolded BLUE are items you may freely change to play what-if games.
C129: Be sure to have a backup copy of the spreadsheet before you alter anything else.
A131: Features carried forward from the June 2016 version of my T-Tips Template
A132: Added a pair of buttons near cell F12 that will allow the user to step the charting window forward or backward one bar for each click.
A133: I find this to be a good way to test my understanding of the author's ideas as I step through the evolution of the price behavior and the indicators.
B135: First: In the "Help! I would like to plot data" area.
B136: Added button to resolve #NA problems by locating the bar in the input data with a slightly more recent date than what the user actually requested.
B137: I find this particularly useful when I have a general idea of where I want to be date wise. Now I can pick a set of dates "out of the air".
B138: If either (or both) of my date specifications fall between dates that are available in the price history,
B139: this button will resolve them to the dates of the nearest, slightly more recent input bars.
B140: I can then refine my data interval search as necessary from there.
B141: Really great when working with Weekly or Monthly studies!
C142: 2016Jun11 - added logic to the "I would like to chart.." button to detect #N/A values and terminate
C143: gracefully with a message instead of blowing up in the charting logic.
B145: Second: In the "Price Chart Windowing Controls" area. (A11 and A12)
B146: When retrieving data for a new symbol or when changing from daily to weekly or monthly data, there was the possibility that the
B147: residual settings in A11 and A12 would fall outside of the number bars available on the input data tab after the new data retrieval.
B148: In certain combinations, this could create a serious error in the chart sizing logic and crash the spreadsheet.
B149: I have taken this opportunity to update the validity checking logic used in the chart sizing macros
B150: to adjust these values as necessary so that they fall within the boundaries of the newly retrieved input data.
A151: Features carried forward from the October 2015 Traders Tips Template
B152: Improved automation: changes to any of the following will automatically initiate calculations appropriate to reflect a change.
C153: Changing either of cells A11 (pan) or A12 (zoom) will automatically initiate the same chart sizing macros that the manual
C154: "Set Chart" button uses.

Sheet InputPriceData
A1: Cisco Systems, Inc. (CSCO) -NasdaqGS (Daily)
M2: To retrieve data for symbols traded on non US Exchanges, | IJ2: 241.79
A3: Request Online Yahoo History for: | F3: Market State == > | G3: At close: | H3: 16:00:00 | I3: EDT | M3: you will need to append the dot-suffix for the exchange to the symbol.
A4: Symbol | B4: CSCO | D4: Valid | I4: =OFFSET(I4,-2,0,1,1) -> 0 | M4: The following links provide a description of how to use the exchange suffix
A5: From | B5: 1959-08-11T19:24:26 | D5: Data | M5: along with a list of suffixes for the major world exchanges. | AD5: Trailing 12 Div return (Cur Close)
A6: To | B6: =NOW() -> 2023-05-13T18:25:41.170 | D6: Types | E6: =VLOOKUP(B7,D7:E10,2,FALSE) -> d | M6: https://help.yahoo.com/kb/finance/SLN2310.html
A7: Data Type | B7: Daily | D7: Daily | E7: d | M7: And
A8: Crumb | D8: Weekly | E8: w | M8: https://www.stockmarketeye.com/users-guide/ticker-symbols-and-data-providers/data-providers.html
A9: Available Data | D9: Monthly | E9: m
A10: Bar Count: | B10: 8373 | M10: You may search on “exchange suffixes” for additional discussions | AD10: =OFFSET(AC15,1,0,1,1)/OFFSET(N15,1,0,1,1) -> 0.03275529865
A11: From: | B11: =IF(B10<=0,"",OFFSET(B15,B10,IF(HistReqDataType="v",1,0),1,1)) -> 1990-02-16 | W11: Trailing 12 Month Dividend Returns
A12: To: | B12: =IF(B10<=0,"",IF(HistReqDataType="v",OFFSET(B15,2,1,1,1),OFFSET(B15,1,0,1,1))) -> 2023-05-12 | W12: Raw Close price on Dividend date | X12: Div Year and Month | Y12: Looking for year ago Div Year and Month | Z12: Year ago Div Date we found | AA12: row offset to year ago div Date | AB12: Same month flag | AC12: Trailing 12 Div Total | AD12: Trailing 12 Div return
Q13: Split History | S13: 9 | T13: Running | U13: Dividend History
B14: Raw Data Values | H14: Adjusted | I14: Price Adjust | J14: Vol Adjust | K14: Adjusted Values | P14: Last | Q14: Effective | R14: Shares | T14: Vol Adjust | V14: 49
A15: RelRow | B15: Date | C15: Open | D15: High | E15: Low | F15: Close | G15: Volume | H15: Close | I15: Factor | J15: Factor | K15: Open | L15: High | M15: Low | N15: Close | O15: Volume | P15: Trade | Q15: 45060 | R15: New | S15: Old | T15: 1 | U15: Date | V15: $ / Share
A16: 1 | B16: 2023-05-12 | C16: 46.279999 | D16: 46.810001 | E16: 46.279999 | F16: 46.709999 | G16: 14094800 | H16: 46.709999 | I16: =IF(F16=0,1,H16/F16) -> 1 | J16: =INDEX(OFFSET($T$15,0,0,$S$13+1,1),MATCH(B16,OFFSET($Q$15,0,0,$S$13+1,1),-1)) -> 1 | K16: =ROUND($I16*C16,2) -> 46.28 | L16: =ROUND($I16*D16,2) -> 46.81 | M16: 46.28 | N16: 46.71 | O16: =G16*J16 -> 14094800 | Q16: 2000-03-23 | R16: 2 | S16: 1 | T16: 2 | U16: 2023-04-04 | V16: 0.39 | W16: =(INDEX(OFFSET($F$15,1,0,$B$10,1),MATCH(U16,OFFSET($B$15,1,0,$B$10,1),-1))) -> 51.82 | X16: =YEAR(U16)&RIGHT("0"&MONTH(U16),2) -> 202304 | Y16: =YEAR(U16)-1&RIGHT("0"&MONTH(U16),2) -> 202204 | Z16: =OFFSET(U15,AA16,0,1,1) -> 2022-04-05 | AA16: =MATCH(Y16,OFFSET($X$15,A16,0,$V$14+1-A16,1),-1) -> 5 | AB16: =IF(OR(AND(YEAR(U16)=YEAR(Z16),MONTH(U16)=MONTH(Z16)),MONTH(U16)=MONTH(Z16)),1,0) -> 1 | AC16: =(V16+IF(AA16-AB16=0,0,IFERROR(SUM(OFFSET(V16,1,0,AA16-AB16-1,1)),0))) -> 1.53 | AD16: =AC16/(INDEX(OFFSET($F$15,1,0,$B$10,1),MATCH(U16,OFFSET($B$15,1,0,$B$10,1),-1))) -> 0.02952527981
A17: 2 | B17: 2023-05-11 | C17: 46.830002 | D17: 46.849998 | E17: 46.200001 | F17: 46.369999 | G17: 12521900 | H17: 46.369999 | I17: =IF(F17=0,1,H17/F17) -> 1 | J17: =INDEX(OFFSET($T$15,0,0,$S$13+1,1),MATCH(B17,OFFSET($Q$15,0,0,$S$13+1,1),-1)) -> 1 | K17: =ROUND($I17*C17,2) -> 46.83 | L17: =ROUND($I17*D17,2) -> 46.85 | M17: =ROUND($I17*E17,2) -> 46.2 | N17: =ROUND($I17*F17,2) -> 46.37 | O17: =G17*J17 -> 12521900 | Q17: 1999-06-22 | R17: 2 | S17: 1 | T17: 4 | U17: 2023-01-04 | V17: 0.38 | W17: =(INDEX(OFFSET($F$15,1,0,$B$10,1),MATCH(U17,OFFSET($B$15,1,0,$B$10,1),-1))) -> 47.549999 | X17: =YEAR(U17)&RIGHT("0"&MONTH(U17),2) -> 202301 | Y17: =YEAR(U17)-1&RIGHT("0"&MONTH(U17),2) -> 202201 | Z17: =OFFSET(U16,AA17,0,1,1) -> 2022-01-04 | AA17: =MATCH(Y17,OFFSET($X$15,A17,0,$V$14+1-A17,1),-1) -> 5 | AB17: =IF(OR(AND(YEAR(U17)=YEAR(Z17),MONTH(U17)=MONTH(Z17)),MONTH(U17)=MONTH(Z17)),1,0) -> 1 | AC17: =(V17+IF(AA17-AB17=0,0,IFERROR(SUM(OFFSET(V17,1,0,AA17-AB17-1,1)),0))) -> 1.52 | AD17: =AC17/(INDEX(OFFSET($F$15,1,0,$B$10,1),MATCH(U17,OFFSET($B$15,1,0,$B$10,1),-1))) -> 0.03196635188
A18: 3 | B18: 2023-05-10 | C18: 46.700001 | D18: 46.93 | E18: 46.150002 | F18: 46.709999 | G18: 15625100 | H18: 46.709999 | I18: 1 | J18: 1 | K18: 46.7 | L18: 46.93 | M18: 46.15 | N18: 46.71 | O18: 15625100 | Q18: 1998-09-16 | R18: 3 | S18: 2 | T18: 6 | U18: 2022-10-04 | V18: 0.38 | W18: 41.82 | X18: 202210 | Y18: 202110 | Z18: 2021-10-04 | AA18: 5 | AB18: 1 | AC18: 1.51 | AD18: 0.03610712578
A19: 4 | B19: 2023-05-09 | C19: 45.98 | D19: 46.52 | E19: 45.919998 | F19: 46.470001 | G19: 15221900 | H19: 46.470001 | I19: 1 | J19: 1 | K19: 45.98 | L19: 46.52 | M19: 45.92 | N19: 46.47 | O19: 15221900 | Q19: 1997-12-17 | R19: 3 | S19: 2 | T19: 9 | U19: 2022-07-05 | V19: 0.38 | W19: 41.959999 | X19: 202207 | Y19: 202107 | Z19: 2021-07-02 | AA19: 5 | AB19: 1 | AC19: 1.5 | AD19: 0.0357483326
A20: 5 | B20: 2023-05-08 | C20: 46.439999 | D20: 46.52 | E20: 46.09 | F20: 46.34 | G20: 12000000 | H20: 46.34 | I20: 1 | J20: 1 | K20: 46.44 | L20: 46.52 | M20: 46.09 | N20: 46.34 | O20: 12000000 | Q20: 1996-02-20 | R20: 2 | S20: 1 | T20: 18 | U20: 2022-04-05 | V20: 0.38 | W20: 54.919998 | X20: 202204 | Y20: 202104 | Z20: 2021-04-05 | AA20: 5 | AB20: 1 | AC20: 1.49 | AD20: 0.02713037244
A21: 6 | B21: 2023-05-05 | C21: 46.119999 | D21: 46.360001 | E21: 45.919998 | F21: 46.25 | G21: 14315100 | H21: 46.25 | I21: 1 | J21: 1 | K21: 46.12 | L21: 46.36 | M21: 45.92 | N21: 46.25 | O21: 14315100 | Q21: 1994-03-21 | R21: 2 | S21: 1 | T21: 36 | U21: 2022-01-04 | V21: 0.37 | W21: 61.25 | X21: 202201 | Y21: 202101 | Z21: 2021-01-04 | AA21: 5 | AB21: 1 | AC21: 1.48 | AD21: 0.02416326531
A22: 7 | B22: 2023-05-04 | C22: 45.77 | D22: 45.93 | E22: 45.560001 | F22: 45.700001 | G22: 17748900 | H22: 45.700001 | I22: 1 | J22: 1 | K22: 45.77 | L22: 45.93 | M22: 45.56 | N22: 45.7 | O22: 17748900 | Q22: 1993-03-22 | R22: 2 | S22: 1 | T22: 72 | U22: 2021-10-04 | V22: 0.37 | W22: 54.23 | X22: 202110 | Y22: 202010 | Z22: 2020-10-01 | AA22: 5 | AB22: 1 | AC22: 1.47 | AD22: 0.02710676747
A23: 8 | B23: 2023-05-03 | C23: 46.419998 | D23: 46.549999 | E23: 45.860001 | F23: 45.959999 | G23: 20765700 | H23: 45.959999 | I23: 1 | J23: 1 | K23: 46.42 | L23: 46.55 | M23: 45.86 | N23: 45.96 | O23: 20765700 | Q23: 1992-03-23 | R23: 2 | S23: 1 | T23: 144 | U23: 2021-07-02 | V23: 0.37 | W23: 53.540001 | X23: 202107 | Y23: 202007 | Z23: 2020-07-02 | AA23: 5 | AB23: 1 | AC23: 1.46 | AD23: 0.02726933083
A24: 9 | B24: 2023-05-02 | C24: 46.91 | D24: 47.080002 | E24: 46.060001 | F24: 46.360001 | G24: 20175100 | H24: 46.360001 | I24: 1 | J24: 1 | K24: 46.91 | L24: 47.08 | M24: 46.06 | N24: 46.36 | O24: 20175100 | Q24: 1991-03-18 | R24: 2 | S24: 1 | T24: 288 | U24: 2021-04-05 | V24: 0.37 | W24: 52.41 | X24: 202104 | Y24: 202004 | Z24: 2020-04-02 | AA24: 5 | AB24: 1 | AC24: 1.45 | AD24: 0.02766647586
A25: 10 | B25: 2023-05-01 | C25: 47.200001 | D25: 47.52 | E25: 47.130001 | F25: 47.34 | G25: 13122300 | H25: 47.34 | I25: 1 | J25: 1 | K25: 47.2 | L25: 47.52 | M25: 47.13 | N25: 47.34 | O25: 13122300 | U25: 2021-01-04 | V25: 0.36 | W25: 43.959999 | X25: 202101 | Y25: 202001 | Z25: 2020-01-02 | AA25: 5 | AB25: 1 | AC25: 1.44 | AD25: 0.03275705261
A26: 11 | B26: 2023-04-28 | C26: 46.689999 | D26: 47.259998 | E26: 46.610001 | F26: 47.25 | G26: 19662000 | H26: 47.25 | I26: 1 | J26: 1 | K26: 46.69 | L26: 47.26 | M26: 46.61 | N26: 47.25 | O26: 19662000 | U26: 2020-10-01 | V26: 0.36 | W26: 38.799999 | X26: 202010 | Y26: 201910 | Z26: 2019-10-03 | AA26: 5 | AB26: 1 | AC26: 1.43 | AD26: 0.03685567105
A27: 12 | B27: 2023-04-27 | C27: 46.779999 | D27: 46.799999 | E27: 45.970001 | F27: 46.560001 | G27: 22845400 | H27: 46.560001 | I27: 1 | J27: 1 | K27: 46.78 | L27: 46.8 | M27: 45.97 | N27: 46.56 | O27: 22845400 | U27: 2020-07-02 | V27: 0.36 | W27: 45.630001 | X27: 202007 | Y27: 201907 | Z27: 2019-07-03 | AA27: 5 | AB27: 1 | AC27: 1.42 | AD27: 0.03111987659
A28: 13 | B28: 2023-04-26 | C28: 46.759998 | D28: 46.849998 | E28: 46.43 | F28: 46.540001 | G28: 22390500 | H28: 46.540001 | I28: 1 | J28: 1 | K28: 46.76 | L28: 46.85 | M28: 46.43 | N28: 46.54 | O28: 22390500 | U28: 2020-04-02 | V28: 0.36 | W28: 39.799999 | X28: 202004 | Y28: 201904 | Z28: 2019-04-04 | AA28: 5 | AB28: 1 | AC28: 1.41 | AD28: 0.03542713657
A29: 14 | B29: 2023-04-25 | C29: 47.369999 | D29: 47.43 | E29: 46.810001 | F29: 47.09 | G29: 20281600 | H29: 47.09 | I29: 1 | J29: 1 | K29: 47.37 | L29: 47.43 | M29: 46.81 | N29: 47.09 | O29: 20281600 | U29: 2020-01-02 | V29: 0.35 | W29: 48.419998 | X29: 202001 | Y29: 201901 | Z29: 2019-01-03 | AA29: 5 | AB29: 1 | AC29: 1.4 | AD29: 0.02891367323
A30: 15 | B30: 2023-04-24 | C30: 47.049999 | D30: 47.450001 | E30: 47 | F30: 47.389999 | G30: 17359900 | H30: 47.389999 | I30: 1 | J30: 1 | K30: 47.05 | L30: 47.45 | M30: 47 | N30: 47.39 | O30: 17359900 | U30: 2019-10-03 | V30: 0.35 | W30: 47.060001 | X30: 201910 | Y30: 201810 | Z30: 2018-10-04 | AA30: 5 | AB30: 1 | AC30: 1.38 | AD30: 0.02932426627
A31: 16 | B31: 2023-04-21 | C31: 46.57 | D31: 47.119999 | E31: 46.240002 | F31: 47.029999 | G31: 20861000 | H31: 47.029999 | I31: 1 | J31: 1 | K31: 46.57 | L31: 47.12 | M31: 46.24 | N31: 47.03 | O31: 20861000 | U31: 2019-07-03 | V31: 0.35 | W31: 56.48 | X31: 201907 | Y31: 201807 | Z31: 2018-07-05 | AA31: 5 | AB31: 1 | AC31: 1.36 | AD31: 0.02407932011
A32: 17 | B32: 2023-04-20 | C32: 47.610001 | D32: 47.650002 | E32: 46.360001 | F32: 46.580002 | G32: 39769400 | H32: 46.580002 | I32: 1 | J32: 1 | K32: 47.61 | L32: 47.65 | M32: 46.36 | N32: 46.58 | O32: 39769400 | U32: 2019-04-04 | V32: 0.35 | W32: 55.139999 | X32: 201904 | Y32: 201804 | Z32: 2018-04-04 | AA32: 5 | AB32: 1 | AC32: 1.34 | AD32: 0.02430177773
A33: 18 | B33: 2023-04-19 | C33: 49.23 | D33: 49.27 | E33: 47.990002 | F33: 48.040001 | G33: 30466700 | H33: 48.040001 | I33: 1 | J33: 1 | K33: 49.23 | L33: 49.27 | M33: 47.99 | N33: 48.04 | O33: 30466700 | U33: 2019-01-03 | V33: 0.33 | W33: 41.07 | X33: 201901 | Y33: 201801 | Z33: 2018-01-04 | AA33: 5 | AB33: 1 | AC33: 1.32 | AD33: 0.03214024836
A34: 19 | B34: 2023-04-18 | C34: 50.380001 | D34: 50.689999 | E34: 50.07 | F34: 50.310001 | G34: 15203600 | H34: 50.310001 | I34: 1 | J34: 1 | K34: 50.38 | L34: 50.69 | M34: 50.07 | N34: 50.31 | O34: 15203600 | U34: 2018-10-04 | V34: 0.33 | W34: 48.380001 | X34: 201810 | Y34: 201710 | Z34: 2017-10-04 | AA34: 5 | AB34: 1 | AC34: 1.28 | AD34: 0.02645721318
A35: 20 | B35: 2023-04-17 | C35: 50.560001 | D35: 50.68 | E35: 50.049999 | F35: 50.279999 | G35: 12042300 | H35: 50.279999 | I35: 1 | J35: 1 | K35: 50.56 | L35: 50.68 | M35: 50.05 | N35: 50.28 | O35: 12042300 | U35: 2018-07-05 | V35: 0.33 | W35: 42.560001 | X35: 201807 | Y35: 201707 | Z35: 2017-07-05 | AA35: 5 | AB35: 1 | AC35: 1.24 | AD35: 0.02913533766
A36: 21 | B36: 2023-04-14 | C36: 50.52 | D36: 50.849998 | E36: 50.200001 | F36: 50.540001 | G36: 12360100 | H36: 50.540001 | I36: 1 | J36: 1 | K36: 50.52 | L36: 50.85 | M36: 50.2 | N36: 50.54 | O36: 12360100 | U36: 2018-04-04 | V36: 0.33 | W36: 41.200001 | X36: 201804 | Y36: 201704 | Z36: 2017-04-04 | AA36: 5 | AB36: 1 | AC36: 1.2 | AD36: 0.02912621289
A37: 22 | B37: 2023-04-13 | C37: 50.209999 | D37: 50.830002 | E37: 50.09 | F37: 50.799999 | G37: 15451700 | H37: 50.799999 | I37: 1 | J37: 1 | K37: 50.21 | L37: 50.83 | M37: 50.09 | N37: 50.8 | O37: 15451700 | U37: 2018-01-04 | V37: 0.29 | W37: 38.990002 | X37: 201801 | Y37: 201701 | Z37: 2017-01-04 | AA37: 5 | AB37: 1 | AC37: 1.16 | AD37: 0.02975121673
A38: 23 | B38: 2023-04-12 | C38: 50.82 | D38: 50.950001 | E38: 50.049999 | F38: 50.110001 | G38: 16100700 | H38: 50.110001 | I38: 1 | J38: 1 | K38: 50.82 | L38: 50.95 | M38: 50.05 | N38: 50.11 | O38: 16100700 | U38: 2017-10-04 | V38: 0.29 | W38: 33.439999 | X38: 201710 | Y38: 201610 | Z38: 2016-10-03 | AA38: 5 | AB38: 1 | AC38: 1.13 | AD38: 0.03379186704
A39: 24 | B39: 2023-04-11 | C39: 51.119999 | D39: 51.299999 | E39: 50.52 | F39: 50.619999 | G39: 15957900 | H39: 50.619999 | I39: 1 | J39: 1 | K39: 51.12 | L39: 51.3 | M39: 50.52 | N39: 50.62 | O39: 15957900 | U39: 2017-07-05 | V39: 0.29 | W39: 31.110001 | X39: 201707 | Y39: 201607 | Z39: 2016-07-05 | AA39: 5 | AB39: 1 | AC39: 1.1 | AD39: 0.03535840452
A40: 25 | B40: 2023-04-10 | C40: 51.110001 | D40: 51.400002 | E40: 50.880001 | F40: 51.330002 | G40: 10177700 | H40: 51.330002 | I40: 1 | J40: 1 | K40: 51.11 | L40: 51.4 | M40: 50.88 | N40: 51.33 | O40: 10177700 | U40: 2017-04-04 | V40: 0.29 | W40: 33.41 | X40: 201704 | Y40: 201604 | Z40: 2016-04-04 | AA40: 5 | AB40: 1 | AC40: 1.07 | AD40: 0.03202633942
A41: 26 | B41: 2023-04-06 | C41: 50.919998 | D41: 51.560001 | E41: 50.73 | F41: 51.27 | G41: 14749000 | H41: 51.27 | I41: 1 | J41: 1 | K41: 50.92 | L41: 51.56 | M41: 50.73 | N41: 51.27 | O41: 14749000 | U41: 2017-01-04 | V41: 0.26 | W41: 30.1 | X41: 201701 | Y41: 201601 | Z41: 2016-01-04 | AA41: 5 | AB41: 1 | AC41: 1.04 | AD41: 0.03455149502
A42: 27 | B42: 2023-04-05 | C42: 52.07 | D42: 52.290001 | E42: 51.68 | F42: 51.82 | G42: 13797900 | H42: 51.82 | I42: 1 | J42: 1 | K42: 52.07 | L42: 52.29 | M42: 51.68 | N42: 51.82 | O42: 13797900 | U42: 2016-10-03 | V42: 0.26 | W42: 31.5 | X42: 201610 | Y42: 201510 | Z42: 2015-10-01 | AA42: 5 | AB42: 1 | AC42: 0.99 | AD42: 0.03142857143
A43: 28 | B43: 2023-04-04 | C43: 52.029999 | D43: 52.119999 | E43: 51.43 | F43: 51.82 | G43: 13599900 | H43: 51.82 | I43: 1 | J43: 1 | K43: 52.03 | L43: 52.12 | M43: 51.43 | N43: 51.82 | O43: 13599900 | U43: 2016-07-05 | V43: 0.26 | W43: 28.33 | X43: 201607 | Y43: 201507 | Z43: 2015-07-01 | AA43: 5 | AB43: 1 | AC43: 0.94 | AD43: 0.03318037416
A44: 29 | B44: 2023-04-03 | C44: 52.060001 | D44: 52.560001 | E44: 51.990002 | F44: 52.310001 | G44: 16884600 | H44: 51.920002 | I44: 0.9925444658 | J44: 1 | K44: 51.67 | L44: 52.17 | M44: 51.6 | N44: 51.92 | O44: 16884600 | U44: 2016-04-04 | V44: 0.26 | W44: 28.139999 | X44: 201604 | Y44: 201504 | Z44: 2015-07-01 | AA44: 4 | AB44: 0 | AC44: 0.89 | AD44: 0.03162757753
A45: 30 | B45: 2023-03-31 | C45: 51.439999 | D45: 52.349998 | E45: 51.389999 | F45: 52.279999 | G45: 20588800 | H45: 51.890224 | I45: 0.9925444719 | J45: 1 | K45: 51.06 | L45: 51.96 | M45: 51.01 | N45: 51.89 | O45: 20588800 | U45: 2016-01-04 | V45: 0.21 | W45: 26.41 | X45: 201601 | Y45: 201501 | Z45: 2015-01-02 | AA45: 5 | AB45: 1 | AC45: 0.84 | AD45: 0.03180613404
A46: 31 | B46: 2023-03-30 | C46: 51.580002 | D46: 51.68 | E46: 51.130001 | F46: 51.43 | G46: 11754600 | H46: 51.046562 | I46: 0.9925444682 | J46: 1 | K46: 51.2 | L46: 51.29 | M46: 50.75 | N46: 51.05 | O46: 11754600 | U46: 2015-10-01 | V46: 0.21 | W46: 25.73 | X46: 201510 | Y46: 201410 | Z46: 2015-01-02 | AA46: 4 | AB46: 0 | AC46: 0.82 | AD46: 0.03186941314
A47: 32 | B47: 2023-03-29 | C47: 50.73 | D47: 51.27 | E47: 50.639999 | F47: 51.169998 | G47: 18463400 | H47: 50.788498 | I47: 0.9925444594 | J47: 1 | K47: 50.35 | L47: 50.89 | M47: 50.26 | N47: 50.79 | O47: 18463400 | U47: 2015-07-01 | V47: 0.21 | W47: 27.35 | X47: 201507 | Y47: 201407 | Z47: 2014-07-02 | AA47: 5 | AB47: 1 | AC47: 0.8 | AD47: 0.02925045704
A48: 33 | B48: 2023-03-28 | C48: 50.32 | D48: 50.599998 | E48: 50.27 | F48: 50.389999 | G48: 11124300 | H48: 50.014317 | I48: 0.9925445127 | J48: 1 | K48: 49.94 | L48: 50.22 | M48: 49.9 | N48: 50.01 | O48: 11124300 | U48: 2015-03-31 | V48: 0.21 | W48: 27.530001 | X48: 201503 | Y48: 201403 | Z48: 2014-04-01 | AA48: 5 | AB48: 0 | AC48: 0.97 | AD48: 0.03523428859
A49: 34 | B49: 2023-03-27 | C49: 50.700001 | D49: 50.950001 | E49: 50.48 | F49: 50.540001 | G49: 15857200 | H49: 50.1632 | I49: 0.9925444996 | J49: 1 | K49: 50.32 | L49: 50.57 | M49: 50.1 | N49: 50.16 | O49: 15857200 | U49: 2015-01-02 | V49: 0.19 | W49: 27.610001 | X49: 201501 | Y49: 201401 | Z49: 2014-01-02 | AA49: 5 | AB49: 1 | AC49: 0.76 | AD49: 0.0275262576
A50: 35 | B50: 2023-03-24 | C50: 49.900002 | D50: 50.549999 | E50: 49.5 | F50: 50.509998 | G50: 19438800 | H50: 50.133419 | I50: 0.9925444661 | J50: 1 | K50: 49.53 | L50: 50.17 | M50: 49.13 | N50: 50.13 | O50: 19438800 | U50: 2014-09-30 | V50: 0.19 | W50: 25.17 | X50: 201409 | Y50: 201309 | Z50: 2013-10-01 | AA50: 5 | AB50: 0 | AC50: 0.91 | AD50: 0.03615415177
A51: 36 | B51: 2023-03-23 | C51: 49.560001 | D51: 50.25 | E51: 49.41 | F51: 49.73 | G51: 17775400 | H51: 49.359238 | I51: 0.9925445003 | J51: 1 | K51: 49.19 | L51: 49.88 | M51: 49.04 | N51: 49.36 | O51: 17775400 | U51: 2014-07-02 | V51: 0.19 | W51: 25.030001 | X51: 201407 | Y51: 201307 | Z51: 2013-07-01 | AA51: 5 | AB51: 1 | AC51: 0.72 | AD51: 0.02876548027
A52: 37 | B52: 2023-03-22 | C52: 50.740002 | D52: 50.75 | E52: 49.419998 | F52: 49.459999 | G52: 21399400 | H52: 49.091248 | I52: 0.99254446 | J52: 1 | K52: 50.36 | L52: 50.37 | M52: 49.05 | N52: 49.09 | O52: 21399400 | U52: 2014-04-01 | V52: 0.19 | W52: 23.1 | X52: 201404 | Y52: 201304 | Z52: 2013-04-04 | AA52: 5 | AB52: 1 | AC52: 0.7 | AD52: 0.0303030303
A53: 38 | B53: 2023-03-21 | C53: 51.209999 | D53: 51.330002 | E53: 50.330002 | F53: 50.669998 | G53: 23334000 | H53: 50.292225 | I53: 0.9925444442 | J53: 1 | K53: 50.83 | L53: 50.95 | M53: 49.95 | N53: 50.29 | O53: 23334000 | U53: 2014-01-02 | V53: 0.17 | W53: 22 | X53: 201401 | Y53: 201301 | Z53: 2013-04-04 | AA53: 4 | AB53: 0 | AC53: 0.68 | AD53: 0.03090909091
A54: 39 | B54: 2023-03-20 | C54: 50.220001 | D54: 51.040001 | E54: 50.009998 | F54: 50.939999 | G54: 22699700 | H54: 50.560215 | I54: 0.9925444836 | J54: 1 | K54: 49.85 | L54: 50.66 | M54: 49.64 | N54: 50.56 | O54: 22699700 | U54: 2013-10-01 | V54: 0.17 | W54: 23.24 | X54: 201310 | Y54: 201210 | Z54: 2012-10-02 | AA54: 5 | AB54: 1 | AC54: 0.65 | AD54: 0.02796901893
A55: 40 | B55: 2023-03-17 | C55: 50.259998 | D55: 50.549999 | E55: 49.740002 | F55: 50.189999 | G55: 47642700 | H55: 49.815807 | I55: 0.9925444908 | J55: 1 | K55: 49.89 | L55: 50.17 | M55: 49.37 | N55: 49.82 | O55: 47642700 | U55: 2013-07-01 | V55: 0.17 | W55: 24.34 | X55: 201307 | Y55: 201207 | Z55: 2012-07-02 | AA55: 5 | AB55: 1 | AC55: 0.62 | AD55: 0.02547247329
A56: 41 | B56: 2023-03-16 | C56: 48.68 | D56: 50.290001 | E56: 48.509998 | F56: 50.119999 | G56: 21425100 | H56: 49.746326 | I56: 0.9925444332 | J56: 1 | K56: 48.32 | L56: 49.92 | M56: 48.15 | N56: 49.75 | O56: 21425100 | U56: 2013-04-04 | V56: 0.17 | W56: 21.040001 | X56: 201304 | Y56: 201204 | Z56: 2012-04-03 | AA56: 5 | AB56: 1 | AC56: 0.53 | AD56: 0.02519011287
A57: 42 | B57: 2023-03-15 | C57: 48.369999 | D57: 49.110001 | E57: 48.369999 | F57: 49.060001 | G57: 17354900 | H57: 48.694233 | I57: 0.9925444763 | J57: 1 | K57: 48.01 | L57: 48.74 | M57: 48.01 | N57: 48.69 | O57: 17354900 | U57: 2012-11-27 | V57: 0.14 | W57: 18.959999 | X57: 201211 | Y57: 201111 | Z57: 2012-01-03 | AA57: 5 | AB57: 0 | AC57: 0.5 | AD57: 0.02637130941
A58: 43 | B58: 2023-03-14 | C58: 48.68 | D58: 49.259998 | E58: 48.509998 | F58: 49.049999 | G58: 17679600 | H58: 48.684307 | I58: 0.9925445055 | J58: 1 | K58: 48.32 | L58: 48.89 | M58: 48.15 | N58: 48.68 | O58: 17679600 | U58: 2012-10-02 | V58: 0.14 | W58: 18.870001 | X58: 201210 | Y58: 201110 | Z58: 2011-10-04 | AA58: 5 | AB58: 1 | AC58: 0.36 | AD58: 0.01907790042
A59: 44 | B59: 2023-03-13 | C59: 48.529999 | D59: 48.880001 | E59: 48.119999 | F59: 48.41 | G59: 20280800 | H59: 48.049076 | I59: 0.992544433 | J59: 1 | K59: 48.17 | L59: 48.52 | M59: 47.76 | N59: 48.05 | O59: 20280800 | U59: 2012-07-02 | V59: 0.08 | W59: 17.08 | X59: 201207 | Y59: 201107 | Z59: 2011-07-05 | AA59: 5 | AB59: 1 | AC59: 0.28 | AD59: 0.01639344262
A60: 45 | B60: 2023-03-10 | C60: 48.889999 | D60: 49.169998 | E60: 48.299999 | F60: 48.560001 | G60: 16338200 | H60: 48.19796 | I60: 0.9925444606 | J60: 1 | K60: 48.53 | L60: 48.8 | M60: 47.94 | N60: 48.2 | O60: 16338200 | U60: 2012-04-03 | V60: 0.08 | W60: 20.82 | X60: 201204 | Y60: 201104 | Z60: 2011-07-05 | AA60: 4 | AB60: 0 | AC60: 0.26 | AD60: 0.01248799232
A61: 46 | B61: 2023-03-09 | C61: 49.299999 | D61: 49.689999 | E61: 48.709999 | F61: 48.810001 | G61: 12497700 | H61: 48.446098 | I61: 0.9925444992 | J61: 1 | K61: 48.93 | L61: 49.32 | M61: 48.35 | N61: 48.45 | O61: 12497700 | U61: 2012-01-03 | V61: 0.06 | W61: 18.629999 | X61: 201201 | Y61: 201101 | Z61: 2011-03-29 | AA61: 4 | AB61: 0 | AC61: 0.24 | AD61: 0.01288244836
A62: 47 | B62: 2023-03-08 | C62: 49.02 | D62: 49.27 | E62: 48.740002 | F62: 49.110001 | G62: 12055500 | H62: 48.743858 | I62: 0.992544431 | J62: 1 | K62: 48.65 | L62: 48.9 | M62: 48.38 | N62: 48.74 | O62: 12055500 | U62: 2011-10-04 | V62: 0.06 | W62: 15.58 | X62: 201110 | Y62: 201010 | Z62: 2011-03-29 | AA62: 3 | AB62: 0 | AC62: 0.18 | AD62: 0.01155327343
A63: 48 | B63: 2023-03-07 | C63: 49.57 | D63: 49.759998 | E63: 48.630001 | F63: 48.91 | G63: 17506600 | H63: 48.545349 | I63: 0.992544449 | J63: 1 | K63: 49.2 | L63: 49.39 | M63: 48.27 | N63: 48.55 | O63: 17506600 | U63: 2011-07-05 | V63: 0.06 | W63: 15.67 | X63: 201107 | Y63: 201007 | Z63: 2011-03-29 | AA63: 2 | AB63: 0 | AC63: 0.12 | AD63: 0.007657945118
A64: 49 | B64: 2023-03-06 | C64: 49.459999 | D64: 49.810001 | E64: 49.240002 | F64: 49.419998 | G64: 13878400 | H64: 49.051544 | I64: 0.9925444351 | J64: 1 | K64: 49.09 | L64: 49.44 | M64: 48.87 | N64: 49.05 | O64: 13878400 | U64: 2011-03-29 | V64: 0.06 | W64: 17.440001 | X64: 201103 | Y64: 201003 | Z64: 2011-03-29 | AA64: 1 | AB64: 1 | AC64: 0.06 | AD64: 0.003440366775
A65: 50 | B65: 2023-03-03 | C65: 48.990002 | D65: 49.360001 | E65: 48.82 | F65: 49.279999 | G65: 15969900 | H65: 48.91259 | I65: 0.9925444601 | J65: 1 | K65: 48.62 | L65: 48.99 | M65: 48.46 | N65: 48.91 | O65: 15969900
A66: 51 | B66: 2023-03-02 | C66: 48.32 | D66: 48.630001 | E66: 48.119999 | F66: 48.529999 | G66: 18281800 | H66: 48.168182 | I66: 0.9925444672 | J66: 1 | K66: 47.96 | L66: 48.27 | M66: 47.76 | N66: 48.17 | O66: 18281800
A67: 52 | B67: 2023-03-01 | C67: 48.439999 | D67: 48.59 | E67: 48.02 | F67: 48.34 | G67: 13449300 | H67: 47.979599 | I67: 0.9925444559 | J67: 1 | K67: 48.08 | L67: 48.23 | M67: 47.66 | N67: 47.98 | O67: 13449300
A68: 53 | B68: 2023-02-28 | C68: 48.810001 | D68: 48.93 | E68: 48.380001 | F68: 48.419998 | G68: 16622400 | H68: 48.059002 | I68: 0.9925444854 | J68: 1 | K68: 48.45 | L68: 48.57 | M68: 48.02 | N68: 48.06 | O68: 16622400
A69: 54 | B69: 2023-02-27 | C69: 48.950001 | D69: 49.34 | E69: 48.549999 | F69: 48.73 | G69: 14776400 | H69: 48.366692 | I69: 0.9925444695 | J69: 1 | K69: 48.59 | L69: 48.97 | M69: 48.19 | N69: 48.37 | O69: 14776400
A70: 55 | B70: 2023-02-24 | C70: 48.810001 | D70: 48.900002 | E70: 48.169998 | F70: 48.48 | G70: 17251600 | H70: 48.118557 | I70: 0.9925444926 | J70: 1 | K70: 48.45 | L70: 48.54 | M70: 47.81 | N70: 48.12 | O70: 17251600
A71: 56 | B71: 2023-02-23 | C71: 49.540001 | D71: 49.68 | E71: 48.549999 | F71: 49.209999 | G71: 14066200 | H71: 48.843113 | I71: 0.9925444827 | J71: 1 | K71: 49.17 | L71: 49.31 | M71: 48.19 | N71: 48.84 | O71: 14066200
A72: 57 | B72: 2023-02-22 | C72: 49.849998 | D72: 49.849998 | E72: 48.889999 | F72: 49.310001 | G72: 20301900 | H72: 48.942368 | I72: 0.9925444536 | J72: 1 | K72: 49.48 | L72: 49.48 | M72: 48.53 | N72: 48.94 | O72: 20301900
A73: 58 | B73: 2023-02-21 | C73: 50.709999 | D73: 50.759998 | E73: 49.619999 | F73: 49.689999 | G73: 25100500 | H73: 49.319534 | I73: 0.9925444756 | J73: 1 | K73: 50.33 | L73: 50.38 | M73: 49.25 | N73: 49.32 | O73: 25100500
A74: 59 | B74: 2023-02-17 | C74: 51.330002 | D74: 51.439999 | E74: 50.599998 | F74: 50.77 | G74: 25321400 | H74: 50.391483 | I74: 0.9925444751 | J74: 1 | K74: 50.95 | L74: 51.06 | M74: 50.22 | N74: 50.39 | O74: 25321400
A75: 60 | B75: 2023-02-16 | C75: 49.990002 | D75: 51.740002 | E75: 49.799999 | F75: 50.990002 | G75: 48125300 | H75: 50.609844 | I75: 0.99254446 | J75: 1 | K75: 49.62 | L75: 51.35 | M75: 49.43 | N75: 50.61 | O75: 48125300
A76: 61 | B76: 2023-02-15 | C76: 47.5 | D76: 48.52 | E76: 47.330002 | F76: 48.450001 | G76: 27071200 | H76: 48.088779 | I76: 0.9925444377 | J76: 1 | K76: 47.15 | L76: 48.16 | M76: 46.98 | N76: 48.09 | O76: 27071200
A77: 62 | B77: 2023-02-14 | C77: 47.779999 | D77: 48 | E77: 47.18 | F77: 47.700001 | G77: 19134400 | H77: 47.344372 | I77: 0.9925444656 | J77: 1 | K77: 47.42 | L77: 47.64 | M77: 46.83 | N77: 47.34 | O77: 19134400
A78: 63 | B78: 2023-02-13 | C78: 47.450001 | D78: 47.990002 | E78: 47.389999 | F78: 47.860001 | G78: 19422100 | H78: 47.503178 | I78: 0.9925444423 | J78: 1 | K78: 47.1 | L78: 47.63 | M78: 47.04 | N78: 47.5 | O78: 19422100
A79: 64 | B79: 2023-02-10 | C79: 46.700001 | D79: 47.32 | E79: 46.639999 | F79: 47.259998 | G79: 17397300 | H79: 46.90765 | I79: 0.992544477 | J79: 1 | K79: 46.35 | L79: 46.97 | M79: 46.29 | N79: 46.91 | O79: 17397300
A80: 65 | B80: 2023-02-09 | C80: 47.23 | D80: 47.41 | E80: 46.43 | F80: 46.73 | G80: 18598400 | H80: 46.381603 | I80: 0.9925444682 | J80: 1 | K80: 46.88 | L80: 47.06 | M80: 46.08 | N80: 46.38 | O80: 18598400
A81: 66 | B81: 2023-02-08 | C81: 47.380001 | D81: 47.540001 | E81: 46.77 | F81: 46.959999 | G81: 18905500 | H81: 46.609886 | I81: =IF(F81=0,1,H81/F81) -> 0.9925444419 | J81: =INDEX(OFFSET($T$15,0,0,$S$13+1,1),MATCH(B81,OFFSET($Q$15,0,0,$S$13+1,1),-1)) -> 1 | K81: =ROUND($I81*C81,2) -> 47.03 | L81: =ROUND($I81*D81,2) -> 47.19 | M81: =ROUND($I81*E81,2) -> 46.42 | N81: =ROUND($I81*F81,2) -> 46.61 | O81: =G81*J81 -> 18905500
A82: 67 | B82: 2023-02-07 | C82: 47.240002 | D82: 48.150002 | E82: 46.970001 | F82: 47.84 | G82: 16675200 | H82: 47.483326 | I82: 0.9925444398 | J82: 1 | K82: 46.89 | L82: 47.79 | M82: 46.62 | N82: 47.48 | O82: 16675200
A83: 68 | B83: 2023-02-06 | C83: 48.07 | D83: 48.279999 | E83: 47.52 | F83: 47.57 | G83: 13991600 | H83: 47.21534 | I83: 0.9925444608 | J83: 1 | K83: 47.71 | L83: 47.92 | M83: 47.17 | N83: 47.22 | O83: 13991600
A84: 69 | B84: 2023-02-03 | C84: 49.299999 | D84: 49.299999 | E84: 48.509998 | F84: 48.630001 | G84: 17980000 | H84: 48.267437 | I84: 0.9925444377 | J84: 1 | K84: 48.93 | L84: 48.93 | M84: 48.15 | N84: 48.27 | O84: 17980000
A85: 70 | B85: 2023-02-02 | C85: 48.529999 | D85: 49.560001 | E85: 48.360001 | F85: 49.32 | G85: 17883800 | H85: 48.952293 | I85: 0.9925444647 | J85: 1 | K85: 48.17 | L85: 49.19 | M85: 48 | N85: 48.95 | O85: 17883800
A86: 71 | B86: 2023-02-01 | C86: 48.389999 | D86: 48.900002 | E86: 47.509998 | F86: 48.57 | G86: 19639400 | H86: 48.207886 | I86: 0.9925444925 | J86: 1 | K86: 48.03 | L86: 48.54 | M86: 47.16 | N86: 48.21 | O86: 19639400
A87: 72 | B87: 2023-01-31 | C87: 48.119999 | D87: 48.689999 | E87: 48.049999 | F87: 48.669998 | G87: 16821600 | H87: 48.307137 | I87: 0.9925444624 | J87: 1 | K87: 47.76 | L87: 48.33 | M87: 47.69 | N87: 48.31 | O87: 16821600
A88: 73 | B88: 2023-01-30 | C88: 48.139999 | D88: 48.5 | E88: 48.119999 | F88: 48.220001 | G88: 19261900 | H88: 47.860497 | I88: 0.9925445045 | J88: 1 | K88: 47.78 | L88: 48.14 | M88: 47.76 | N88: 47.86 | O88: 19261900
A89: 74 | B89: 2023-01-27 | C89: 48.099998 | D89: 48.73 | E89: 47.970001 | F89: 48.509998 | G89: 13414800 | H89: 48.148331 | I89: 0.9925444854 | J89: 1 | K89: 47.74 | L89: 48.37 | M89: 47.61 | N89: 48.15 | O89: 13414800
A90: 75 | B90: 2023-01-26 | C90: 48.150002 | D90: 48.470001 | E90: 47.830002 | F90: 48.34 | G90: 12952700 | H90: 47.979599 | I90: 0.9925444559 | J90: 1 | K90: 47.79 | L90: 48.11 | M90: 47.47 | N90: 47.98 | O90: 12952700
A91: 76 | B91: 2023-01-25 | C91: 47.98 | D91: 48.080002 | E91: 47.23 | F91: 47.98 | G91: 14638700 | H91: 47.622284 | I91: 0.9925444769 | J91: 1 | K91: 47.62 | L91: 47.72 | M91: 46.88 | N91: 47.62 | O91: 14638700
A92: 77 | B92: 2023-01-24 | C92: 47.490002 | D92: 48.02 | E92: 47.060001 | F92: 47.810001 | G92: 14872700 | H92: 47.453552 | I92: 0.9925444678 | J92: 1 | K92: 47.14 | L92: 47.66 | M92: 46.71 | N92: 47.45 | O92: 14872700
A93: 78 | B93: 2023-01-23 | C93: 46.900002 | D93: 47.869999 | E93: 46.810001 | F93: 47.5 | G93: 15180500 | H93: 47.145863 | I93: 0.9925444842 | J93: 1 | K93: 46.55 | L93: 47.51 | M93: 46.46 | N93: 47.15 | O93: 15180500
A94: 79 | B94: 2023-01-20 | C94: 46.060001 | D94: 46.830002 | E94: 45.669998 | F94: 46.779999 | G94: 21847200 | H94: 46.431229 | I94: 0.9925444633 | J94: 1 | K94: 45.72 | L94: 46.48 | M94: 45.33 | N94: 46.43 | O94: 21847200
A95: 80 | B95: 2023-01-19 | C95: 46.950001 | D95: 47.049999 | E95: 46.389999 | F95: 46.459999 | G95: 19118600 | H95: 46.113617 | I95: 0.9925445112 | J95: 1 | K95: 46.6 | L95: 46.7 | M95: 46.04 | N95: 46.11 | O95: 19118600
A96: 81 | B96: 2023-01-18 | C96: 48.189999 | D96: 48.27 | E96: 46.889999 | F96: 46.900002 | G96: 19882200 | H96: 46.550339 | I96: 0.9925444993 | J96: 1 | K96: 47.83 | L96: 47.91 | M96: 46.54 | N96: 46.55 | O96: 19882200
A97: 82 | B97: 2023-01-17 | C97: 48.919998 | D97: 48.939999 | E97: 47.950001 | F97: 48.080002 | G97: 19290800 | H97: 47.721539 | I97: 0.9925444471 | J97: 1 | K97: 48.56 | L97: 48.58 | M97: 47.59 | N97: 47.72 | O97: 19290800
A98: 83 | B98: 2023-01-13 | C98: 48.560001 | D98: 49.02 | E98: 48.419998 | F98: 48.880001 | G98: 12649300 | H98: 48.515575 | I98: 0.9925444764 | J98: 1 | K98: 48.2 | L98: 48.65 | M98: 48.06 | N98: 48.52 | O98: 12649300
A99: 84 | B99: 2023-01-12 | C99: 49.209999 | D99: 49.43 | E99: 48.849998 | F99: 49 | G99: 14241700 | H99: 48.634678 | I99: 0.992544449 | J99: 1 | K99: 48.84 | L99: 49.06 | M99: 48.49 | N99: 48.63 | O99: 14241700
A100: 85 | B100: 2023-01-11 | C100: 48.830002 | D100: 49.23 | E100: 48.700001 | F100: 49.209999 | G100: 12530900 | H100: 48.843113 | I100: 0.9925444827 | J100: 1 | K100: 48.47 | L100: 48.86 | M100: 48.34 | N100: 48.84 | O100: 12530900
A101: 86 | B101: 2023-01-10 | C101: 48.799999 | D101: 49.209999 | E101: 48.59 | F101: 48.810001 | G101: 12474400 | H101: 48.446098 | I101: 0.9925444992 | J101: 1 | K101: 48.44 | L101: 48.84 | M101: 48.23 | N101: 48.45 | O101: 12474400
A102: 87 | B102: 2023-01-09 | C102: 48.259998 | D102: 49.209999 | E102: 48.220001 | F102: 48.580002 | G102: 13938000 | H102: 48.217812 | I102: 0.992544463 | J102: 1 | K102: 47.9 | L102: 48.84 | M102: 47.86 | N102: 48.22 | O102: 13938000
A103: 88 | B103: 2023-01-06 | C103: 47.459999 | D103: 48.59 | E103: 47.279999 | F103: 48.32 | G103: 20823000 | H103: 47.959747 | I103: 0.9925444329 | J103: 1 | K103: 47.11 | L103: 48.23 | M103: 46.93 | N103: 47.96 | O103: 20823000
A104: 89 | B104: 2023-01-05 | C104: 47.490002 | D104: 47.490002 | E104: 46.759998 | F104: 46.880001 | G104: 17372100 | H104: 46.530487 | I104: 0.9925444967 | J104: 1 | K104: 47.14 | L104: 47.14 | M104: 46.41 | N104: 46.53 | O104: 17372100
A105: 90 | B105: 2023-01-04 | C105: 48.279999 | D105: 48.48 | E105: 47.169998 | F105: 47.549999 | G105: 18339800 | H105: 47.195488 | I105: 0.9925444583 | J105: 1 | K105: 47.92 | L105: 48.12 | M105: 46.82 | N105: 47.2 | O105: 18339800
A106: 91 | B106: 2023-01-03 | C106: 47.860001 | D106: 48.049999 | E106: 47.310001 | F106: 47.939999 | G106: 17718900 | H106: 47.205414 | I106: 0.9846769918 | J106: 1 | K106: 47.13 | L106: 47.31 | M106: 46.59 | N106: 47.21 | O106: 17718900
A107: 92 | B107: 2022-12-30 | C107: 47.27 | D107: 47.669998 | E107: 46.950001 | F107: 47.639999 | G107: 13199800 | H107: 46.910011 | I107: 0.9846769938 | J107: 1 | K107: 46.55 | L107: 46.94 | M107: 46.23 | N107: 46.91 | O107: 13199800
A108: 93 | B108: 2022-12-29 | C108: 47.259998 | D108: 47.740002 | E108: 47.259998 | F108: 47.5 | G108: 11396500 | H108: 46.772156 | I108: 0.9846769684 | J108: 1 | K108: 46.54 | L108: 47.01 | M108: 46.54 | N108: 46.77 | O108: 11396500
A109: 94 | B109: 2022-12-28 | C109: 47.689999 | D109: 47.77 | E109: 46.98 | F109: 47.07 | G109: 9847400 | H109: 46.348743 | I109: 0.984676928 | J109: 1 | K109: 46.96 | L109: 47.04 | M109: 46.26 | N109: 46.35 | O109: 9847400
A110: 95 | B110: 2022-12-27 | C110: 47.669998 | D110: 47.709999 | E110: 47.220001 | F110: 47.529999 | G110: 12066200 | H110: 46.801693 | I110: 0.9846769195 | J110: 1 | K110: 46.94 | L110: 46.98 | M110: 46.5 | N110: 46.8 | O110: 12066200
A111: 96 | B111: 2022-12-23 | C111: 47.25 | D111: 47.490002 | E111: 47.009998 | F111: 47.48 | G111: 9554400 | H111: 46.752464 | I111: 0.9846770008 | J111: 1 | K111: 46.53 | L111: 46.76 | M111: 46.29 | N111: 46.75 | O111: 9554400
A112: 97 | B112: 2022-12-22 | C112: 47.490002 | D112: 47.490002 | E112: 46.689999 | F112: 47.32 | G112: 23118500 | H112: 46.594917 | I112: 0.9846770287 | J112: 1 | K112: 46.76 | L112: 46.76 | M112: 45.97 | N112: 46.59 | O112: 23118500
A113: 98 | B113: 2022-12-21 | C113: 47.689999 | D113: 47.959999 | E113: 47.419998 | F113: 47.66 | G113: 15599400 | H113: 46.929703 | I113: 0.9846769408 | J113: 1 | K113: 46.96 | L113: 47.23 | M113: 46.69 | N113: 46.93 | O113: 15599400
A114: 99 | B114: 2022-12-20 | C114: 47.41 | D114: 47.560001 | E114: 46.790001 | F114: 47.369999 | G114: 15086200 | H114: 46.644146 | I114: 0.9846769471 | J114: 1 | K114: 46.68 | L114: 46.83 | M114: 46.07 | N114: 46.64 | O114: 15086200
A115: 100 | B115: 2022-12-19 | C115: 47.66 | D115: 47.959999 | E115: 47.139999 | F115: 47.400002 | G115: 17986300 | H115: 46.673691 | I115: 0.9846769838 | J115: 1 | K115: 46.93 | L115: 47.23 | M115: 46.42 | N115: 46.67 | O115: 17986300
A116: 101 | B116: 2022-12-16 | C116: 47.41 | D116: 48 | E116: 47.080002 | F116: 47.810001 | G116: 66125400 | H116: 47.077408 | I116: 0.9846769926 | J116: 1 | K116: 46.68 | L116: 47.26 | M116: 46.36 | N116: 47.08 | O116: 66125400
A117: 102 | B117: 2022-12-15 | C117: 48.959999 | D117: 49.049999 | E117: 47.740002 | F117: 48.150002 | G117: 19372500 | H117: 47.412201 | I117: 0.9846770308 | J117: 1 | K117: 48.21 | L117: 48.3 | M117: 47.01 | N117: 47.41 | O117: 19372500
A118: 103 | B118: 2022-12-14 | C118: 49.740002 | D118: 50.060001 | E118: 48.82 | F118: 49.299999 | G118: 19050400 | H118: 48.544575 | I118: 0.9846769977 | J118: 1 | K118: 48.98 | L118: 49.29 | M118: 48.07 | N118: 48.54 | O118: 19050400
A119: 104 | B119: 2022-12-13 | C119: 50.330002 | D119: 50.709999 | E119: 49.23 | F119: 49.639999 | G119: 22705900 | H119: 48.879364 | I119: 0.9846769739 | J119: 1 | K119: 49.56 | L119: 49.93 | M119: 48.48 | N119: 48.88 | O119: 22705900
A120: 105 | B120: 2022-12-12 | C120: 48.799999 | D120: 49.32 | E120: 48.369999 | F120: 49.299999 | G120: 15425300 | H120: 48.544575 | I120: 0.9846769977 | J120: 1 | K120: 48.05 | L120: 48.56 | M120: 47.63 | N120: 48.54 | O120: 15425300
A121: 106 | B121: 2022-12-09 | C121: 49.099998 | D121: 49.169998 | E121: 48.439999 | F121: 48.459999 | G121: 14303200 | H121: 47.717445 | I121: 0.9846769704 | J121: 1 | K121: 48.35 | L121: 48.42 | M121: 47.7 | N121: 47.72 | O121: 14303200
A122: 107 | B122: 2022-12-08 | C122: 48.66 | D122: 49.200001 | E122: 48.619999 | F122: 48.990002 | G122: 16015800 | H122: 48.239326 | I122: 0.9846769551 | J122: 1 | K122: 47.91 | L122: 48.45 | M122: 47.87 | N122: 48.24 | O122: 16015800
A123: 108 | B123: 2022-12-07 | C123: 48.400002 | D123: 48.549999 | E123: 48.060001 | F123: 48.18 | G123: 15171700 | H123: 47.441738 | I123: 0.9846770029 | J123: 1 | K123: 47.66 | L123: 47.81 | M123: 47.32 | N123: 47.44 | O123: 15171700
A124: 109 | B124: 2022-12-06 | C124: 49.439999 | D124: 49.439999 | E124: 48.259998 | F124: 48.59 | G124: 15443800 | H124: 47.845455 | I124: 0.9846769912 | J124: 1 | K124: 48.68 | L124: 48.68 | M124: 47.52 | N124: 47.85 | O124: 15443800
A125: 110 | B125: 2022-12-05 | C125: 49.549999 | D125: 49.639999 | E125: 49.169998 | F125: 49.330002 | G125: 13795900 | H125: 48.574116 | I125: 0.9846769518 | J125: 1 | K125: 48.79 | L125: 48.88 | M125: 48.42 | N125: 48.57 | O125: 13795900
A126: 111 | B126: 2022-12-02 | C126: 49.23 | D126: 49.84 | E126: 48.919998 | F126: 49.700001 | G126: 12325100 | H126: 48.938446 | I126: 0.9846769621 | J126: 1 | K126: 48.48 | L126: 49.08 | M126: 48.17 | N126: 48.94 | O126: 12325100
A127: 112 | B127: 2022-12-01 | C127: 49.880001 | D127: 50.459999 | E127: 49.689999 | F127: 49.970001 | G127: 18559500 | H127: 49.204311 | I127: 0.9846770065 | J127: 1 | K127: 49.12 | L127: 49.69 | M127: 48.93 | N127: 49.2 | O127: 18559500
A128: 113 | B128: 2022-11-30 | C128: 48.169998 | D128: 49.830002 | E128: 47.959999 | F128: 49.720001 | G128: 29919700 | H128: 48.958141 | I128: 0.9846769915 | J128: 1 | K128: 47.43 | L128: 49.07 | M128: 47.23 | N128: 48.96 | O128: 29919700
A129: 114 | B129: 2022-11-29 | C129: 48.25 | D129: 48.41 | E129: 47.84 | F129: 48.279999 | G129: 13779300 | H129: 47.540207 | I129: 0.9846770502 | J129: 1 | K129: 47.51 | L129: 47.67 | M129: 47.11 | N129: 47.54 | O129: 13779300
A130: 115 | B130: 2022-11-28 | C130: 48.290001 | D130: 48.470001 | E130: 47.919998 | F130: 48.080002 | G130: 14976600 | H130: 47.343269 | I130: 0.9846769349 | J130: 1 | K130: 47.55 | L130: 47.73 | M130: 47.19 | N130: 47.34 | O130: 14976600
A131: 116 | B131: 2022-11-25 | C131: 48.75 | D131: 49.049999 | E131: 48.349998 | F131: 48.400002 | G131: 8492600 | H131: 47.658367 | I131: 0.9846769634 | J131: 1 | K131: 48 | L131: 48.3 | M131: 47.61 | N131: 47.66 | O131: 8492600
A132: 117 | B132: 2022-11-23 | C132: 48.400002 | D132: 48.990002 | E132: 48.32 | F132: 48.57 | G132: 12065600 | H132: 47.825764 | I132: 0.9846770434 | J132: 1 | K132: 47.66 | L132: 48.24 | M132: 47.58 | N132: 47.83 | O132: 12065600
A133: 118 | B133: 2022-11-22 | C133: 48 | D133: 48.419998 | E133: 47.759998 | F133: 48.380001 | G133: 16367800 | H133: 47.638672 | I133: 0.9846769536 | J133: 1 | K133: 47.26 | L133: 47.68 | M133: 47.03 | N133: 47.64 | O133: 16367800
A134: 119 | B134: 2022-11-21 | C134: 47.610001 | D134: 48.290001 | E134: 47.560001 | F134: 47.619999 | G134: 17049500 | H134: 46.890316 | I134: 0.9846769631 | J134: 1 | K134: 46.88 | L134: 47.55 | M134: 46.83 | N134: 46.89 | O134: 17049500
A135: 120 | B135: 2022-11-18 | C135: 46.91 | D135: 48.040001 | E135: 46.860001 | F135: 47.790001 | G135: 30843200 | H135: 47.057713 | I135: 0.984676962 | J135: 1 | K135: 46.19 | L135: 47.3 | M135: 46.14 | N135: 47.06 | O135: 30843200
A136: 121 | B136: 2022-11-17 | C136: 46.189999 | D136: 46.849998 | E136: 45.16 | F136: 46.59 | G136: 38887800 | H136: 45.876099 | I136: 0.9846769478 | J136: 1 | K136: 45.48 | L136: 46.13 | M136: 44.47 | N136: 45.88 | O136: 38887800
A137: 122 | B137: 2022-11-16 | C137: 44.939999 | D137: 44.98 | E137: 44.299999 | F137: 44.389999 | G137: 24939600 | H137: 43.709808 | I137: 0.9846769314 | J137: 1 | K137: 44.25 | L137: 44.29 | M137: 43.62 | N137: 43.71 | O137: 24939600
A138: 123 | B138: 2022-11-15 | C138: 45.040001 | D138: 45.240002 | E138: 44.450001 | F138: 44.900002 | G138: 19318000 | H138: 44.211998 | I138: 0.9846769717 | J138: 1 | K138: 44.35 | L138: 44.55 | M138: 43.77 | N138: 44.21 | O138: 19318000
A139: 124 | B139: 2022-11-14 | C139: 44.830002 | D139: 45.439999 | E139: 44.68 | F139: 44.740002 | G139: 21091300 | H139: 44.054451 | I139: 0.9846770011 | J139: 1 | K139: 44.14 | L139: 44.74 | M139: 44 | N139: 44.05 | O139: 21091300
A140: 125 | B140: 2022-11-11 | C140: 45.18 | D140: 45.32 | E140: 43.919998 | F140: 44.790001 | G140: 25961800 | H140: 44.10368 | I140: 0.9846769148 | J140: 1 | K140: 44.49 | L140: 44.63 | M140: 43.25 | N140: 44.1 | O140: 25961800
A141: 126 | B141: 2022-11-10 | C141: 45.700001 | D141: 45.810001 | E141: 44.650002 | F141: 45.66 | G141: 27190100 | H141: 44.96035 | I141: 0.9846769601 | J141: 1 | K141: 45 | L141: 45.11 | M141: 43.97 | N141: 44.96 | O141: 27190100
A142: 127 | B142: 2022-11-09 | C142: 44.509998 | D142: 44.720001 | E142: 43.889999 | F142: 43.91 | G142: 19311700 | H142: 43.237164 | I142: 0.9846769301 | J142: 1 | K142: 43.83 | L142: 44.03 | M142: 43.22 | N142: 43.24 | O142: 19311700
A143: 128 | B143: 2022-11-08 | C143: 44.689999 | D143: 45.349998 | E143: 44.18 | F143: 44.610001 | G143: 17503100 | H143: 43.926441 | I143: 0.9846769786 | J143: 1 | K143: 44.01 | L143: 44.66 | M143: 43.5 | N143: 43.93 | O143: 17503100
A144: 129 | B144: 2022-11-07 | C144: 44.830002 | D144: 44.98 | E144: 44.41 | F144: 44.549999 | G144: 21383000 | H144: 43.867359 | I144: 0.9846769918 | J144: 1 | K144: 44.14 | L144: 44.29 | M144: 43.73 | N144: 43.87 | O144: 21383000
A145: 130 | B145: 2022-11-04 | C145: 44.5 | D145: 45.080002 | E145: 43.830002 | F145: 44.52 | G145: 19648700 | H145: 43.837818 | I145: =IF(F145=0,1,H145/F145) -> 0.9846769542 | J145: =INDEX(OFFSET($T$15,0,0,$S$13+1,1),MATCH(B145,OFFSET($Q$15,0,0,$S$13+1,1),-1)) -> 1 | K145: =ROUND($I145*C145,2) -> 43.82 | L145: =ROUND($I145*D145,2) -> 44.39 | M145: =ROUND($I145*E145,2) -> 43.16 | N145: =ROUND($I145*F145,2) -> 43.84 | O145: =G145*J145 -> 19648700
A146: 131 | B146: 2022-11-03 | C146: 44.029999 | D146: 44.150002 | E146: 43.389999 | F146: 43.849998 | G146: 17895600 | H146: 43.178085 | I146: 0.9846770118 | J146: 1 | K146: 43.36 | L146: 43.47 | M146: 42.73 | N146: 43.18 | O146: 17895600
A147: 132 | B147: 2022-11-02 | C147: 45.470001 | D147: 46.209999 | E147: 44.549999 | F147: 44.57 | G147: 15308800 | H147: 43.887051 | I147: 0.9846769352 | J147: 1 | K147: 44.77 | L147: 45.5 | M147: 43.87 | N147: 43.89 | O147: 15308800
A148: 133 | B148: 2022-11-01 | C148: 45.580002 | D148: 45.790001 | E148: 45.060001 | F148: 45.459999 | G148: 12088700 | H148: 44.763416 | I148: 0.9846770124 | J148: 1 | K148: 44.88 | L148: 45.09 | M148: 44.37 | N148: 44.76 | O148: 12088700
A149: 134 | B149: 2022-10-31 | C149: 45.310001 | D149: 45.639999 | E149: 45.060001 | F149: 45.43 | G149: 17793700 | H149: 44.733879 | I149: 0.9846770636 | J149: 1 | K149: 44.62 | L149: 44.94 | M149: 44.37 | N149: 44.73 | O149: 17793700
A150: 135 | B150: 2022-10-28 | C150: 44.689999 | D150: 45.709999 | E150: 44.650002 | F150: 45.639999 | G150: 17978300 | H150: 44.940655 | I150: 0.9846769497 | J150: 1 | K150: 44.01 | L150: 45.01 | M150: 43.97 | N150: 44.94 | O150: 17978300
A151: 136 | B151: 2022-10-27 | C151: 44.77 | D151: 45.09 | E151: 44.360001 | F151: 44.419998 | G151: 18102500 | H151: 43.739353 | I151: 0.9846770592 | J151: 1 | K151: 44.08 | L151: 44.4 | M151: 43.68 | N151: 43.74 | O151: 18102500
A152: 137 | B152: 2022-10-26 | C152: 44.93 | D152: 45.23 | E152: 44.279999 | F152: 44.380001 | G152: 20051000 | H152: 43.699966 | I152: 0.9846769945 | J152: 1 | K152: 44.24 | L152: 44.54 | M152: 43.6 | N152: 43.7 | O152: 20051000
A153: 138 | B153: 2022-10-25 | C153: 43.34 | D153: 44.400002 | E153: 43.200001 | F153: 44.360001 | G153: 19165200 | H153: 43.680271 | I153: 0.9846769616 | J153: 1 | K153: 42.68 | L153: 43.72 | M153: 42.54 | N153: 43.68 | O153: 19165200
A154: 139 | B154: 2022-10-24 | C154: 43.119999 | D154: 43.73 | E154: 42.900002 | F154: 43.540001 | G154: 18785300 | H154: 42.872833 | I154: 0.9846768952 | J154: 1 | K154: 42.46 | L154: 43.06 | M154: 42.24 | N154: 42.87 | O154: 18785300
A155: 140 | B155: 2022-10-21 | C155: 41.849998 | D155: 42.970001 | E155: 41.810001 | F155: 42.799999 | G155: 25035000 | H155: 42.144176 | I155: 0.9846770324 | J155: 1 | K155: 41.21 | L155: 42.31 | M155: 41.17 | N155: 42.14 | O155: 25035000
A156: 141 | B156: 2022-10-20 | C156: 41.560001 | D156: 42.619999 | E156: 41.459999 | F156: 41.709999 | G156: 16830500 | H156: 41.070877 | I156: 0.9846770075 | J156: 1 | K156: 40.92 | L156: 41.97 | M156: 40.82 | N156: 41.07 | O156: 16830500
A157: 142 | B157: 2022-10-19 | C157: 41.630001 | D157: 42.240002 | E157: 41.470001 | F157: 41.880001 | G157: 19071700 | H157: 41.238274 | I157: 0.9846770061 | J157: 1 | K157: 40.99 | L157: 41.59 | M157: 40.83 | N157: 41.24 | O157: 19071700
A158: 143 | B158: 2022-10-18 | C158: 41.919998 | D158: 42.220001 | E158: 41.259998 | F158: 41.790001 | G158: 18223300 | H158: 41.149654 | I158: 0.9846770284 | J158: 1 | K158: 41.28 | L158: 41.57 | M158: 40.63 | N158: 41.15 | O158: 18223300
A159: 144 | B159: 2022-10-17 | C159: 41.040001 | D159: 41.529999 | E159: 40.950001 | F159: 41.299999 | G159: 27845200 | H159: 40.667156 | I159: 0.9846769246 | J159: 1 | K159: 40.41 | L159: 40.89 | M159: 40.32 | N159: 40.67 | O159: 27845200
A160: 145 | B160: 2022-10-14 | C160: 40.84 | D160: 40.959999 | E160: 39.919998 | F160: 40.200001 | G160: 19571000 | H160: 39.584015 | I160: 0.9846769656 | J160: 1 | K160: 40.21 | L160: 40.33 | M160: 39.31 | N160: 39.58 | O160: 19571000
A161: 146 | B161: 2022-10-13 | C161: 39.029999 | D161: 40.799999 | E161: 38.599998 | F161: 40.610001 | G161: 26328300 | H161: 39.987732 | I161: 0.9846769519 | J161: 1 | K161: 38.43 | L161: 40.17 | M161: 38.01 | N161: 39.99 | O161: 26328300
A162: 147 | B162: 2022-10-12 | C162: 39.700001 | D162: 39.860001 | E162: 39.25 | F162: 39.27 | G162: 17279900 | H162: 38.668266 | I162: 0.9846770053 | J162: 1 | K162: 39.09 | L162: 39.25 | M162: 38.65 | N162: 38.67 | O162: 17279900
A163: 148 | B163: 2022-10-11 | C163: 39.810001 | D163: 40.110001 | E163: 39.27 | F163: 39.580002 | G163: 19386400 | H163: 38.973518 | I163: 0.9846770094 | J163: 1 | K163: 39.2 | L163: 39.5 | M163: 38.67 | N163: 38.97 | O163: 19386400
A164: 149 | B164: 2022-10-10 | C164: 40.630001 | D164: 40.810001 | E164: 39.599998 | F164: 39.889999 | G164: 16628400 | H164: 39.278763 | I164: 0.9846769613 | J164: 1 | K164: 40.01 | L164: 40.18 | M164: 38.99 | N164: 39.28 | O164: 16628400
A165: 150 | B165: 2022-10-07 | C165: 41.25 | D165: 41.25 | E165: 40.080002 | F165: 40.27 | G165: 19055400 | H165: 39.652943 | I165: 0.9846770052 | J165: 1 | K165: 40.62 | L165: 40.62 | M165: 39.47 | N165: 39.65 | O165: 19055400
A166: 151 | B166: 2022-10-06 | C166: 41.650002 | D166: 42.09 | E166: 41.369999 | F166: 41.52 | G166: 18198800 | H166: 40.883789 | I166: 0.984676999 | J166: 1 | K166: 41.01 | L166: 41.45 | M166: 40.74 | N166: 40.88 | O166: 18198800
A167: 152 | B167: 2022-10-05 | C167: 41.59 | D167: 42.25 | E167: 41.400002 | F167: 41.990002 | G167: 14289700 | H167: 41.346588 | I167: 0.9846769714 | J167: 1 | K167: 40.95 | L167: 41.6 | M167: 40.77 | N167: 41.35 | O167: 14289700
A168: 153 | B168: 2022-10-04 | C168: 41.560001 | D168: 42.040001 | E168: 41.389999 | F168: 41.82 | G168: 22889400 | H168: 41.179192 | I168: 0.9846769967 | J168: 1 | K168: 40.92 | L168: 41.4 | M168: 40.76 | N168: 41.18 | O168: 22889400
A169: 154 | B169: 2022-10-03 | C169: 40.669998 | D169: 41.529999 | E169: 40.470001 | F169: 41.290001 | G169: 22203600 | H169: 40.283138 | I169: 0.9756148468 | J169: 1 | K169: 39.68 | L169: 40.52 | M169: 39.48 | N169: 40.28 | O169: 22203600
A170: 155 | B170: 2022-09-30 | C170: 40.66 | D170: 41.040001 | E170: 39.959999 | F170: 40 | G170: 27989900 | H170: 39.024593 | I170: 0.975614825 | J170: 1 | K170: 39.67 | L170: 40.04 | M170: 38.99 | N170: 39.02 | O170: 27989900
A171: 156 | B171: 2022-09-29 | C171: 41.049999 | D171: 41.099998 | E171: 40.150002 | F171: 40.57 | G171: 19496400 | H171: 39.580692 | I171: 0.9756147893 | J171: 1 | K171: 40.05 | L171: 40.1 | M171: 39.17 | N171: 39.58 | O171: 19496400
A172: 157 | B172: 2022-09-28 | C172: 40.849998 | D172: 41.57 | E172: 40.59 | F172: 41.34 | G172: 23217700 | H172: 40.331913 | I172: 0.9756147315 | J172: 1 | K172: 39.85 | L172: 40.56 | M172: 39.6 | N172: 40.33 | O172: 23217700
A173: 158 | B173: 2022-09-27 | C173: 41.139999 | D173: 41.459999 | E173: 40.23 | F173: 40.52 | G173: 15027900 | H173: 39.531914 | I173: 0.9756148569 | J173: 1 | K173: 40.14 | L173: 40.45 | M173: 39.25 | N173: 39.53 | O173: 15027900
A174: 159 | B174: 2022-09-26 | C174: 40.66 | D174: 41.189999 | E174: 40.369999 | F174: 40.580002 | G174: 22694800 | H174: 39.59045 | I174: 0.9756147868 | J174: 1 | K174: 39.67 | L174: 40.19 | M174: 39.39 | N174: 39.59 | O174: 22694800
A175: 160 | B175: 2022-09-23 | C175: 41.25 | D175: 41.25 | E175: 40.119999 | F175: 40.66 | G175: 19067700 | H175: 39.668499 | I175: 0.9756148303 | J175: 1 | K175: 40.24 | L175: 40.24 | M175: 39.14 | N175: 39.67 | O175: 19067700
A176: 161 | B176: 2022-09-22 | C176: 41.34 | D176: 41.549999 | E176: 41.139999 | F176: 41.150002 | G176: 16691000 | H176: 40.146553 | I176: 0.9756148493 | J176: 1 | K176: 40.33 | L176: 40.54 | M176: 40.14 | N176: 40.15 | O176: 16691000
A177: 162 | B177: 2022-09-21 | C177: 42.32 | D177: 42.869999 | E177: 41.57 | F177: 41.59 | G177: 21415900 | H177: 40.575825 | I177: 0.9756149315 | J177: 1 | K177: 41.29 | L177: 41.82 | M177: 40.56 | N177: 40.58 | O177: 21415900
A178: 163 | B178: 2022-09-20 | C178: 43.009998 | D178: 43.02 | E178: 42.259998 | F178: 42.580002 | G178: 16813900 | H178: 41.541683 | I178: 0.9756148673 | J178: 1 | K178: 41.96 | L178: 41.97 | M178: 41.23 | N178: 41.54 | O178: 16813900
A179: 164 | B179: 2022-09-19 | C179: 42.900002 | D179: 43.439999 | E179: 42.759998 | F179: 43.299999 | G179: 13667500 | H179: 42.244122 | I179: 0.9756148493 | J179: 1 | K179: 41.85 | L179: 42.38 | M179: 41.72 | N179: 42.24 | O179: 13667500
A180: 165 | B180: 2022-09-16 | C180: 43.110001 | D180: 43.580002 | E180: 42.790001 | F180: 43.299999 | G180: 32696100 | H180: 42.244122 | I180: 0.9756148493 | J180: 1 | K180: 42.06 | L180: 42.52 | M180: 41.75 | N180: 42.24 | O180: 32696100
A181: 166 | B181: 2022-09-15 | C181: 43.810001 | D181: 43.869999 | E181: 43.09 | F181: 43.290001 | G181: 18148600 | H181: 42.234367 | I181: 0.9756148308 | J181: 1 | K181: 42.74 | L181: 42.8 | M181: 42.04 | N181: 42.23 | O181: 18148600
A182: 167 | B182: 2022-09-14 | C182: 44.040001 | D182: 44.27 | E182: 43.560001 | F182: 43.959999 | G182: 27551500 | H182: 42.888027 | I182: 0.9756148311 | J182: 1 | K182: 42.97 | L182: 43.19 | M182: 42.5 | N182: 42.89 | O182: 27551500
A183: 168 | B183: 2022-09-13 | C183: 45.720001 | D183: 45.91 | E183: 44.02 | F183: 44.110001 | G183: 23028600 | H183: 43.034367 | I183: 0.9756147364 | J183: 1 | K183: 44.61 | L183: 44.79 | M183: 42.95 | N183: 43.03 | O183: 23028600
A184: 169 | B184: 2022-09-12 | C184: 46.110001 | D184: 46.73 | E184: 45.970001 | F184: 46.400002 | G184: 17923000 | H184: 45.268532 | I184: 0.9756148717 | J184: 1 | K184: 44.99 | L184: 45.59 | M184: 44.85 | N184: 45.27 | O184: 17923000
A185: 170 | B185: 2022-09-09 | C185: 45.66 | D185: 45.889999 | E185: 45.400002 | F185: 45.77 | G185: 15499300 | H185: 44.653889 | I185: 0.9756147913 | J185: 1 | K185: 44.55 | L185: 44.77 | M185: 44.29 | N185: 44.65 | O185: 15499300
A186: 171 | B186: 2022-09-08 | C186: 44.759998 | D186: 45.470001 | E186: 44.619999 | F186: 45.369999 | G186: 14231500 | H186: 44.263641 | I186: 0.9756147669 | J186: 1 | K186: 43.67 | L186: 44.36 | M186: 43.53 | N186: 44.26 | O186: 14231500
A187: 172 | B187: 2022-09-07 | C187: 44.75 | D187: 45.169998 | E187: 44.349998 | F187: 45.02 | G187: 18297400 | H187: 43.92218 | I187: 0.9756148378 | J187: 1 | K187: 43.66 | L187: 44.07 | M187: 43.27 | N187: 43.92 | O187: 18297400
A188: 173 | B188: 2022-09-06 | C188: 44.66 | D188: 44.790001 | E188: 43.98 | F188: 44.470001 | G188: 14366100 | H188: 43.385593 | I188: 0.975614842 | J188: 1 | K188: 43.57 | L188: 43.7 | M188: 42.91 | N188: 43.39 | O188: 14366100
A189: 174 | B189: 2022-09-02 | C189: 45.709999 | D189: 45.919998 | E189: 44.279999 | F189: 44.59 | G189: 14720900 | H189: 43.502663 | I189: 0.9756147791 | J189: 1 | K189: 44.6 | L189: 44.8 | M189: 43.2 | N189: 43.5 | O189: 14720900
A190: 175 | B190: 2022-09-01 | C190: 44.57 | D190: 45.34 | E190: 44.400002 | F190: 45.290001 | G190: 16236400 | H190: 44.185596 | I190: 0.9756148162 | J190: 1 | K190: 43.48 | L190: 44.23 | M190: 43.32 | N190: 44.19 | O190: 16236400
A191: 176 | B191: 2022-08-31 | C191: 45.779999 | D191: 45.830002 | E191: 44.59 | F191: 44.720001 | G191: 23006100 | H191: 43.629498 | I191: 0.9756148708 | J191: 1 | K191: 44.66 | L191: 44.71 | M191: 43.5 | N191: 43.63 | O191: 23006100
A192: 177 | B192: 2022-08-30 | C192: 45.75 | D192: 45.869999 | E192: 44.959999 | F192: 45.240002 | G192: 14279100 | H192: 44.136814 | I192: 0.9756147668 | J192: 1 | K192: 44.63 | L192: 44.75 | M192: 43.86 | N192: 44.14 | O192: 14279100
A193: 178 | B193: 2022-08-29 | C193: 45.720001 | D193: 46 | E193: 45.490002 | F193: 45.709999 | G193: 13425700 | H193: 44.595352 | I193: 0.9756148102 | J193: 1 | K193: 44.61 | L193: 44.88 | M193: 44.38 | N193: 44.6 | O193: 13425700
A194: 179 | B194: 2022-08-26 | C194: 47.080002 | D194: 47.27 | E194: 45.880001 | F194: 45.889999 | G194: 20309800 | H194: 44.770966 | I194: 0.9756148829 | J194: 1 | K194: 45.93 | L194: 46.12 | M194: 44.76 | N194: 44.77 | O194: 20309800
A195: 180 | B195: 2022-08-25 | C195: 47.25 | D195: 47.43 | E195: 46.84 | F195: 47.27 | G195: 23039300 | H195: 46.11731 | I195: 0.9756147662 | J195: 1 | K195: 46.1 | L195: 46.27 | M195: 45.7 | N195: 46.12 | O195: 23039300
A196: 181 | B196: 2022-08-24 | C196: 47.09 | D196: 47.41 | E196: 46.869999 | F196: 47.07 | G196: 14946500 | H196: 45.922188 | I196: 0.9756147865 | J196: 1 | K196: 45.94 | L196: 46.25 | M196: 45.73 | N196: 45.92 | O196: 14946500
A197: 182 | B197: 2022-08-23 | C197: 47.59 | D197: 48.040001 | E197: 47.389999 | F197: 47.41 | G197: 13764600 | H197: 46.253899 | I197: 0.9756148281 | J197: 1 | K197: 46.43 | L197: 46.87 | M197: 46.23 | N197: 46.25 | O197: 13764600
A198: 183 | B198: 2022-08-22 | C198: 48.470001 | D198: 48.5 | E198: 47.52 | F198: 47.709999 | G198: 20534100 | H198: 46.546585 | I198: 0.9756148811 | J198: 1 | K198: 47.29 | L198: 47.32 | M198: 46.36 | N198: 46.55 | O198: 20534100
A199: 184 | B199: 2022-08-19 | C199: 49.009998 | D199: 49.459999 | E199: 48.540001 | F199: 48.700001 | G199: 23130400 | H199: 47.512444 | I199: 0.9756148465 | J199: 1 | K199: 47.81 | L199: 48.25 | M199: 47.36 | N199: 47.51 | O199: 23130400
A200: 185 | B200: 2022-08-18 | C200: 49.799999 | D200: 50 | E200: 49.110001 | F200: 49.369999 | G200: 39999900 | H200: 48.166103 | I200: 0.9756148263 | J200: 1 | K200: 48.59 | L200: 48.78 | M200: 47.91 | N200: 48.17 | O200: 39999900
... 4300 more rows

Sheet CalculationsAndCharts
A1: SupertrendIndicator.xlsm | D1: (SDO)
A2: =InputPriceData!A1 -> Cisco Systems, Inc. (CSCO) -NasdaqGS (Daily)
A4: User Charting Controls | E4: Click to Shift Chart One Bar:
A5: Data Control | C5: FALSE
A6: =InputPriceData!$B$10 -> 8373 | B6: Available Input Data Rows | E6: Earliest: | F6: =OFFSET(InputPriceData!B15,CalculationsAndCharts!A6,0,1,1) -> 1990-02-16
A7: =MAX(A33:A56896) -> 1250 | B7: Available Calculation Rows | E7: Latest: | F7: =OFFSET(InputPriceData!B15,1,0,1,1) -> 2023-05-12
A8: =MIN(AvailableInputRows-DataPanRows,A7) -> 1250 | B8: Logically Available for Calc / Plot | E8: $ Change: | F8: =G33-G34 -> 0.34
A10: Historical Price Windowing Specifications | F10: Click to Shift
A11: 0 | B11: Input Data Offset (Pan) | F11: Points to Plot
A12: 200 | B12: Data Points to Plot (Zoom)
B13: First: | C13: =OFFSET(B32,A12,0,1,1) -> 2022-07-28
B14: ="Last: " & IF(OFFSET(InputPriceData!P15,1+A11,0,1,1)="","",TEXT(OFFSET(InputPriceData!P15,1+A11,0,1,1),"H:MM AM/PM")) -> Last: | C14: =B33 -> 2023-05-12
A15: User Controls
A16: SuperTrend Indicator (S1) Control Values
A17: 10 | B17: ATR Look Back | C17: =2/(A17+1) -> 0.1818181818
A18: 3 | B18: ATR Multiplier
A20: Second SuperTrend Indicator (S2) Control Values
A21: 10 | B21: ATR Look Back | C21: =2/(A21+1) -> 0.1818181818
A22: 4 | B22: ATR Multiplier
A25: Help! I would like to plot data
A26: From | B26: 2016-12-09 | C26: =OFFSET(InputPriceData!$A$15,MATCH(B26,OFFSET(InputPriceData!B15,1,0,InputPriceData!$B$10,1),0),0,1,1)-C27 -> 449 | E26: 90
A27: To | B27: 2018-09-21 | C27: =OFFSET(InputPriceData!$A$15,MATCH(B27,OFFSET(InputPriceData!$B$15,1,0,InputPriceData!$B$10,1),0),0,1,1)-1 -> 1167 | E27: =$A$12-$E$26+1 -> 111
H28: Value @ Cursor => | I28: =OFFSET(A32,$E$27,0,1,1)&"(RR)" -> 111(RR) | J28: =OFFSET($B$32,E27,0,1,1) -> 2022-12-02 | K28: =TEXT(OFFSET(D32,$E$27,0,1,1),"#,##0.00")&"(o)" -> 49.23(o) | L28: =TEXT(OFFSET(E32,$E$27,0,1,1),"#,##0.00")&"(h)" -> 49.84(h) | M28: =TEXT(OFFSET(F32,$E$27,0,1,1),"#,##0.00")&"(l)" -> 48.92(l) | N28: =TEXT(OFFSET(G32,$E$27,0,1,1),"#,##0.00")&"(c)" -> 49.70(c) | O28: =TEXT(OFFSET(C32,$E$27,0,1,1),"#,##0.00,,""M""")&"(v)" -> 12.33M(v)
E29: Cursor ==> | BE29: Work Area For Chart Cursors
B30: =LogicallyAvailableRows -> 1250 | C30: <== Calculation Rel Row Limits ==> | I30: =B30-1 -> 1249 | J30: =$I$30-A17+1 -> 1240 | N30: =J30-1 -> 1239 | P30: =N30-1 -> 1238 | Q30: =$I$30-$A$21+1 -> 1240 | U30: =Q30-1 -> 1239 | W30: =U30-1 -> 1238
A31: Rel Row | J31: SuperTrend Indicator-1 Calculations | Q31: SuperTrend Indicator-2 Calculations | BC31: Used To Color Vol Bars
B32: Date | C32: Volume | D32: Open | E32: High | F32: Low | G32: Close | H32: Median $ | I32: TR | J32: ="S1 ATR("&$A$17&")" -> S1 ATR(10) | K32: dis | L32: ="S1 bTop("&A17&","&A18&")" -> S1 bTop(10,3) | M32: ="S1 bBot("&A17&","&A18&")" -> S1 bBot(10,3) | N32: ="S1 Top("&$A$17&","&$A$18&")" -> S1 Top(10,3) | O32: ="S1 Bot("&$A$17&","&$A$18&")" -> S1 Bot(10,3) | P32: ="S1 STI("&$A$17&","&$A$18&")" -> S1 STI(10,3) | Q32: ="S2 ATR["&$A$21&"]" -> S2 ATR[10] | R32: dis | S32: ="S2 bTop["&$A$21&","&$A22&"]" -> S2 bTop[10,4] | T32: ="S2 bBot["&$A$21&","&$A22&"]" -> S2 bBot[10,4] | U32: ="S2 Top["&$A$21&","&$A22&"]" -> S2 Top[10,4] | V32: ="S2 Bot["&$A$21&","&$A22&"]" -> S2 Bot[10,4] | W32: ="S2 STI["&$A$21&","&$A22&"]" -> S2 STI[10,4] | BC32: Up Vol | BD32: Dn Vol | BE32: Volume Cursor | BF32: =MAX(OFFSET(C33,0,0,A12,1)) -> 66125400 | BG32: Price Chart Cursor | BI32: Indicator01Cursor | BK32: Indicator02Cursor | BM32: Indicator03Cursor | BO32: Indicator04Cursor | BQ32: Indicator05Cursor | BS32: Indicator06Cursor | BU32: Indicator07Cursor | BW32: Indicator08Cursor
A33: 1 | B33: =IF($A33>$A$8,"",OFFSET(InputPriceData!$B$15,$A33+$A$11,0,1,1)) -> 2023-05-12 | C33: =IF($A33>$A$8,"",OFFSET(InputPriceData!$G$15,CalculationsAndCharts!$A33+$A$11,IF($C$5,8,0),1,1)) -> 14094800 | D33: =IF(A33>$A$8,"",OFFSET(InputPriceData!$C$15,CalculationsAndCharts!$A33+$A$11,IF($C$5,8,0),1,1)) -> 46.279999 | E33: =IF(A33>$A$8,"",OFFSET(InputPriceData!$D$15,CalculationsAndCharts!$A33+$A$11,IF($C$5,8,0),1,1)) -> 46.810001 | F33: =IF(A33>$A$8,"",OFFSET(InputPriceData!$E$15,CalculationsAndCharts!$A33+$A$11,IF($C$5,8,0),1,1)) -> 46.279999 | G33: =IF(A33>$A$8,"",OFFSET(InputPriceData!$F$15,CalculationsAndCharts!$A33+$A$11,IF($C$5,8,0),1,1)) -> 46.709999 | H33: =IF($A34>$A$8,NA(),(E33+F33)/2) -> 46.545 | I33: =IF(A33>$I$30,NA(),MAX(E33-F33,ABS(E33-G34),ABS(F33-G34))) -> 0.530002 | J33: =IF($A33>J$30,NA(),IF($A33=J$30,AVERAGE(OFFSET($I33,0,0,$A$17,1)),$C$17*($I33-J34)+J34)) -> 0.6489222313 | K33: =IF($A33>$J$30,NA(),J33*$A$18) -> 1.946766694 | L33: =IF($A33>$J$30,NA(),$H33+K33) -> 48.49176669 | M33: =IF(A33>$J$30,NA(),H33-K33) -> 44.59823331 | N33: =IF($A33>$N$30,NA(),IF($A33=$N$30,L33,IF(OR(L33<N34,$G34>N34),L33,N34))) -> 47.96656836 | O33: =IF($A33>$N$30,NA(),IF($A33=$N$30,M33,IF(OR(M33>O34,$G34<O34),M33,O34))) -> 45.08279207 | P33: =IF($A33>$P$30,NA(),IF($A33=$P$30,N33,IF(P34=N34,IF($G33<=N33,N33,O33),IF(P34=O34,IF($G33>=O33,O33,N33),N33)))) -> 47.96656836 | Q33: =IF($A33>Q$30,NA(),IF($A33=Q$30,AVERAGE(OFFSET($I33,0,0,$A$21,1)),$C$21*($I33-Q34)+Q34)) -> 0.6489222313 | R33: =IF($A33>$Q$30,NA(),Q33*$A$22) -> 2.595688925 | S33: =IF($A33>$Q$30,NA(),$H33+R33) -> 49.14068893 | T33: =IF($A33>$Q$30,NA(),$H33-R33) -> 43.94931107 | U33: =IF($A33>$U$30,NA(),IF($A33=$U$30,S33,IF(OR(S33<U34,$G34>U34),S33,U34))) -> 48.70709098 | V33: =IF($A33>$U$30,NA(),IF($A33=$U$30,T33,IF(OR(T33>V34,$G34<V34),T33,V34))) -> 44.33538925 | W33: =IF($A33>$W$30,NA(),IF($A33=$W$30,U33,IF(W34=U34,IF($G33<=U33,U33,V33),IF(W34=V34,IF($G33>=V33,V33,U33),U33)))) -> 48.70709098 | BC33: =IF(G33>=G34,C33,NA()) -> 14094800 | BD33: =IF(G33<G34,C33,NA()) ->  | BE33: =$E$27 -> 111 | BF33: 0 | BG33: =$E$27 -> 111 | BH33: 34.69167351 | BI33: =$E$27 -> 111 | BJ33: 0.6489222313 | BK33: =$E$27 -> 111 | BL33: -100 | BM33: =$E$27 -> 111 | BO33: =$E$27 -> 111 | BP33: 0 | BQ33: 111 | BS33: 111 | BT33: 0 | BU33: 111 | BV33: 0 | BW33: 111
A34: 2 | B34: =IF($A34>$A$8,"",OFFSET(InputPriceData!$B$15,$A34+$A$11,0,1,1)) -> 2023-05-11 | C34: =IF($A34>$A$8,"",OFFSET(InputPriceData!$G$15,CalculationsAndCharts!$A34+$A$11,IF($C$5,8,0),1,1)) -> 12521900 | D34: =IF(A34>$A$8,"",OFFSET(InputPriceData!$C$15,CalculationsAndCharts!$A34+$A$11,IF($C$5,8,0),1,1)) -> 46.830002 | E34: =IF(A34>$A$8,"",OFFSET(InputPriceData!$D$15,CalculationsAndCharts!$A34+$A$11,IF($C$5,8,0),1,1)) -> 46.849998 | F34: =IF(A34>$A$8,"",OFFSET(InputPriceData!$E$15,CalculationsAndCharts!$A34+$A$11,IF($C$5,8,0),1,1)) -> 46.200001 | G34: =IF(A34>$A$8,"",OFFSET(InputPriceData!$F$15,CalculationsAndCharts!$A34+$A$11,IF($C$5,8,0),1,1)) -> 46.369999 | H34: =IF($A35>$A$8,NA(),(E34+F34)/2) -> 46.5249995 | I34: =IF(A34>$I$30,NA(),MAX(E34-F34,ABS(E34-G35),ABS(F34-G35))) -> 0.649997 | J34: =IF(A34>$J$30,NA(),IF(A34=$J$30,AVERAGE(OFFSET(I34,0,0,$A$17,1)),$C$17*(I34-J35)+J35)) -> 0.6753489494 | K34: =IF(A34>$J$30,NA(),J34*$A$18) -> 2.026046848 | L34: =IF(A34>$J$30,NA(),H34+K34) -> 48.55104635 | M34: =IF(A34>$J$30,NA(),H34-K34) -> 44.49895265 | N34: =IF($A34>$N$30,NA(),IF($A34=$N$30,L34,IF(OR(L34<N35,$G35>N35),L34,N35))) -> 47.96656836 | O34: =IF($A34>$N$30,NA(),IF($A34=$N$30,M34,IF(OR(M34>O35,$G35<O35),M34,O35))) -> 45.08279207 | P34: =IF($A34>$P$30,NA(),IF($A34=$P$30,N34,IF(P35=N35,IF($G34<=N34,N34,O34),IF(P35=O35,IF($G34>=O34,O34,N34),N34)))) -> 47.96656836 | Q34: =IF($A34>Q$30,NA(),IF($A34=Q$30,AVERAGE(OFFSET($I34,0,0,$A$21,1)),$C$21*($I34-Q35)+Q35)) -> 0.6753489494 | R34: =IF($A34>$Q$30,NA(),Q34*$A$22) -> 2.701395797 | S34: =IF($A34>$Q$30,NA(),$H34+R34) -> 49.2263953 | T34: =IF($A34>$Q$30,NA(),$H34-R34) -> 43.8236037 | U34: =IF($A34>$U$30,NA(),IF($A34=$U$30,S34,IF(OR(S34<U35,$G35>U35),S34,U35))) -> 48.70709098 | V34: =IF($A34>$U$30,NA(),IF($A34=$U$30,T34,IF(OR(T34>V35,$G35<V35),T34,V35))) -> 44.33538925 | W34: =IF($A34>$W$30,NA(),IF($A34=$W$30,U34,IF(W35=U35,IF($G34<=U34,U34,V34),IF(W35=V35,IF($G34>=V34,V34,U34),U34)))) -> 48.70709098 | BC34: =IF(G34>=G35,C34,NA()) ->  | BD34: =IF(G34<G35,C34,NA()) -> 12521900 | BE34: =$E$27 -> 111 | BF34: =CEILING(BF32,10^INT(LOG10(BF32))/8) -> 66250000 | BG34: =$E$27 -> 111 | BH34: 56.51109937 | BI34: =$E$27 -> 111 | BJ34: 1.372720501 | BK34: =$E$27 -> 111 | BL34: 100 | BM34: 111 | BN34: 0 | BO34: 111 | BP34: 100 | BQ34: 111 | BR34: 0 | BS34: 111 | BT34: 0 | BU34: 111 | BV34: 0 | BW34: 111 | BX34: 0
A35: 3 | B35: =IF(A35>$A$8,"",OFFSET(InputPriceData!B$15,$A35+$A$11,0,1,1)) -> 2023-05-10 | C35: =IF(A35>$A$8,"",OFFSET(InputPriceData!G$15,CalculationsAndCharts!$A35+$A$11,IF($C$5,8,0),1,1)) -> 15625100 | D35: =IF(A35>$A$8,"",OFFSET(InputPriceData!C$15,CalculationsAndCharts!$A35+$A$11,IF($C$5,8,0),1,1)) -> 46.700001 | E35: =IF(A35>$A$8,"",OFFSET(InputPriceData!D$15,CalculationsAndCharts!$A35+$A$11,IF($C$5,8,0),1,1)) -> 46.93 | F35: =IF(A35>$A$8,"",OFFSET(InputPriceData!E$15,CalculationsAndCharts!$A35+$A$11,IF($C$5,8,0),1,1)) -> 46.150002 | G35: =IF(A35>$A$8,"",OFFSET(InputPriceData!F$15,CalculationsAndCharts!$A35+$A$11,IF($C$5,8,0),1,1)) -> 46.709999 | H35: 46.540001 | I35: 0.779998 | J35: 0.6809827159 | K35: 2.042948148 | L35: 48.58294915 | M35: 44.49705285 | N35: 47.96656836 | O35: 45.08279207 | P35: 47.96656836 | Q35: 0.6809827159 | R35: 2.723930864 | S35: 49.26393186 | T35: 43.81607014 | U35: 48.70709098 | V35: 44.33538925 | W35: 48.70709098 | BC35: 15625100
A36: 4 | B36: =IF(A36>$A$8,"",OFFSET(InputPriceData!B$15,$A36+$A$11,0,1,1)) -> 2023-05-09 | C36: =IF(A36>$A$8,"",OFFSET(InputPriceData!G$15,CalculationsAndCharts!$A36+$A$11,IF($C$5,8,0),1,1)) -> 15221900 | D36: =IF(A36>$A$8,"",OFFSET(InputPriceData!C$15,CalculationsAndCharts!$A36+$A$11,IF($C$5,8,0),1,1)) -> 45.98 | E36: =IF(A36>$A$8,"",OFFSET(InputPriceData!D$15,CalculationsAndCharts!$A36+$A$11,IF($C$5,8,0),1,1)) -> 46.52 | F36: =IF(A36>$A$8,"",OFFSET(InputPriceData!E$15,CalculationsAndCharts!$A36+$A$11,IF($C$5,8,0),1,1)) -> 45.919998 | G36: =IF(A36>$A$8,"",OFFSET(InputPriceData!F$15,CalculationsAndCharts!$A36+$A$11,IF($C$5,8,0),1,1)) -> 46.470001 | H36: 46.219999 | I36: 0.600002 | J36: 0.6589793194 | K36: 1.976937958 | L36: 48.19693696 | M36: 44.24306104 | N36: 47.96656836 | O36: 45.08279207 | P36: 47.96656836 | Q36: 0.6589793194 | R36: 2.635917278 | S36: 48.85591628 | T36: 43.58408172 | U36: 48.70709098 | V36: 44.33538925 | W36: 48.70709098 | BC36: 15221900
A37: 5 | B37: =IF(A37>$A$8,"",OFFSET(InputPriceData!B$15,$A37+$A$11,0,1,1)) -> 2023-05-08 | C37: =IF(A37>$A$8,"",OFFSET(InputPriceData!G$15,CalculationsAndCharts!$A37+$A$11,IF($C$5,8,0),1,1)) -> 12000000 | D37: =IF(A37>$A$8,"",OFFSET(InputPriceData!C$15,CalculationsAndCharts!$A37+$A$11,IF($C$5,8,0),1,1)) -> 46.439999 | E37: =IF(A37>$A$8,"",OFFSET(InputPriceData!D$15,CalculationsAndCharts!$A37+$A$11,IF($C$5,8,0),1,1)) -> 46.52 | F37: =IF(A37>$A$8,"",OFFSET(InputPriceData!E$15,CalculationsAndCharts!$A37+$A$11,IF($C$5,8,0),1,1)) -> 46.09 | G37: =IF(A37>$A$8,"",OFFSET(InputPriceData!F$15,CalculationsAndCharts!$A37+$A$11,IF($C$5,8,0),1,1)) -> 46.34 | H37: 46.305 | I37: 0.43 | J37: 0.6720853904 | K37: 2.016256171 | L37: 48.32125617 | M37: 44.28874383 | N37: 47.96656836 | O37: 45.08279207 | P37: 47.96656836 | Q37: 0.6720853904 | R37: 2.688341562 | S37: 48.99334156 | T37: 43.61665844 | U37: 48.70709098 | V37: 44.33538925 | W37: 48.70709098 | BC37: 12000000
A38: 6 | B38: =IF(A38>$A$8,"",OFFSET(InputPriceData!B$15,$A38+$A$11,0,1,1)) -> 2023-05-05 | C38: =IF(A38>$A$8,"",OFFSET(InputPriceData!G$15,CalculationsAndCharts!$A38+$A$11,IF($C$5,8,0),1,1)) -> 14315100 | D38: =IF(A38>$A$8,"",OFFSET(InputPriceData!C$15,CalculationsAndCharts!$A38+$A$11,IF($C$5,8,0),1,1)) -> 46.119999 | E38: =IF(A38>$A$8,"",OFFSET(InputPriceData!D$15,CalculationsAndCharts!$A38+$A$11,IF($C$5,8,0),1,1)) -> 46.360001 | F38: =IF(A38>$A$8,"",OFFSET(InputPriceData!E$15,CalculationsAndCharts!$A38+$A$11,IF($C$5,8,0),1,1)) -> 45.919998 | G38: =IF(A38>$A$8,"",OFFSET(InputPriceData!F$15,CalculationsAndCharts!$A38+$A$11,IF($C$5,8,0),1,1)) -> 46.25 | H38: 46.1399995 | I38: 0.66 | J38: 0.7258821438 | K38: 2.177646431 | L38: 48.31764593 | M38: 43.96235307 | N38: 47.96656836 | O38: 45.08279207 | P38: 47.96656836 | Q38: 0.7258821438 | R38: 2.903528575 | S38: 49.04352808 | T38: 43.23647092 | U38: 48.70709098 | V38: 44.33538925 | W38: 48.70709098 | BC38: 14315100
A39: 7 | B39: =IF(A39>$A$8,"",OFFSET(InputPriceData!B$15,$A39+$A$11,0,1,1)) -> 2023-05-04 | C39: =IF(A39>$A$8,"",OFFSET(InputPriceData!G$15,CalculationsAndCharts!$A39+$A$11,IF($C$5,8,0),1,1)) -> 17748900 | D39: =IF(A39>$A$8,"",OFFSET(InputPriceData!C$15,CalculationsAndCharts!$A39+$A$11,IF($C$5,8,0),1,1)) -> 45.77 | E39: =IF(A39>$A$8,"",OFFSET(InputPriceData!D$15,CalculationsAndCharts!$A39+$A$11,IF($C$5,8,0),1,1)) -> 45.93 | F39: =IF(A39>$A$8,"",OFFSET(InputPriceData!E$15,CalculationsAndCharts!$A39+$A$11,IF($C$5,8,0),1,1)) -> 45.560001 | G39: =IF(A39>$A$8,"",OFFSET(InputPriceData!F$15,CalculationsAndCharts!$A39+$A$11,IF($C$5,8,0),1,1)) -> 45.700001 | H39: 45.7450005 | I39: 0.399998 | J39: 0.7405226202 | K39: 2.221567861 | L39: 47.96656836 | M39: 43.52343264 | N39: 47.96656836 | O39: 45.08279207 | P39: 47.96656836 | Q39: 0.7405226202 | R39: 2.962090481 | S39: 48.70709098 | T39: 42.78291002 | U39: 48.70709098 | V39: 44.33538925 | W39: 48.70709098 | BD39: 17748900
A40: 8 | B40: =IF(A40>$A$8,"",OFFSET(InputPriceData!B$15,$A40+$A$11,0,1,1)) -> 2023-05-03 | C40: =IF(A40>$A$8,"",OFFSET(InputPriceData!G$15,CalculationsAndCharts!$A40+$A$11,IF($C$5,8,0),1,1)) -> 20765700 | D40: =IF(A40>$A$8,"",OFFSET(InputPriceData!C$15,CalculationsAndCharts!$A40+$A$11,IF($C$5,8,0),1,1)) -> 46.419998 | E40: =IF(A40>$A$8,"",OFFSET(InputPriceData!D$15,CalculationsAndCharts!$A40+$A$11,IF($C$5,8,0),1,1)) -> 46.549999 | F40: =IF(A40>$A$8,"",OFFSET(InputPriceData!E$15,CalculationsAndCharts!$A40+$A$11,IF($C$5,8,0),1,1)) -> 45.860001 | G40: =IF(A40>$A$8,"",OFFSET(InputPriceData!F$15,CalculationsAndCharts!$A40+$A$11,IF($C$5,8,0),1,1)) -> 45.959999 | H40: 46.205 | I40: 0.689998 | J40: 0.816194758 | K40: 2.448584274 | L40: 48.65358427 | M40: 43.75641573 | N40: 48.65358427 | O40: 45.08279207 | P40: 48.65358427 | Q40: 0.816194758 | R40: 3.264779032 | S40: 49.46977903 | T40: 42.94022097 | U40: 49.46977903 | V40: 44.33538925 | W40: 49.46977903 | BC40: =IF(G40>=G41,C40,NA()) ->  | BD40: =IF(G40<G41,C40,NA()) -> 20765700
A41: 9 | B41: =IF(A41>$A$8,"",OFFSET(InputPriceData!B$15,$A41+$A$11,0,1,1)) -> 2023-05-02 | C41: =IF(A41>$A$8,"",OFFSET(InputPriceData!G$15,CalculationsAndCharts!$A41+$A$11,IF($C$5,8,0),1,1)) -> 20175100 | D41: =IF(A41>$A$8,"",OFFSET(InputPriceData!C$15,CalculationsAndCharts!$A41+$A$11,IF($C$5,8,0),1,1)) -> 46.91 | E41: =IF(A41>$A$8,"",OFFSET(InputPriceData!D$15,CalculationsAndCharts!$A41+$A$11,IF($C$5,8,0),1,1)) -> 47.080002 | F41: =IF(A41>$A$8,"",OFFSET(InputPriceData!E$15,CalculationsAndCharts!$A41+$A$11,IF($C$5,8,0),1,1)) -> 46.060001 | G41: =IF(A41>$A$8,"",OFFSET(InputPriceData!F$15,CalculationsAndCharts!$A41+$A$11,IF($C$5,8,0),1,1)) -> 46.360001 | H41: 46.5700015 | I41: 1.279999 | J41: 0.844238482 | K41: 2.532715446 | L41: 49.10271695 | M41: 44.03728605 | N41: 48.95003023 | O41: 45.08279207 | P41: 48.95003023 | Q41: 0.844238482 | R41: 3.376953928 | S41: 49.94695543 | T41: 43.19304757 | U41: 49.80504031 | V41: 44.33538925 | W41: 49.80504031 | BD41: 20175100
A42: 10 | B42: =IF(A42>$A$8,"",OFFSET(InputPriceData!B$15,$A42+$A$11,0,1,1)) -> 2023-05-01 | C42: =IF(A42>$A$8,"",OFFSET(InputPriceData!G$15,CalculationsAndCharts!$A42+$A$11,IF($C$5,8,0),1,1)) -> 13122300 | D42: =IF(A42>$A$8,"",OFFSET(InputPriceData!C$15,CalculationsAndCharts!$A42+$A$11,IF($C$5,8,0),1,1)) -> 47.200001 | E42: =IF(A42>$A$8,"",OFFSET(InputPriceData!D$15,CalculationsAndCharts!$A42+$A$11,IF($C$5,8,0),1,1)) -> 47.52 | F42: =IF(A42>$A$8,"",OFFSET(InputPriceData!E$15,CalculationsAndCharts!$A42+$A$11,IF($C$5,8,0),1,1)) -> 47.130001 | G42: =IF(A42>$A$8,"",OFFSET(InputPriceData!F$15,CalculationsAndCharts!$A42+$A$11,IF($C$5,8,0),1,1)) -> 47.34 | H42: 47.3250005 | I42: 0.389999 | J42: 0.7474028114 | K42: 2.242208434 | L42: 49.56720893 | M42: 45.08279207 | N42: 48.95003023 | O42: 45.08279207 | P42: 48.95003023 | Q42: 0.7474028114 | R42: 2.989611246 | S42: 50.31461175 | T42: 44.33538925 | U42: 49.80504031 | V42: 44.33538925 | W42: 49.80504031 | BC42: 13122300
A43: 11 | B43: =IF(A43>$A$8,"",OFFSET(InputPriceData!B$15,$A43+$A$11,0,1,1)) -> 2023-04-28 | C43: =IF(A43>$A$8,"",OFFSET(InputPriceData!G$15,CalculationsAndCharts!$A43+$A$11,IF($C$5,8,0),1,1)) -> 19662000 | D43: =IF(A43>$A$8,"",OFFSET(InputPriceData!C$15,CalculationsAndCharts!$A43+$A$11,IF($C$5,8,0),1,1)) -> 46.689999 | E43: =IF(A43>$A$8,"",OFFSET(InputPriceData!D$15,CalculationsAndCharts!$A43+$A$11,IF($C$5,8,0),1,1)) -> 47.259998 | F43: =IF(A43>$A$8,"",OFFSET(InputPriceData!E$15,CalculationsAndCharts!$A43+$A$11,IF($C$5,8,0),1,1)) -> 46.610001 | G43: =IF(A43>$A$8,"",OFFSET(InputPriceData!F$15,CalculationsAndCharts!$A43+$A$11,IF($C$5,8,0),1,1)) -> 47.25 | H43: 46.9349995 | I43: 0.699997 | J43: 0.8268258806 | K43: 2.480477642 | L43: 49.41547714 | M43: 44.45452186 | N43: 48.95003023 | O43: 44.45452186 | P43: 48.95003023 | Q43: 0.8268258806 | R43: 3.307303522 | S43: 50.24230302 | T43: 43.62769598 | U43: 49.80504031 | V43: 43.62769598 | W43: 49.80504031 | BC43: 19662000
A44: 12 | B44: =IF(A44>$A$8,"",OFFSET(InputPriceData!B$15,$A44+$A$11,0,1,1)) -> 2023-04-27 | C44: =IF(A44>$A$8,"",OFFSET(InputPriceData!G$15,CalculationsAndCharts!$A44+$A$11,IF($C$5,8,0),1,1)) -> 22845400 | D44: =IF(A44>$A$8,"",OFFSET(InputPriceData!C$15,CalculationsAndCharts!$A44+$A$11,IF($C$5,8,0),1,1)) -> 46.779999 | E44: =IF(A44>$A$8,"",OFFSET(InputPriceData!D$15,CalculationsAndCharts!$A44+$A$11,IF($C$5,8,0),1,1)) -> 46.799999 | F44: =IF(A44>$A$8,"",OFFSET(InputPriceData!E$15,CalculationsAndCharts!$A44+$A$11,IF($C$5,8,0),1,1)) -> 45.970001 | G44: =IF(A44>$A$8,"",OFFSET(InputPriceData!F$15,CalculationsAndCharts!$A44+$A$11,IF($C$5,8,0),1,1)) -> 46.560001 | H44: 46.385 | I44: 0.829998 | J44: 0.8550100763 | K44: 2.565030229 | L44: 48.95003023 | M44: 43.81996977 | N44: 48.95003023 | O44: 44.40458334 | P44: 48.95003023 | Q44: 0.8550100763 | R44: 3.420040305 | S44: 49.80504031 | T44: 42.96495969 | U44: 49.80504031 | V44: 43.49944429 | W44: 49.80504031 | BC44: 22845400
A45: 13 | B45: =IF(A45>$A$8,"",OFFSET(InputPriceData!B$15,$A45+$A$11,0,1,1)) -> 2023-04-26 | C45: =IF(A45>$A$8,"",OFFSET(InputPriceData!G$15,CalculationsAndCharts!$A45+$A$11,IF($C$5,8,0),1,1)) -> 22390500 | D45: =IF(A45>$A$8,"",OFFSET(InputPriceData!C$15,CalculationsAndCharts!$A45+$A$11,IF($C$5,8,0),1,1)) -> 46.759998 | E45: =IF(A45>$A$8,"",OFFSET(InputPriceData!D$15,CalculationsAndCharts!$A45+$A$11,IF($C$5,8,0),1,1)) -> 46.849998 | F45: =IF(A45>$A$8,"",OFFSET(InputPriceData!E$15,CalculationsAndCharts!$A45+$A$11,IF($C$5,8,0),1,1)) -> 46.43 | G45: =IF(A45>$A$8,"",OFFSET(InputPriceData!F$15,CalculationsAndCharts!$A45+$A$11,IF($C$5,8,0),1,1)) -> 46.540001 | H45: 46.639999 | I45: 0.66 | J45: 0.8605683154 | K45: 2.581704946 | L45: 49.22170395 | M45: 44.05829405 | N45: 49.22170395 | O45: 44.40458334 | P45: 49.22170395 | Q45: 0.8605683154 | R45: 3.442273262 | S45: 50.08227226 | T45: 43.19772574 | U45: 50.08227226 | V45: 43.49944429 | W45: 50.08227226 | BC45: =IF(G45>=G46,C45,NA()) ->  | BD45: =IF(G45<G46,C45,NA()) -> 22390500
A46: 14 | B46: =IF(A46>$A$8,"",OFFSET(InputPriceData!B$15,$A46+$A$11,0,1,1)) -> 2023-04-25 | C46: =IF(A46>$A$8,"",OFFSET(InputPriceData!G$15,CalculationsAndCharts!$A46+$A$11,IF($C$5,8,0),1,1)) -> 20281600 | D46: =IF(A46>$A$8,"",OFFSET(InputPriceData!C$15,CalculationsAndCharts!$A46+$A$11,IF($C$5,8,0),1,1)) -> 47.369999 | E46: =IF(A46>$A$8,"",OFFSET(InputPriceData!D$15,CalculationsAndCharts!$A46+$A$11,IF($C$5,8,0),1,1)) -> 47.43 | F46: =IF(A46>$A$8,"",OFFSET(InputPriceData!E$15,CalculationsAndCharts!$A46+$A$11,IF($C$5,8,0),1,1)) -> 46.810001 | G46: =IF(A46>$A$8,"",OFFSET(InputPriceData!F$15,CalculationsAndCharts!$A46+$A$11,IF($C$5,8,0),1,1)) -> 47.09 | H46: 47.1200005 | I46: 0.619999 | J46: 0.9051390522 | K46: 2.715417157 | L46: 49.83541766 | M46: 44.40458334 | N46: 49.83541766 | O46: 44.40458334 | P46: 49.83541766 | Q46: 0.9051390522 | R46: 3.620556209 | S46: 50.74055671 | T46: 43.49944429 | U46: 50.74055671 | V46: 43.49944429 | W46: 50.74055671 | BD46: 20281600
A47: 15 | B47: =IF(A47>$A$8,"",OFFSET(InputPriceData!B$15,$A47+$A$11,0,1,1)) -> 2023-04-24 | C47: =IF(A47>$A$8,"",OFFSET(InputPriceData!G$15,CalculationsAndCharts!$A47+$A$11,IF($C$5,8,0),1,1)) -> 17359900 | D47: =IF(A47>$A$8,"",OFFSET(InputPriceData!C$15,CalculationsAndCharts!$A47+$A$11,IF($C$5,8,0),1,1)) -> 47.049999 | E47: =IF(A47>$A$8,"",OFFSET(InputPriceData!D$15,CalculationsAndCharts!$A47+$A$11,IF($C$5,8,0),1,1)) -> 47.450001 | F47: =IF(A47>$A$8,"",OFFSET(InputPriceData!E$15,CalculationsAndCharts!$A47+$A$11,IF($C$5,8,0),1,1)) -> 47 | G47: =IF(A47>$A$8,"",OFFSET(InputPriceData!F$15,CalculationsAndCharts!$A47+$A$11,IF($C$5,8,0),1,1)) -> 47.389999 | H47: 47.2250005 | I47: 0.450001 | J47: 0.9685035083 | K47: 2.905510525 | L47: 50.13051102 | M47: 44.31948998 | N47: 49.93117936 | O47: 44.31948998 | P47: 49.93117936 | Q47: 0.9685035083 | R47: 3.874014033 | S47: 51.09901453 | T47: 43.35098647 | U47: 51.01490565 | V47: 43.35098647 | W47: 51.01490565 | BC47: 17359900
A48: 16 | B48: =IF(A48>$A$8,"",OFFSET(InputPriceData!B$15,$A48+$A$11,0,1,1)) -> 2023-04-21 | C48: =IF(A48>$A$8,"",OFFSET(InputPriceData!G$15,CalculationsAndCharts!$A48+$A$11,IF($C$5,8,0),1,1)) -> 20861000 | D48: =IF(A48>$A$8,"",OFFSET(InputPriceData!C$15,CalculationsAndCharts!$A48+$A$11,IF($C$5,8,0),1,1)) -> 46.57 | E48: =IF(A48>$A$8,"",OFFSET(InputPriceData!D$15,CalculationsAndCharts!$A48+$A$11,IF($C$5,8,0),1,1)) -> 47.119999 | F48: =IF(A48>$A$8,"",OFFSET(InputPriceData!E$15,CalculationsAndCharts!$A48+$A$11,IF($C$5,8,0),1,1)) -> 46.240002 | G48: =IF(A48>$A$8,"",OFFSET(InputPriceData!F$15,CalculationsAndCharts!$A48+$A$11,IF($C$5,8,0),1,1)) -> 47.029999 | H48: 46.6800005 | I48: 0.879997 | J48: 1.083726288 | K48: 3.251178864 | L48: 49.93117936 | M48: 43.42882164 | N48: 49.93117936 | O48: 43.61800311 | P48: 49.93117936 | Q48: 1.083726288 | R48: 4.334905152 | S48: 51.01490565 | T48: 42.34509535 | U48: 51.01490565 | V48: 42.48900365 | W48: 51.01490565 | BC48: 20861000
A49: 17 | B49: =IF(A49>$A$8,"",OFFSET(InputPriceData!B$15,$A49+$A$11,0,1,1)) -> 2023-04-20 | C49: =IF(A49>$A$8,"",OFFSET(InputPriceData!G$15,CalculationsAndCharts!$A49+$A$11,IF($C$5,8,0),1,1)) -> 39769400 | D49: =IF(A49>$A$8,"",OFFSET(InputPriceData!C$15,CalculationsAndCharts!$A49+$A$11,IF($C$5,8,0),1,1)) -> 47.610001 | E49: =IF(A49>$A$8,"",OFFSET(InputPriceData!D$15,CalculationsAndCharts!$A49+$A$11,IF($C$5,8,0),1,1)) -> 47.650002 | F49: =IF(A49>$A$8,"",OFFSET(InputPriceData!E$15,CalculationsAndCharts!$A49+$A$11,IF($C$5,8,0),1,1)) -> 46.360001 | G49: =IF(A49>$A$8,"",OFFSET(InputPriceData!F$15,CalculationsAndCharts!$A49+$A$11,IF($C$5,8,0),1,1)) -> 46.580002 | H49: 47.0050015 | I49: 1.68 | J49: 1.128999463 | K49: 3.386998389 | L49: 50.39199989 | M49: 43.61800311 | N49: 50.39199989 | O49: 43.61800311 | P49: 50.39199989 | Q49: 1.128999463 | R49: 4.515997852 | S49: 51.52099935 | T49: 42.48900365 | U49: 51.52099935 | V49: 42.48900365 | W49: 51.52099935 | BD49: 39769400
A50: 18 | B50: =IF(A50>$A$8,"",OFFSET(InputPriceData!B$15,$A50+$A$11,0,1,1)) -> 2023-04-19 | C50: =IF(A50>$A$8,"",OFFSET(InputPriceData!G$15,CalculationsAndCharts!$A50+$A$11,IF($C$5,8,0),1,1)) -> 30466700 | D50: =IF(A50>$A$8,"",OFFSET(InputPriceData!C$15,CalculationsAndCharts!$A50+$A$11,IF($C$5,8,0),1,1)) -> 49.23 | E50: =IF(A50>$A$8,"",OFFSET(InputPriceData!D$15,CalculationsAndCharts!$A50+$A$11,IF($C$5,8,0),1,1)) -> 49.27 | F50: =IF(A50>$A$8,"",OFFSET(InputPriceData!E$15,CalculationsAndCharts!$A50+$A$11,IF($C$5,8,0),1,1)) -> 47.990002 | G50: =IF(A50>$A$8,"",OFFSET(InputPriceData!F$15,CalculationsAndCharts!$A50+$A$11,IF($C$5,8,0),1,1)) -> 48.040001 | H50: 48.630001 | I50: 2.319999 | J50: 1.006554899 | K50: 3.019664698 | L50: 51.6496657 | M50: 45.6103363 | N50: 51.6496657 | O50: 49.98680196 | P50: 51.6496657 | Q50: 1.006554899 | R50: 4.026219597 | S50: 52.6562206 | T50: 44.6037814 | U50: 52.6562206 | V50: 49.22406878 | W50: 52.6562206 | BD50: 30466700
A51: 19 | B51: =IF(A51>$A$8,"",OFFSET(InputPriceData!B$15,$A51+$A$11,0,1,1)) -> 2023-04-18 | C51: =IF(A51>$A$8,"",OFFSET(InputPriceData!G$15,CalculationsAndCharts!$A51+$A$11,IF($C$5,8,0),1,1)) -> 15203600 | D51: =IF(A51>$A$8,"",OFFSET(InputPriceData!C$15,CalculationsAndCharts!$A51+$A$11,IF($C$5,8,0),1,1)) -> 50.380001 | E51: =IF(A51>$A$8,"",OFFSET(InputPriceData!D$15,CalculationsAndCharts!$A51+$A$11,IF($C$5,8,0),1,1)) -> 50.689999 | F51: =IF(A51>$A$8,"",OFFSET(InputPriceData!E$15,CalculationsAndCharts!$A51+$A$11,IF($C$5,8,0),1,1)) -> 50.07 | G51: =IF(A51>$A$8,"",OFFSET(InputPriceData!F$15,CalculationsAndCharts!$A51+$A$11,IF($C$5,8,0),1,1)) -> 50.310001 | H51: 50.3799995 | I51: 0.619999 | J51: 0.7146784323 | K51: 2.144035297 | L51: 52.5240348 | M51: 48.2359642 | N51: 52.5240348 | O51: 49.98680196 | P51: 49.98680196 | Q51: 0.7146784323 | R51: 2.858713729 | S51: 53.23871323 | T51: 47.52128577 | U51: 53.23871323 | V51: 49.22406878 | W51: 49.22406878 | BC51: 15203600
A52: 20 | B52: =IF(A52>$A$8,"",OFFSET(InputPriceData!B$15,$A52+$A$11,0,1,1)) -> 2023-04-17 | C52: =IF(A52>$A$8,"",OFFSET(InputPriceData!G$15,CalculationsAndCharts!$A52+$A$11,IF($C$5,8,0),1,1)) -> 12042300 | D52: =IF(A52>$A$8,"",OFFSET(InputPriceData!C$15,CalculationsAndCharts!$A52+$A$11,IF($C$5,8,0),1,1)) -> 50.560001 | E52: =IF(A52>$A$8,"",OFFSET(InputPriceData!D$15,CalculationsAndCharts!$A52+$A$11,IF($C$5,8,0),1,1)) -> 50.68 | F52: =IF(A52>$A$8,"",OFFSET(InputPriceData!E$15,CalculationsAndCharts!$A52+$A$11,IF($C$5,8,0),1,1)) -> 50.049999 | G52: =IF(A52>$A$8,"",OFFSET(InputPriceData!F$15,CalculationsAndCharts!$A52+$A$11,IF($C$5,8,0),1,1)) -> 50.279999 | H52: 50.3649995 | I52: 0.630001 | J52: 0.7357183062 | K52: 2.207154919 | L52: 52.57215442 | M52: 48.15784458 | N52: 52.57215442 | O52: 49.98680196 | P52: 49.98680196 | Q52: 0.7357183062 | R52: 2.942873225 | S52: 53.30787272 | T52: 47.42212628 | U52: 53.30787272 | V52: 49.22406878 | W52: 49.22406878 | BD52: 12042300
A53: 21 | B53: =IF(A53>$A$8,"",OFFSET(InputPriceData!B$15,$A53+$A$11,0,1,1)) -> 2023-04-14 | C53: =IF(A53>$A$8,"",OFFSET(InputPriceData!G$15,CalculationsAndCharts!$A53+$A$11,IF($C$5,8,0),1,1)) -> 12360100 | D53: =IF(A53>$A$8,"",OFFSET(InputPriceData!C$15,CalculationsAndCharts!$A53+$A$11,IF($C$5,8,0),1,1)) -> 50.52 | E53: =IF(A53>$A$8,"",OFFSET(InputPriceData!D$15,CalculationsAndCharts!$A53+$A$11,IF($C$5,8,0),1,1)) -> 50.849998 | F53: =IF(A53>$A$8,"",OFFSET(InputPriceData!E$15,CalculationsAndCharts!$A53+$A$11,IF($C$5,8,0),1,1)) -> 50.200001 | G53: =IF(A53>$A$8,"",OFFSET(InputPriceData!F$15,CalculationsAndCharts!$A53+$A$11,IF($C$5,8,0),1,1)) -> 50.540001 | H53: 50.5249995 | I53: 0.649997 | J53: 0.7592110409 | K53: 2.277633123 | L53: 52.80263262 | M53: 48.24736638 | N53: 52.80263262 | O53: 49.98680196 | P53: 49.98680196 | Q53: 0.7592110409 | R53: 3.036844164 | S53: 53.56184366 | T53: 47.48815534 | U53: 53.56184366 | V53: 49.22406878 | W53: 49.22406878 | BD53: 12360100
A54: 22 | B54: =IF(A54>$A$8,"",OFFSET(InputPriceData!B$15,$A54+$A$11,0,1,1)) -> 2023-04-13 | C54: =IF(A54>$A$8,"",OFFSET(InputPriceData!G$15,CalculationsAndCharts!$A54+$A$11,IF($C$5,8,0),1,1)) -> 15451700 | D54: =IF(A54>$A$8,"",OFFSET(InputPriceData!C$15,CalculationsAndCharts!$A54+$A$11,IF($C$5,8,0),1,1)) -> 50.209999 | E54: =IF(A54>$A$8,"",OFFSET(InputPriceData!D$15,CalculationsAndCharts!$A54+$A$11,IF($C$5,8,0),1,1)) -> 50.830002 | F54: =IF(A54>$A$8,"",OFFSET(InputPriceData!E$15,CalculationsAndCharts!$A54+$A$11,IF($C$5,8,0),1,1)) -> 50.09 | G54: =IF(A54>$A$8,"",OFFSET(InputPriceData!F$15,CalculationsAndCharts!$A54+$A$11,IF($C$5,8,0),1,1)) -> 50.799999 | H54: 50.460001 | I54: 0.740002 | J54: 0.7834808277 | K54: 2.350442483 | L54: 52.81044348 | M54: 48.10955852 | N54: 52.81044348 | O54: 49.98680196 | P54: 49.98680196 | Q54: 0.7834808277 | R54: 3.133923311 | S54: 53.59392431 | T54: 47.32607769 | U54: 53.59392431 | V54: 49.22406878 | W54: 49.22406878 | BC54: 15451700
A55: 23 | B55: =IF(A55>$A$8,"",OFFSET(InputPriceData!B$15,$A55+$A$11,0,1,1)) -> 2023-04-12 | C55: =IF(A55>$A$8,"",OFFSET(InputPriceData!G$15,CalculationsAndCharts!$A55+$A$11,IF($C$5,8,0),1,1)) -> 16100700 | D55: =IF(A55>$A$8,"",OFFSET(InputPriceData!C$15,CalculationsAndCharts!$A55+$A$11,IF($C$5,8,0),1,1)) -> 50.82 | E55: =IF(A55>$A$8,"",OFFSET(InputPriceData!D$15,CalculationsAndCharts!$A55+$A$11,IF($C$5,8,0),1,1)) -> 50.950001 | F55: =IF(A55>$A$8,"",OFFSET(InputPriceData!E$15,CalculationsAndCharts!$A55+$A$11,IF($C$5,8,0),1,1)) -> 50.049999 | G55: =IF(A55>$A$8,"",OFFSET(InputPriceData!F$15,CalculationsAndCharts!$A55+$A$11,IF($C$5,8,0),1,1)) -> 50.110001 | H55: 50.5 | I55: 0.900002 | J55: 0.7931427895 | K55: 2.379428368 | L55: 52.87942837 | M55: 48.12057163 | N55: 52.83954533 | O55: 49.98680196 | P55: 49.98680196 | Q55: 0.7931427895 | R55: 3.172571158 | S55: 53.67257116 | T55: 47.32742884 | U55: 53.67257116 | V55: 49.22406878 | W55: 49.22406878 | BD55: 16100700
A56: 24 | B56: =IF(A56>$A$8,"",OFFSET(InputPriceData!B$15,$A56+$A$11,0,1,1)) -> 2023-04-11 | C56: =IF(A56>$A$8,"",OFFSET(InputPriceData!G$15,CalculationsAndCharts!$A56+$A$11,IF($C$5,8,0),1,1)) -> 15957900 | D56: =IF(A56>$A$8,"",OFFSET(InputPriceData!C$15,CalculationsAndCharts!$A56+$A$11,IF($C$5,8,0),1,1)) -> 51.119999 | E56: =IF(A56>$A$8,"",OFFSET(InputPriceData!D$15,CalculationsAndCharts!$A56+$A$11,IF($C$5,8,0),1,1)) -> 51.299999 | F56: =IF(A56>$A$8,"",OFFSET(InputPriceData!E$15,CalculationsAndCharts!$A56+$A$11,IF($C$5,8,0),1,1)) -> 50.52 | G56: =IF(A56>$A$8,"",OFFSET(InputPriceData!F$15,CalculationsAndCharts!$A56+$A$11,IF($C$5,8,0),1,1)) -> 50.619999 | H56: 50.9099995 | I56: 0.810002 | J56: 0.7693962982 | K56: 2.308188895 | L56: 53.21818839 | M56: 48.60181061 | N56: 52.83954533 | O56: 49.98680196 | P56: 49.98680196 | Q56: 0.7693962982 | R56: 3.077585193 | S56: 53.98758469 | T56: 47.83241431 | U56: 53.98758469 | V56: 49.22406878 | W56: 49.22406878 | BD56: 15957900
A57: 25 | B57: =IF(A57>$A$8,"",OFFSET(InputPriceData!B$15,$A57+$A$11,0,1,1)) -> 2023-04-10 | C57: =IF(A57>$A$8,"",OFFSET(InputPriceData!G$15,CalculationsAndCharts!$A57+$A$11,IF($C$5,8,0),1,1)) -> 10177700 | D57: =IF(A57>$A$8,"",OFFSET(InputPriceData!C$15,CalculationsAndCharts!$A57+$A$11,IF($C$5,8,0),1,1)) -> 51.110001 | E57: =IF(A57>$A$8,"",OFFSET(InputPriceData!D$15,CalculationsAndCharts!$A57+$A$11,IF($C$5,8,0),1,1)) -> 51.400002 | F57: =IF(A57>$A$8,"",OFFSET(InputPriceData!E$15,CalculationsAndCharts!$A57+$A$11,IF($C$5,8,0),1,1)) -> 50.880001 | G57: =IF(A57>$A$8,"",OFFSET(InputPriceData!F$15,CalculationsAndCharts!$A57+$A$11,IF($C$5,8,0),1,1)) -> 51.330002 | H57: 51.1400015 | I57: 0.520001 | J57: 0.760372809 | K57: 2.281118427 | L57: 53.42111993 | M57: 48.85888307 | N57: 52.83954533 | O57: 49.98680196 | P57: 49.98680196 | Q57: 0.760372809 | R57: 3.041491236 | S57: 54.18149274 | T57: 48.09851026 | U57: 54.18149274 | V57: 49.22406878 | W57: 49.22406878 | BC57: 10177700
A58: 26 | B58: =IF(A58>$A$8,"",OFFSET(InputPriceData!B$15,$A58+$A$11,0,1,1)) -> 2023-04-06 | C58: =IF(A58>$A$8,"",OFFSET(InputPriceData!G$15,CalculationsAndCharts!$A58+$A$11,IF($C$5,8,0),1,1)) -> 14749000 | D58: =IF(A58>$A$8,"",OFFSET(InputPriceData!C$15,CalculationsAndCharts!$A58+$A$11,IF($C$5,8,0),1,1)) -> 50.919998 | E58: =IF(A58>$A$8,"",OFFSET(InputPriceData!D$15,CalculationsAndCharts!$A58+$A$11,IF($C$5,8,0),1,1)) -> 51.560001 | F58: =IF(A58>$A$8,"",OFFSET(InputPriceData!E$15,CalculationsAndCharts!$A58+$A$11,IF($C$5,8,0),1,1)) -> 50.73 | G58: =IF(A58>$A$8,"",OFFSET(InputPriceData!F$15,CalculationsAndCharts!$A58+$A$11,IF($C$5,8,0),1,1)) -> 51.27 | H58: 51.1450005 | I58: 1.09 | J58: 0.8137887665 | K58: 2.4413663 | L58: 53.5863668 | M58: 48.7036342 | N58: 52.83954533 | O58: 49.98680196 | P58: 49.98680196 | Q58: 0.8137887665 | R58: 3.255155066 | S58: 54.40015557 | T58: 47.88984543 | U58: 54.40015557 | V58: 49.22406878 | W58: 49.22406878 | BD58: 14749000
A59: 27 | B59: =IF(A59>$A$8,"",OFFSET(InputPriceData!B$15,$A59+$A$11,0,1,1)) -> 2023-04-05 | C59: =IF(A59>$A$8,"",OFFSET(InputPriceData!G$15,CalculationsAndCharts!$A59+$A$11,IF($C$5,8,0),1,1)) -> 13797900 | D59: =IF(A59>$A$8,"",OFFSET(InputPriceData!C$15,CalculationsAndCharts!$A59+$A$11,IF($C$5,8,0),1,1)) -> 52.07 | E59: =IF(A59>$A$8,"",OFFSET(InputPriceData!D$15,CalculationsAndCharts!$A59+$A$11,IF($C$5,8,0),1,1)) -> 52.290001 | F59: =IF(A59>$A$8,"",OFFSET(InputPriceData!E$15,CalculationsAndCharts!$A59+$A$11,IF($C$5,8,0),1,1)) -> 51.68 | G59: =IF(A59>$A$8,"",OFFSET(InputPriceData!F$15,CalculationsAndCharts!$A59+$A$11,IF($C$5,8,0),1,1)) -> 51.82 | H59: 51.9850005 | I59: 0.610001 | J59: 0.7524084924 | K59: 2.257225477 | L59: 54.24222598 | M59: 49.72777502 | N59: 52.83954533 | O59: 49.98680196 | P59: 49.98680196 | Q59: 0.7524084924 | R59: 3.00963397 | S59: 54.99463447 | T59: 48.97536653 | U59: 54.91121791 | V59: 49.22406878 | W59: 49.22406878 | BC59: 13797900
A60: 28 | B60: =IF(A60>$A$8,"",OFFSET(InputPriceData!B$15,$A60+$A$11,0,1,1)) -> 2023-04-04 | C60: =IF(A60>$A$8,"",OFFSET(InputPriceData!G$15,CalculationsAndCharts!$A60+$A$11,IF($C$5,8,0),1,1)) -> 13599900 | D60: =IF(A60>$A$8,"",OFFSET(InputPriceData!C$15,CalculationsAndCharts!$A60+$A$11,IF($C$5,8,0),1,1)) -> 52.029999 | E60: =IF(A60>$A$8,"",OFFSET(InputPriceData!D$15,CalculationsAndCharts!$A60+$A$11,IF($C$5,8,0),1,1)) -> 52.119999 | F60: =IF(A60>$A$8,"",OFFSET(InputPriceData!E$15,CalculationsAndCharts!$A60+$A$11,IF($C$5,8,0),1,1)) -> 51.43 | G60: =IF(A60>$A$8,"",OFFSET(InputPriceData!F$15,CalculationsAndCharts!$A60+$A$11,IF($C$5,8,0),1,1)) -> 51.82 | H60: 51.7749995 | I60: 0.880001 | J60: 0.7840546018 | K60: 2.352163805 | L60: 54.12716331 | M60: 49.42283569 | N60: 52.83954533 | O60: 49.98680196 | P60: 49.98680196 | Q60: 0.7840546018 | R60: 3.136218407 | S60: 54.91121791 | T60: 48.63878109 | U60: 54.91121791 | V60: 49.22406878 | W60: 49.22406878 | BD60: 13599900
A61: 29 | B61: =IF(A61>$A$8,"",OFFSET(InputPriceData!B$15,$A61+$A$11,0,1,1)) -> 2023-04-03 | C61: =IF(A61>$A$8,"",OFFSET(InputPriceData!G$15,CalculationsAndCharts!$A61+$A$11,IF($C$5,8,0),1,1)) -> 16884600 | D61: =IF(A61>$A$8,"",OFFSET(InputPriceData!C$15,CalculationsAndCharts!$A61+$A$11,IF($C$5,8,0),1,1)) -> 52.060001 | E61: =IF(A61>$A$8,"",OFFSET(InputPriceData!D$15,CalculationsAndCharts!$A61+$A$11,IF($C$5,8,0),1,1)) -> 52.560001 | F61: =IF(A61>$A$8,"",OFFSET(InputPriceData!E$15,CalculationsAndCharts!$A61+$A$11,IF($C$5,8,0),1,1)) -> 51.990002 | G61: =IF(A61>$A$8,"",OFFSET(InputPriceData!F$15,CalculationsAndCharts!$A61+$A$11,IF($C$5,8,0),1,1)) -> 52.310001 | H61: 52.2750015 | I61: 0.569999 | J61: 0.76273318 | K61: 2.28819954 | L61: 54.56320104 | M61: 49.98680196 | N61: 52.83954533 | O61: 49.98680196 | P61: 49.98680196 | Q61: 0.76273318 | R61: 3.05093272 | S61: 55.32593422 | T61: 49.22406878 | U61: 55.32593422 | V61: 49.22406878 | W61: 49.22406878 | BC61: 16884600
A62: 30 | B62: =IF(A62>$A$8,"",OFFSET(InputPriceData!B$15,$A62+$A$11,0,1,1)) -> 2023-03-31 | C62: =IF(A62>$A$8,"",OFFSET(InputPriceData!G$15,CalculationsAndCharts!$A62+$A$11,IF($C$5,8,0),1,1)) -> 20588800 | D62: =IF(A62>$A$8,"",OFFSET(InputPriceData!C$15,CalculationsAndCharts!$A62+$A$11,IF($C$5,8,0),1,1)) -> 51.439999 | E62: =IF(A62>$A$8,"",OFFSET(InputPriceData!D$15,CalculationsAndCharts!$A62+$A$11,IF($C$5,8,0),1,1)) -> 52.349998 | F62: =IF(A62>$A$8,"",OFFSET(InputPriceData!E$15,CalculationsAndCharts!$A62+$A$11,IF($C$5,8,0),1,1)) -> 51.389999 | G62: =IF(A62>$A$8,"",OFFSET(InputPriceData!F$15,CalculationsAndCharts!$A62+$A$11,IF($C$5,8,0),1,1)) -> 52.279999 | H62: 51.8699985 | I62: 0.959999 | J62: 0.8055629978 | K62: 2.416688993 | L62: 54.28668749 | M62: 49.45330951 | N62: 52.83954533 | O62: 49.45330951 | P62: 49.45330951 | Q62: 0.8055629978 | R62: 3.222251991 | S62: 55.09225049 | T62: 48.64774651 | U62: 51.77265232 | V62: 48.64774651 | W62: 48.64774651 | BC62: 20588800
A63: 31 | B63: =IF(A63>$A$8,"",OFFSET(InputPriceData!B$15,$A63+$A$11,0,1,1)) -> 2023-03-30 | C63: =IF(A63>$A$8,"",OFFSET(InputPriceData!G$15,CalculationsAndCharts!$A63+$A$11,IF($C$5,8,0),1,1)) -> 11754600 | D63: =IF(A63>$A$8,"",OFFSET(InputPriceData!C$15,CalculationsAndCharts!$A63+$A$11,IF($C$5,8,0),1,1)) -> 51.580002 | E63: =IF(A63>$A$8,"",OFFSET(InputPriceData!D$15,CalculationsAndCharts!$A63+$A$11,IF($C$5,8,0),1,1)) -> 51.68 | F63: =IF(A63>$A$8,"",OFFSET(InputPriceData!E$15,CalculationsAndCharts!$A63+$A$11,IF($C$5,8,0),1,1)) -> 51.130001 | G63: =IF(A63>$A$8,"",OFFSET(InputPriceData!F$15,CalculationsAndCharts!$A63+$A$11,IF($C$5,8,0),1,1)) -> 51.43 | H63: 51.4050005 | I63: 0.549999 | J63: 0.7712438862 | K63: 2.313731659 | L63: 53.71873216 | M63: 49.09126884 | N63: 52.83954533 | O63: 49.09126884 | P63: 49.09126884 | Q63: 0.7712438862 | R63: 3.084975545 | S63: 54.48997604 | T63: 48.32002496 | U63: 51.77265232 | V63: 48.32002496 | W63: 48.32002496 | BC63: 11754600
A64: 32 | B64: =IF(A64>$A$8,"",OFFSET(InputPriceData!B$15,$A64+$A$11,0,1,1)) -> 2023-03-29 | C64: =IF(A64>$A$8,"",OFFSET(InputPriceData!G$15,CalculationsAndCharts!$A64+$A$11,IF($C$5,8,0),1,1)) -> 18463400 | D64: =IF(A64>$A$8,"",OFFSET(InputPriceData!C$15,CalculationsAndCharts!$A64+$A$11,IF($C$5,8,0),1,1)) -> 50.73 | E64: =IF(A64>$A$8,"",OFFSET(InputPriceData!D$15,CalculationsAndCharts!$A64+$A$11,IF($C$5,8,0),1,1)) -> 51.27 | F64: =IF(A64>$A$8,"",OFFSET(InputPriceData!E$15,CalculationsAndCharts!$A64+$A$11,IF($C$5,8,0),1,1)) -> 50.639999 | G64: =IF(A64>$A$8,"",OFFSET(InputPriceData!F$15,CalculationsAndCharts!$A64+$A$11,IF($C$5,8,0),1,1)) -> 51.169998 | H64: 50.9549995 | I64: 0.880001 | J64: 0.8204094164 | K64: 2.461228249 | L64: 53.41622775 | M64: 48.49377125 | N64: 52.83954533 | O64: 48.49377125 | P64: 48.49377125 | Q64: 0.8204094164 | R64: 3.281637666 | S64: 54.23663717 | T64: 47.67336183 | U64: 51.77265232 | V64: 47.67336183 | W64: 47.67336183 | BC64: 18463400
A65: 33 | B65: =IF(A65>$A$8,"",OFFSET(InputPriceData!B$15,$A65+$A$11,0,1,1)) -> 2023-03-28 | C65: =IF(A65>$A$8,"",OFFSET(InputPriceData!G$15,CalculationsAndCharts!$A65+$A$11,IF($C$5,8,0),1,1)) -> 11124300 | D65: =IF(A65>$A$8,"",OFFSET(InputPriceData!C$15,CalculationsAndCharts!$A65+$A$11,IF($C$5,8,0),1,1)) -> 50.32 | E65: =IF(A65>$A$8,"",OFFSET(InputPriceData!D$15,CalculationsAndCharts!$A65+$A$11,IF($C$5,8,0),1,1)) -> 50.599998 | F65: =IF(A65>$A$8,"",OFFSET(InputPriceData!E$15,CalculationsAndCharts!$A65+$A$11,IF($C$5,8,0),1,1)) -> 50.27 | G65: =IF(A65>$A$8,"",OFFSET(InputPriceData!F$15,CalculationsAndCharts!$A65+$A$11,IF($C$5,8,0),1,1)) -> 50.389999 | H65: 50.434999 | I65: 0.329998 | J65: 0.8071668423 | K65: 2.421500527 | L65: 52.85649953 | M65: 48.01349847 | N65: 52.83954533 | O65: 48.01349847 | P65: 48.01349847 | Q65: 0.8071668423 | R65: 3.228667369 | S65: 53.66366637 | T65: 47.20633163 | U65: 51.77265232 | V65: 47.20633163 | W65: 47.20633163 | BD65: 11124300
A66: 34 | B66: =IF(A66>$A$8,"",OFFSET(InputPriceData!B$15,$A66+$A$11,0,1,1)) -> 2023-03-27 | C66: =IF(A66>$A$8,"",OFFSET(InputPriceData!G$15,CalculationsAndCharts!$A66+$A$11,IF($C$5,8,0),1,1)) -> 15857200 | D66: =IF(A66>$A$8,"",OFFSET(InputPriceData!C$15,CalculationsAndCharts!$A66+$A$11,IF($C$5,8,0),1,1)) -> 50.700001 | E66: =IF(A66>$A$8,"",OFFSET(InputPriceData!D$15,CalculationsAndCharts!$A66+$A$11,IF($C$5,8,0),1,1)) -> 50.950001 | F66: =IF(A66>$A$8,"",OFFSET(InputPriceData!E$15,CalculationsAndCharts!$A66+$A$11,IF($C$5,8,0),1,1)) -> 50.48 | G66: =IF(A66>$A$8,"",OFFSET(InputPriceData!F$15,CalculationsAndCharts!$A66+$A$11,IF($C$5,8,0),1,1)) -> 50.540001 | H66: 50.7150005 | I66: 0.470001 | J66: 0.9132043628 | K66: 2.739613088 | L66: 53.45461359 | M66: 47.97538741 | N66: 52.83954533 | O66: 47.97538741 | P66: 47.97538741 | Q66: 0.9132043628 | R66: 3.652817451 | S66: 54.36781795 | T66: 47.06218305 | U66: 51.77265232 | V66: 47.06218305 | W66: 47.06218305 | BC66: 15857200
A67: 35 | B67: =IF(A67>$A$8,"",OFFSET(InputPriceData!B$15,$A67+$A$11,0,1,1)) -> 2023-03-24 | C67: =IF(A67>$A$8,"",OFFSET(InputPriceData!G$15,CalculationsAndCharts!$A67+$A$11,IF($C$5,8,0),1,1)) -> 19438800 | D67: =IF(A67>$A$8,"",OFFSET(InputPriceData!C$15,CalculationsAndCharts!$A67+$A$11,IF($C$5,8,0),1,1)) -> 49.900002 | E67: =IF(A67>$A$8,"",OFFSET(InputPriceData!D$15,CalculationsAndCharts!$A67+$A$11,IF($C$5,8,0),1,1)) -> 50.549999 | F67: =IF(A67>$A$8,"",OFFSET(InputPriceData!E$15,CalculationsAndCharts!$A67+$A$11,IF($C$5,8,0),1,1)) -> 49.5 | G67: =IF(A67>$A$8,"",OFFSET(InputPriceData!F$15,CalculationsAndCharts!$A67+$A$11,IF($C$5,8,0),1,1)) -> 50.509998 | H67: 50.0249995 | I67: 1.049999 | J67: 1.011693999 | K67: 3.035081997 | L67: 53.0600815 | M67: 46.9899175 | N67: 52.83954533 | O67: 47.90537389 | P67: 47.90537389 | Q67: 1.011693999 | R67: 4.046775996 | S67: 54.0717755 | T67: 45.9782235 | U67: 51.77265232 | V67: 46.93049785 | W67: 46.93049785 | BC67: 19438800
A68: 36 | B68: =IF(A68>$A$8,"",OFFSET(InputPriceData!B$15,$A68+$A$11,0,1,1)) -> 2023-03-23 | C68: =IF(A68>$A$8,"",OFFSET(InputPriceData!G$15,CalculationsAndCharts!$A68+$A$11,IF($C$5,8,0),1,1)) -> 17775400 | D68: =IF(A68>$A$8,"",OFFSET(InputPriceData!C$15,CalculationsAndCharts!$A68+$A$11,IF($C$5,8,0),1,1)) -> 49.560001 | E68: =IF(A68>$A$8,"",OFFSET(InputPriceData!D$15,CalculationsAndCharts!$A68+$A$11,IF($C$5,8,0),1,1)) -> 50.25 | F68: =IF(A68>$A$8,"",OFFSET(InputPriceData!E$15,CalculationsAndCharts!$A68+$A$11,IF($C$5,8,0),1,1)) -> 49.41 | G68: =IF(A68>$A$8,"",OFFSET(InputPriceData!F$15,CalculationsAndCharts!$A68+$A$11,IF($C$5,8,0),1,1)) -> 49.73 | H68: 49.83 | I68: 0.84 | J68: 1.003181777 | K68: 3.00954533 | L68: 52.83954533 | M68: 46.82045467 | N68: 52.83954533 | O68: 47.90537389 | P68: 47.90537389 | Q68: 1.003181777 | R68: 4.012727106 | S68: 53.84272711 | T68: 45.81727289 | U68: 51.77265232 | V68: 46.93049785 | W68: 46.93049785 | BC68: 17775400
A69: 37 | B69: =IF(A69>$A$8,"",OFFSET(InputPriceData!B$15,$A69+$A$11,0,1,1)) -> 2023-03-22 | C69: =IF(A69>$A$8,"",OFFSET(InputPriceData!G$15,CalculationsAndCharts!$A69+$A$11,IF($C$5,8,0),1,1)) -> 21399400 | D69: =IF(A69>$A$8,"",OFFSET(InputPriceData!C$15,CalculationsAndCharts!$A69+$A$11,IF($C$5,8,0),1,1)) -> 50.740002 | E69: =IF(A69>$A$8,"",OFFSET(InputPriceData!D$15,CalculationsAndCharts!$A69+$A$11,IF($C$5,8,0),1,1)) -> 50.75 | F69: =IF(A69>$A$8,"",OFFSET(InputPriceData!E$15,CalculationsAndCharts!$A69+$A$11,IF($C$5,8,0),1,1)) -> 49.419998 | G69: =IF(A69>$A$8,"",OFFSET(InputPriceData!F$15,CalculationsAndCharts!$A69+$A$11,IF($C$5,8,0),1,1)) -> 49.459999 | H69: 50.084999 | I69: 1.330002 | J69: 1.039444394 | K69: 3.118333181 | L69: 53.20333218 | M69: 46.96666582 | N69: 53.20333218 | O69: 47.90537389 | P69: 47.90537389 | Q69: 1.039444394 | R69: 4.157777574 | S69: 54.24277657 | T69: 45.92722143 | U69: 51.77265232 | V69: 46.93049785 | W69: 46.93049785 | BD69: 21399400
A70: 38 | B70: =IF(A70>$A$8,"",OFFSET(InputPriceData!B$15,$A70+$A$11,0,1,1)) -> 2023-03-21 | C70: =IF(A70>$A$8,"",OFFSET(InputPriceData!G$15,CalculationsAndCharts!$A70+$A$11,IF($C$5,8,0),1,1)) -> 23334000 | D70: =IF(A70>$A$8,"",OFFSET(InputPriceData!C$15,CalculationsAndCharts!$A70+$A$11,IF($C$5,8,0),1,1)) -> 51.209999 | E70: =IF(A70>$A$8,"",OFFSET(InputPriceData!D$15,CalculationsAndCharts!$A70+$A$11,IF($C$5,8,0),1,1)) -> 51.330002 | F70: =IF(A70>$A$8,"",OFFSET(InputPriceData!E$15,CalculationsAndCharts!$A70+$A$11,IF($C$5,8,0),1,1)) -> 50.330002 | G70: =IF(A70>$A$8,"",OFFSET(InputPriceData!F$15,CalculationsAndCharts!$A70+$A$11,IF($C$5,8,0),1,1)) -> 50.669998 | H70: 50.830002 | I70: 1 | J70: 0.9748760366 | K70: 2.92462811 | L70: 53.75463011 | M70: 47.90537389 | N70: 53.75463011 | O70: 47.90537389 | P70: 47.90537389 | Q70: 0.9748760366 | R70: 3.899504146 | S70: 54.72950615 | T70: 46.93049785 | U70: 51.77265232 | V70: 46.93049785 | W70: 46.93049785 | BD70: 23334000
A71: 39 | B71: =IF(A71>$A$8,"",OFFSET(InputPriceData!B$15,$A71+$A$11,0,1,1)) -> 2023-03-20 | C71: =IF(A71>$A$8,"",OFFSET(InputPriceData!G$15,CalculationsAndCharts!$A71+$A$11,IF($C$5,8,0),1,1)) -> 22699700 | D71: =IF(A71>$A$8,"",OFFSET(InputPriceData!C$15,CalculationsAndCharts!$A71+$A$11,IF($C$5,8,0),1,1)) -> 50.220001 | E71: =IF(A71>$A$8,"",OFFSET(InputPriceData!D$15,CalculationsAndCharts!$A71+$A$11,IF($C$5,8,0),1,1)) -> 51.040001 | F71: =IF(A71>$A$8,"",OFFSET(InputPriceData!E$15,CalculationsAndCharts!$A71+$A$11,IF($C$5,8,0),1,1)) -> 50.009998 | G71: =IF(A71>$A$8,"",OFFSET(InputPriceData!F$15,CalculationsAndCharts!$A71+$A$11,IF($C$5,8,0),1,1)) -> 50.939999 | H71: 50.5249995 | I71: 1.030003 | J71: 0.9692929336 | K71: 2.907878801 | L71: 53.4328783 | M71: 47.6171207 | N71: 50.92323924 | O71: 47.6171207 | P71: 47.6171207 | Q71: 0.9692929336 | R71: 3.877171734 | S71: 54.40217123 | T71: 46.64782777 | U71: 51.77265232 | V71: 46.64782777 | W71: 46.64782777 | BC71: 22699700
A72: 40 | B72: =IF(A72>$A$8,"",OFFSET(InputPriceData!B$15,$A72+$A$11,0,1,1)) -> 2023-03-17 | C72: =IF(A72>$A$8,"",OFFSET(InputPriceData!G$15,CalculationsAndCharts!$A72+$A$11,IF($C$5,8,0),1,1)) -> 47642700 | D72: =IF(A72>$A$8,"",OFFSET(InputPriceData!C$15,CalculationsAndCharts!$A72+$A$11,IF($C$5,8,0),1,1)) -> 50.259998 | E72: =IF(A72>$A$8,"",OFFSET(InputPriceData!D$15,CalculationsAndCharts!$A72+$A$11,IF($C$5,8,0),1,1)) -> 50.549999 | F72: =IF(A72>$A$8,"",OFFSET(InputPriceData!E$15,CalculationsAndCharts!$A72+$A$11,IF($C$5,8,0),1,1)) -> 49.740002 | G72: =IF(A72>$A$8,"",OFFSET(InputPriceData!F$15,CalculationsAndCharts!$A72+$A$11,IF($C$5,8,0),1,1)) -> 50.189999 | H72: 50.1450005 | I72: 0.809997 | J72: 0.9558018077 | K72: 2.867405423 | L72: 53.01240592 | M72: 47.27759508 | N72: 50.92323924 | O72: 47.27759508 | P72: 47.27759508 | Q72: 0.9558018077 | R72: 3.823207231 | S72: 53.96820773 | T72: 46.32179327 | U72: 51.77265232 | V72: 46.34210981 | W72: 46.34210981 | BC72: 47642700
A73: 41 | B73: =IF(A73>$A$8,"",OFFSET(InputPriceData!B$15,$A73+$A$11,0,1,1)) -> 2023-03-16 | C73: =IF(A73>$A$8,"",OFFSET(InputPriceData!G$15,CalculationsAndCharts!$A73+$A$11,IF($C$5,8,0),1,1)) -> 21425100 | D73: =IF(A73>$A$8,"",OFFSET(InputPriceData!C$15,CalculationsAndCharts!$A73+$A$11,IF($C$5,8,0),1,1)) -> 48.68 | E73: =IF(A73>$A$8,"",OFFSET(InputPriceData!D$15,CalculationsAndCharts!$A73+$A$11,IF($C$5,8,0),1,1)) -> 50.290001 | F73: =IF(A73>$A$8,"",OFFSET(InputPriceData!E$15,CalculationsAndCharts!$A73+$A$11,IF($C$5,8,0),1,1)) -> 48.509998 | G73: =IF(A73>$A$8,"",OFFSET(InputPriceData!F$15,CalculationsAndCharts!$A73+$A$11,IF($C$5,8,0),1,1)) -> 50.119999 | H73: 49.3999995 | I73: 1.780003 | J73: 0.9882028761 | K73: 2.964608628 | L73: 52.36460813 | M73: 46.43539087 | N73: 50.92323924 | O73: 47.20215194 | P73: 47.20215194 | Q73: 0.9882028761 | R73: 3.952811504 | S73: 53.352811 | T73: 45.447188 | U73: 51.77265232 | V73: 46.34210981 | W73: 46.34210981 | BC73: 21425100
A74: 42 | B74: =IF(A74>$A$8,"",OFFSET(InputPriceData!B$15,$A74+$A$11,0,1,1)) -> 2023-03-15 | C74: =IF(A74>$A$8,"",OFFSET(InputPriceData!G$15,CalculationsAndCharts!$A74+$A$11,IF($C$5,8,0),1,1)) -> 17354900 | D74: =IF(A74>$A$8,"",OFFSET(InputPriceData!C$15,CalculationsAndCharts!$A74+$A$11,IF($C$5,8,0),1,1)) -> 48.369999 | E74: =IF(A74>$A$8,"",OFFSET(InputPriceData!D$15,CalculationsAndCharts!$A74+$A$11,IF($C$5,8,0),1,1)) -> 49.110001 | F74: =IF(A74>$A$8,"",OFFSET(InputPriceData!E$15,CalculationsAndCharts!$A74+$A$11,IF($C$5,8,0),1,1)) -> 48.369999 | G74: =IF(A74>$A$8,"",OFFSET(InputPriceData!F$15,CalculationsAndCharts!$A74+$A$11,IF($C$5,8,0),1,1)) -> 49.060001 | H74: 48.74 | I74: 0.740002 | J74: 0.812247293 | K74: 2.436741879 | L74: 51.17674188 | M74: 46.30325812 | N74: 50.92323924 | O74: 47.20215194 | P74: 47.20215194 | Q74: 0.812247293 | R74: 3.248989172 | S74: 51.98898917 | T74: 45.49101083 | U74: 51.77265232 | V74: 46.34210981 | W74: 46.34210981 | BC74: 17354900
A75: 43 | B75: =IF(A75>$A$8,"",OFFSET(InputPriceData!B$15,$A75+$A$11,0,1,1)) -> 2023-03-14 | C75: =IF(A75>$A$8,"",OFFSET(InputPriceData!G$15,CalculationsAndCharts!$A75+$A$11,IF($C$5,8,0),1,1)) -> 17679600 | D75: =IF(A75>$A$8,"",OFFSET(InputPriceData!C$15,CalculationsAndCharts!$A75+$A$11,IF($C$5,8,0),1,1)) -> 48.68 | E75: =IF(A75>$A$8,"",OFFSET(InputPriceData!D$15,CalculationsAndCharts!$A75+$A$11,IF($C$5,8,0),1,1)) -> 49.259998 | F75: =IF(A75>$A$8,"",OFFSET(InputPriceData!E$15,CalculationsAndCharts!$A75+$A$11,IF($C$5,8,0),1,1)) -> 48.509998 | G75: =IF(A75>$A$8,"",OFFSET(InputPriceData!F$15,CalculationsAndCharts!$A75+$A$11,IF($C$5,8,0),1,1)) -> 49.049999 | H75: 48.884998 | I75: 0.849998 | J75: 0.8283018026 | K75: 2.484905408 | L75: 51.36990341 | M75: 46.40009259 | N75: 50.92323924 | O75: 47.20215194 | P75: 47.20215194 | Q75: 0.8283018026 | R75: 3.31320721 | S75: 52.19820521 | T75: 45.57179079 | U75: 51.77265232 | V75: 46.34210981 | W75: 46.34210981 | BC75: 17679600
A76: 44 | B76: =IF(A76>$A$8,"",OFFSET(InputPriceData!B$15,$A76+$A$11,0,1,1)) -> 2023-03-13 | C76: =IF(A76>$A$8,"",OFFSET(InputPriceData!G$15,CalculationsAndCharts!$A76+$A$11,IF($C$5,8,0),1,1)) -> 20280800 | D76: =IF(A76>$A$8,"",OFFSET(InputPriceData!C$15,CalculationsAndCharts!$A76+$A$11,IF($C$5,8,0),1,1)) -> 48.529999 | E76: =IF(A76>$A$8,"",OFFSET(InputPriceData!D$15,CalculationsAndCharts!$A76+$A$11,IF($C$5,8,0),1,1)) -> 48.880001 | F76: =IF(A76>$A$8,"",OFFSET(InputPriceData!E$15,CalculationsAndCharts!$A76+$A$11,IF($C$5,8,0),1,1)) -> 48.119999 | G76: =IF(A76>$A$8,"",OFFSET(InputPriceData!F$15,CalculationsAndCharts!$A76+$A$11,IF($C$5,8,0),1,1)) -> 48.41 | H76: 48.5 | I76: 0.760002 | J76: 0.8234804254 | K76: 2.470441276 | L76: 50.97044128 | M76: 46.02955872 | N76: 50.92323924 | O76: 47.20215194 | P76: 47.20215194 | Q76: 0.8234804254 | R76: 3.293921701 | S76: 51.7939217 | T76: 45.2060783 | U76: 51.77265232 | V76: 46.34210981 | W76: 46.34210981 | BD76: 20280800
A77: 45 | B77: =IF(A77>$A$8,"",OFFSET(InputPriceData!B$15,$A77+$A$11,0,1,1)) -> 2023-03-10 | C77: =IF(A77>$A$8,"",OFFSET(InputPriceData!G$15,CalculationsAndCharts!$A77+$A$11,IF($C$5,8,0),1,1)) -> 16338200 | D77: =IF(A77>$A$8,"",OFFSET(InputPriceData!C$15,CalculationsAndCharts!$A77+$A$11,IF($C$5,8,0),1,1)) -> 48.889999 | E77: =IF(A77>$A$8,"",OFFSET(InputPriceData!D$15,CalculationsAndCharts!$A77+$A$11,IF($C$5,8,0),1,1)) -> 49.169998 | F77: =IF(A77>$A$8,"",OFFSET(InputPriceData!E$15,CalculationsAndCharts!$A77+$A$11,IF($C$5,8,0),1,1)) -> 48.299999 | G77: =IF(A77>$A$8,"",OFFSET(InputPriceData!F$15,CalculationsAndCharts!$A77+$A$11,IF($C$5,8,0),1,1)) -> 48.560001 | H77: 48.7349985 | I77: 0.869999 | J77: 0.8375867421 | K77: 2.512760226 | L77: 51.24775873 | M77: 46.22223827 | N77: 50.92323924 | O77: 47.20215194 | P77: 47.20215194 | Q77: 0.8375867421 | R77: 3.350346968 | S77: 52.08534547 | T77: 45.38465153 | U77: 51.77265232 | V77: 46.34210981 | W77: 46.34210981 | BD77: 16338200
A78: 46 | B78: =IF(A78>$A$8,"",OFFSET(InputPriceData!B$15,$A78+$A$11,0,1,1)) -> 2023-03-09 | C78: =IF(A78>$A$8,"",OFFSET(InputPriceData!G$15,CalculationsAndCharts!$A78+$A$11,IF($C$5,8,0),1,1)) -> 12497700 | D78: =IF(A78>$A$8,"",OFFSET(InputPriceData!C$15,CalculationsAndCharts!$A78+$A$11,IF($C$5,8,0),1,1)) -> 49.299999 | E78: =IF(A78>$A$8,"",OFFSET(InputPriceData!D$15,CalculationsAndCharts!$A78+$A$11,IF($C$5,8,0),1,1)) -> 49.689999 | F78: =IF(A78>$A$8,"",OFFSET(InputPriceData!E$15,CalculationsAndCharts!$A78+$A$11,IF($C$5,8,0),1,1)) -> 48.709999 | G78: =IF(A78>$A$8,"",OFFSET(InputPriceData!F$15,CalculationsAndCharts!$A78+$A$11,IF($C$5,8,0),1,1)) -> 48.810001 | H78: 49.199999 | I78: 0.98 | J78: 0.8303840181 | K78: 2.491152054 | L78: 51.69115105 | M78: 46.70884695 | N78: 50.92323924 | O78: 47.20215194 | P78: 47.20215194 | Q78: 0.8303840181 | R78: 3.321536073 | S78: 52.52153507 | T78: 45.87846293 | U78: 51.77265232 | V78: 46.34210981 | W78: 46.34210981 | BD78: 12497700
A79: 47 | B79: =IF(A79>$A$8,"",OFFSET(InputPriceData!B$15,$A79+$A$11,0,1,1)) -> 2023-03-08 | C79: =IF(A79>$A$8,"",OFFSET(InputPriceData!G$15,CalculationsAndCharts!$A79+$A$11,IF($C$5,8,0),1,1)) -> 12055500 | D79: =IF(A79>$A$8,"",OFFSET(InputPriceData!C$15,CalculationsAndCharts!$A79+$A$11,IF($C$5,8,0),1,1)) -> 49.02 | E79: =IF(A79>$A$8,"",OFFSET(InputPriceData!D$15,CalculationsAndCharts!$A79+$A$11,IF($C$5,8,0),1,1)) -> 49.27 | F79: =IF(A79>$A$8,"",OFFSET(InputPriceData!E$15,CalculationsAndCharts!$A79+$A$11,IF($C$5,8,0),1,1)) -> 48.740002 | G79: =IF(A79>$A$8,"",OFFSET(InputPriceData!F$15,CalculationsAndCharts!$A79+$A$11,IF($C$5,8,0),1,1)) -> 49.110001 | H79: 49.005001 | I79: 0.529998 | J79: 0.7971360222 | K79: 2.391408066 | L79: 51.39640907 | M79: 46.61359293 | N79: 50.92323924 | O79: 47.20215194 | P79: 47.20215194 | Q79: 0.7971360222 | R79: 3.188544089 | S79: 52.19354509 | T79: 45.81645691 | U79: 51.77265232 | V79: 46.34210981 | W79: 46.34210981 | BC79: 12055500
A80: 48 | B80: =IF(A80>$A$8,"",OFFSET(InputPriceData!B$15,$A80+$A$11,0,1,1)) -> 2023-03-07 | C80: =IF(A80>$A$8,"",OFFSET(InputPriceData!G$15,CalculationsAndCharts!$A80+$A$11,IF($C$5,8,0),1,1)) -> 17506600 | D80: =IF(A80>$A$8,"",OFFSET(InputPriceData!C$15,CalculationsAndCharts!$A80+$A$11,IF($C$5,8,0),1,1)) -> 49.57 | E80: =IF(A80>$A$8,"",OFFSET(InputPriceData!D$15,CalculationsAndCharts!$A80+$A$11,IF($C$5,8,0),1,1)) -> 49.759998 | F80: =IF(A80>$A$8,"",OFFSET(InputPriceData!E$15,CalculationsAndCharts!$A80+$A$11,IF($C$5,8,0),1,1)) -> 48.630001 | G80: =IF(A80>$A$8,"",OFFSET(InputPriceData!F$15,CalculationsAndCharts!$A80+$A$11,IF($C$5,8,0),1,1)) -> 48.91 | H80: 49.1949995 | I80: 1.129997 | J80: 0.8565000271 | K80: 2.569500081 | L80: 51.76449958 | M80: 46.62549942 | N80: 50.92323924 | O80: 47.20215194 | P80: 47.20215194 | Q80: 0.8565000271 | R80: 3.426000108 | S80: 52.62099961 | T80: 45.76899939 | U80: 51.77265232 | V80: 46.34210981 | W80: 46.34210981 | BD80: 17506600
A81: 49 | B81: =IF(A81>$A$8,"",OFFSET(InputPriceData!B$15,$A81+$A$11,0,1,1)) -> 2023-03-06 | C81: =IF(A81>$A$8,"",OFFSET(InputPriceData!G$15,CalculationsAndCharts!$A81+$A$11,IF($C$5,8,0),1,1)) -> 13878400 | D81: =IF(A81>$A$8,"",OFFSET(InputPriceData!C$15,CalculationsAndCharts!$A81+$A$11,IF($C$5,8,0),1,1)) -> 49.459999 | E81: =IF(A81>$A$8,"",OFFSET(InputPriceData!D$15,CalculationsAndCharts!$A81+$A$11,IF($C$5,8,0),1,1)) -> 49.810001 | F81: =IF(A81>$A$8,"",OFFSET(InputPriceData!E$15,CalculationsAndCharts!$A81+$A$11,IF($C$5,8,0),1,1)) -> 49.240002 | G81: =IF(A81>$A$8,"",OFFSET(InputPriceData!F$15,CalculationsAndCharts!$A81+$A$11,IF($C$5,8,0),1,1)) -> 49.419998 | H81: 49.5250015 | I81: 0.569999 | J81: 0.795722922 | K81: 2.387168766 | L81: 51.91217027 | M81: 47.13783273 | N81: 50.92323924 | O81: 47.20215194 | P81: 47.20215194 | Q81: 0.795722922 | R81: 3.182891688 | S81: 52.70789319 | T81: 46.34210981 | U81: 51.77265232 | V81: 46.34210981 | W81: 46.34210981 | BC81: 13878400
A82: 50 | B82: =IF(A82>$A$8,"",OFFSET(InputPriceData!B$15,$A82+$A$11,0,1,1)) -> 2023-03-03 | C82: =IF(A82>$A$8,"",OFFSET(InputPriceData!G$15,CalculationsAndCharts!$A82+$A$11,IF($C$5,8,0),1,1)) -> 15969900 | D82: =IF(A82>$A$8,"",OFFSET(InputPriceData!C$15,CalculationsAndCharts!$A82+$A$11,IF($C$5,8,0),1,1)) -> 48.990002 | E82: =IF(A82>$A$8,"",OFFSET(InputPriceData!D$15,CalculationsAndCharts!$A82+$A$11,IF($C$5,8,0),1,1)) -> 49.360001 | F82: =IF(A82>$A$8,"",OFFSET(InputPriceData!E$15,CalculationsAndCharts!$A82+$A$11,IF($C$5,8,0),1,1)) -> 48.82 | G82: =IF(A82>$A$8,"",OFFSET(InputPriceData!F$15,CalculationsAndCharts!$A82+$A$11,IF($C$5,8,0),1,1)) -> 49.279999 | H82: 49.0900005 | I82: 0.830002 | J82: 0.8458837935 | K82: 2.537651381 | L82: 51.62765188 | M82: 46.55234912 | N82: 50.92323924 | O82: 47.20215194 | P82: 47.20215194 | Q82: 0.8458837935 | R82: 3.383535174 | S82: 52.47353567 | T82: 45.70646533 | U82: 51.77265232 | V82: 46.13425566 | W82: 46.13425566 | BC82: 15969900
A83: 51 | B83: =IF(A83>$A$8,"",OFFSET(InputPriceData!B$15,$A83+$A$11,0,1,1)) -> 2023-03-02 | C83: =IF(A83>$A$8,"",OFFSET(InputPriceData!G$15,CalculationsAndCharts!$A83+$A$11,IF($C$5,8,0),1,1)) -> 18281800 | D83: =IF(A83>$A$8,"",OFFSET(InputPriceData!C$15,CalculationsAndCharts!$A83+$A$11,IF($C$5,8,0),1,1)) -> 48.32 | E83: =IF(A83>$A$8,"",OFFSET(InputPriceData!D$15,CalculationsAndCharts!$A83+$A$11,IF($C$5,8,0),1,1)) -> 48.630001 | F83: =IF(A83>$A$8,"",OFFSET(InputPriceData!E$15,CalculationsAndCharts!$A83+$A$11,IF($C$5,8,0),1,1)) -> 48.119999 | G83: =IF(A83>$A$8,"",OFFSET(InputPriceData!F$15,CalculationsAndCharts!$A83+$A$11,IF($C$5,8,0),1,1)) -> 48.529999 | H83: 48.375 | I83: 0.510002 | J83: 0.849413081 | K83: 2.548239243 | L83: 50.92323924 | M83: 45.82676076 | N83: 50.92323924 | O83: 47.20215194 | P83: 47.20215194 | Q83: 0.849413081 | R83: 3.397652324 | S83: 51.77265232 | T83: 44.97734768 | U83: 51.77265232 | V83: 46.13425566 | W83: 46.13425566 | BC83: 18281800
A84: 52 | B84: =IF(A84>$A$8,"",OFFSET(InputPriceData!B$15,$A84+$A$11,0,1,1)) -> 2023-03-01 | C84: =IF(A84>$A$8,"",OFFSET(InputPriceData!G$15,CalculationsAndCharts!$A84+$A$11,IF($C$5,8,0),1,1)) -> 13449300 | D84: =IF(A84>$A$8,"",OFFSET(InputPriceData!C$15,CalculationsAndCharts!$A84+$A$11,IF($C$5,8,0),1,1)) -> 48.439999 | E84: =IF(A84>$A$8,"",OFFSET(InputPriceData!D$15,CalculationsAndCharts!$A84+$A$11,IF($C$5,8,0),1,1)) -> 48.59 | F84: =IF(A84>$A$8,"",OFFSET(InputPriceData!E$15,CalculationsAndCharts!$A84+$A$11,IF($C$5,8,0),1,1)) -> 48.02 | G84: =IF(A84>$A$8,"",OFFSET(InputPriceData!F$15,CalculationsAndCharts!$A84+$A$11,IF($C$5,8,0),1,1)) -> 48.34 | H84: 48.305 | I84: 0.57 | J84: 0.9248377657 | K84: 2.774513297 | L84: 51.0795133 | M84: 45.5304867 | N84: 51.0795133 | O84: 47.20215194 | P84: 47.20215194 | Q84: 0.9248377657 | R84: 3.699351063 | S84: 52.00435106 | T84: 44.60564894 | U84: 52.00435106 | V84: 46.13425566 | W84: 46.13425566 | BD84: 13449300
A85: 53 | B85: =IF(A85>$A$8,"",OFFSET(InputPriceData!B$15,$A85+$A$11,0,1,1)) -> 2023-02-28 | C85: =IF(A85>$A$8,"",OFFSET(InputPriceData!G$15,CalculationsAndCharts!$A85+$A$11,IF($C$5,8,0),1,1)) -> 16622400 | D85: =IF(A85>$A$8,"",OFFSET(InputPriceData!C$15,CalculationsAndCharts!$A85+$A$11,IF($C$5,8,0),1,1)) -> 48.810001 | E85: =IF(A85>$A$8,"",OFFSET(InputPriceData!D$15,CalculationsAndCharts!$A85+$A$11,IF($C$5,8,0),1,1)) -> 48.93 | F85: =IF(A85>$A$8,"",OFFSET(InputPriceData!E$15,CalculationsAndCharts!$A85+$A$11,IF($C$5,8,0),1,1)) -> 48.380001 | G85: =IF(A85>$A$8,"",OFFSET(InputPriceData!F$15,CalculationsAndCharts!$A85+$A$11,IF($C$5,8,0),1,1)) -> 48.419998 | H85: 48.6550005 | I85: 0.549999 | J85: 1.003690602 | K85: 3.011071807 | L85: 51.66607231 | M85: 45.64392869 | N85: 51.66607231 | O85: 47.20215194 | P85: 47.20215194 | Q85: 1.003690602 | R85: 4.01476241 | S85: 52.66976291 | T85: 44.64023809 | U85: 52.66976291 | V85: 46.13425566 | W85: 46.13425566 | BD85: 16622400
A86: 54 | B86: =IF(A86>$A$8,"",OFFSET(InputPriceData!B$15,$A86+$A$11,0,1,1)) -> 2023-02-27 | C86: =IF(A86>$A$8,"",OFFSET(InputPriceData!G$15,CalculationsAndCharts!$A86+$A$11,IF($C$5,8,0),1,1)) -> 14776400 | D86: =IF(A86>$A$8,"",OFFSET(InputPriceData!C$15,CalculationsAndCharts!$A86+$A$11,IF($C$5,8,0),1,1)) -> 48.950001 | E86: =IF(A86>$A$8,"",OFFSET(InputPriceData!D$15,CalculationsAndCharts!$A86+$A$11,IF($C$5,8,0),1,1)) -> 49.34 | F86: =IF(A86>$A$8,"",OFFSET(InputPriceData!E$15,CalculationsAndCharts!$A86+$A$11,IF($C$5,8,0),1,1)) -> 48.549999 | G86: =IF(A86>$A$8,"",OFFSET(InputPriceData!F$15,CalculationsAndCharts!$A86+$A$11,IF($C$5,8,0),1,1)) -> 48.73 | H86: 48.9449995 | I86: 0.86 | J86: 1.104510959 | K86: 3.313532876 | L86: 52.25853238 | M86: 45.63146662 | N86: 52.01154018 | O86: 47.20215194 | P86: 47.20215194 | Q86: 1.104510959 | R86: 4.418043834 | S86: 53.36304333 | T86: 44.52695567 | U86: 53.17038691 | V86: 46.13425566 | W86: 46.13425566 | BC86: 14776400
A87: 55 | B87: =IF(A87>$A$8,"",OFFSET(InputPriceData!B$15,$A87+$A$11,0,1,1)) -> 2023-02-24 | C87: =IF(A87>$A$8,"",OFFSET(InputPriceData!G$15,CalculationsAndCharts!$A87+$A$11,IF($C$5,8,0),1,1)) -> 17251600 | D87: =IF(A87>$A$8,"",OFFSET(InputPriceData!C$15,CalculationsAndCharts!$A87+$A$11,IF($C$5,8,0),1,1)) -> 48.810001 | E87: =IF(A87>$A$8,"",OFFSET(InputPriceData!D$15,CalculationsAndCharts!$A87+$A$11,IF($C$5,8,0),1,1)) -> 48.900002 | F87: =IF(A87>$A$8,"",OFFSET(InputPriceData!E$15,CalculationsAndCharts!$A87+$A$11,IF($C$5,8,0),1,1)) -> 48.169998 | G87: =IF(A87>$A$8,"",OFFSET(InputPriceData!F$15,CalculationsAndCharts!$A87+$A$11,IF($C$5,8,0),1,1)) -> 48.48 | H87: 48.535 | I87: 1.040001 | J87: 1.158846727 | K87: 3.476540181 | L87: 52.01154018 | M87: 45.05845982 | N87: 52.01154018 | O87: 47.20215194 | P87: 47.20215194 | Q87: 1.158846727 | R87: 4.635386909 | S87: 53.17038691 | T87: 43.89961309 | U87: 53.17038691 | V87: 46.13425566 | W87: 46.13425566 | BD87: 17251600
A88: 56 | B88: =IF(A88>$A$8,"",OFFSET(InputPriceData!B$15,$A88+$A$11,0,1,1)) -> 2023-02-23 | C88: =IF(A88>$A$8,"",OFFSET(InputPriceData!G$15,CalculationsAndCharts!$A88+$A$11,IF($C$5,8,0),1,1)) -> 14066200 | D88: =IF(A88>$A$8,"",OFFSET(InputPriceData!C$15,CalculationsAndCharts!$A88+$A$11,IF($C$5,8,0),1,1)) -> 49.540001 | E88: =IF(A88>$A$8,"",OFFSET(InputPriceData!D$15,CalculationsAndCharts!$A88+$A$11,IF($C$5,8,0),1,1)) -> 49.68 | F88: =IF(A88>$A$8,"",OFFSET(InputPriceData!E$15,CalculationsAndCharts!$A88+$A$11,IF($C$5,8,0),1,1)) -> 48.549999 | G88: =IF(A88>$A$8,"",OFFSET(InputPriceData!F$15,CalculationsAndCharts!$A88+$A$11,IF($C$5,8,0),1,1)) -> 49.209999 | H88: 49.1149995 | I88: 1.130001 | J88: 1.185256889 | K88: 3.555770666 | L88: 52.67077017 | M88: 45.55922883 | N88: 52.67077017 | O88: 47.20215194 | P88: 47.20215194 | Q88: 1.185256889 | R88: 4.741027555 | S88: 53.85602706 | T88: 44.37397194 | U88: 53.85602706 | V88: 46.13425566 | W88: 46.13425566 | BD88: 14066200
A89: 57 | B89: =IF(A89>$A$8,"",OFFSET(InputPriceData!B$15,$A89+$A$11,0,1,1)) -> 2023-02-22 | C89: =IF(A89>$A$8,"",OFFSET(InputPriceData!G$15,CalculationsAndCharts!$A89+$A$11,IF($C$5,8,0),1,1)) -> 20301900 | D89: =IF(A89>$A$8,"",OFFSET(InputPriceData!C$15,CalculationsAndCharts!$A89+$A$11,IF($C$5,8,0),1,1)) -> 49.849998 | E89: =IF(A89>$A$8,"",OFFSET(InputPriceData!D$15,CalculationsAndCharts!$A89+$A$11,IF($C$5,8,0),1,1)) -> 49.849998 | F89: =IF(A89>$A$8,"",OFFSET(InputPriceData!E$15,CalculationsAndCharts!$A89+$A$11,IF($C$5,8,0),1,1)) -> 48.889999 | G89: =IF(A89>$A$8,"",OFFSET(InputPriceData!F$15,CalculationsAndCharts!$A89+$A$11,IF($C$5,8,0),1,1)) -> 49.310001 | H89: 49.3699985 | I89: 0.959999 | J89: 1.197535975 | K89: 3.592607925 | L89: 52.96260643 | M89: 45.77739057 | N89: 52.96260643 | O89: 47.20215194 | P89: 47.20215194 | Q89: 1.197535975 | R89: 4.790143901 | S89: 54.1601424 | T89: 44.5798546 | U89: 54.1601424 | V89: 46.13425566 | W89: 46.13425566 | BD89: 20301900
A90: 58 | B90: =IF(A90>$A$8,"",OFFSET(InputPriceData!B$15,$A90+$A$11,0,1,1)) -> 2023-02-21 | C90: =IF(A90>$A$8,"",OFFSET(InputPriceData!G$15,CalculationsAndCharts!$A90+$A$11,IF($C$5,8,0),1,1)) -> 25100500 | D90: =IF(A90>$A$8,"",OFFSET(InputPriceData!C$15,CalculationsAndCharts!$A90+$A$11,IF($C$5,8,0),1,1)) -> 50.709999 | E90: =IF(A90>$A$8,"",OFFSET(InputPriceData!D$15,CalculationsAndCharts!$A90+$A$11,IF($C$5,8,0),1,1)) -> 50.759998 | F90: =IF(A90>$A$8,"",OFFSET(InputPriceData!E$15,CalculationsAndCharts!$A90+$A$11,IF($C$5,8,0),1,1)) -> 49.619999 | G90: =IF(A90>$A$8,"",OFFSET(InputPriceData!F$15,CalculationsAndCharts!$A90+$A$11,IF($C$5,8,0),1,1)) -> 49.689999 | H90: 50.1899985 | I90: 1.150001 | J90: 1.25032197 | K90: 3.750965909 | L90: 53.94096441 | M90: 46.43903259 | N90: 53.94096441 | O90: 47.20215194 | P90: 47.20215194 | Q90: 1.25032197 | R90: 5.001287878 | S90: 55.19128638 | T90: 45.18871062 | U90: 55.19128638 | V90: 46.13425566 | W90: 46.13425566 | BD90: 25100500
A91: 59 | B91: =IF(A91>$A$8,"",OFFSET(InputPriceData!B$15,$A91+$A$11,0,1,1)) -> 2023-02-17 | C91: =IF(A91>$A$8,"",OFFSET(InputPriceData!G$15,CalculationsAndCharts!$A91+$A$11,IF($C$5,8,0),1,1)) -> 25321400 | D91: =IF(A91>$A$8,"",OFFSET(InputPriceData!C$15,CalculationsAndCharts!$A91+$A$11,IF($C$5,8,0),1,1)) -> 51.330002 | E91: =IF(A91>$A$8,"",OFFSET(InputPriceData!D$15,CalculationsAndCharts!$A91+$A$11,IF($C$5,8,0),1,1)) -> 51.439999 | F91: =IF(A91>$A$8,"",OFFSET(InputPriceData!E$15,CalculationsAndCharts!$A91+$A$11,IF($C$5,8,0),1,1)) -> 50.599998 | G91: =IF(A91>$A$8,"",OFFSET(InputPriceData!F$15,CalculationsAndCharts!$A91+$A$11,IF($C$5,8,0),1,1)) -> 50.77 | H91: 51.0199985 | I91: 0.840001 | J91: 1.272615518 | K91: 3.817846555 | L91: 54.83784506 | M91: 47.20215194 | N91: 54.83784506 | O91: 47.20215194 | P91: 47.20215194 | Q91: 1.272615518 | R91: 5.090462074 | S91: 56.11046057 | T91: 45.92953643 | U91: 56.11046057 | V91: 46.13425566 | W91: 46.13425566 | BD91: 25321400
A92: 60 | B92: =IF(A92>$A$8,"",OFFSET(InputPriceData!B$15,$A92+$A$11,0,1,1)) -> 2023-02-16 | C92: =IF(A92>$A$8,"",OFFSET(InputPriceData!G$15,CalculationsAndCharts!$A92+$A$11,IF($C$5,8,0),1,1)) -> 48125300 | D92: =IF(A92>$A$8,"",OFFSET(InputPriceData!C$15,CalculationsAndCharts!$A92+$A$11,IF($C$5,8,0),1,1)) -> 49.990002 | E92: =IF(A92>$A$8,"",OFFSET(InputPriceData!D$15,CalculationsAndCharts!$A92+$A$11,IF($C$5,8,0),1,1)) -> 51.740002 | F92: =IF(A92>$A$8,"",OFFSET(InputPriceData!E$15,CalculationsAndCharts!$A92+$A$11,IF($C$5,8,0),1,1)) -> 49.799999 | G92: =IF(A92>$A$8,"",OFFSET(InputPriceData!F$15,CalculationsAndCharts!$A92+$A$11,IF($C$5,8,0),1,1)) -> 50.990002 | H92: 50.7700005 | I92: 3.290001 | J92: 1.368752078 | K92: 4.106256234 | L92: 54.87625673 | M92: 46.66374427 | N92: 49.79870779 | O92: 46.66374427 | P92: 46.66374427 | Q92: 1.368752078 | R92: 5.475008312 | S92: 56.24500881 | T92: 45.29499219 | U92: 49.93417206 | V92: 46.13425566 | W92: 46.13425566 | BC92: 48125300
A93: 61 | B93: =IF(A93>$A$8,"",OFFSET(InputPriceData!B$15,$A93+$A$11,0,1,1)) -> 2023-02-15 | C93: =IF(A93>$A$8,"",OFFSET(InputPriceData!G$15,CalculationsAndCharts!$A93+$A$11,IF($C$5,8,0),1,1)) -> 27071200 | D93: =IF(A93>$A$8,"",OFFSET(InputPriceData!C$15,CalculationsAndCharts!$A93+$A$11,IF($C$5,8,0),1,1)) -> 47.5 | E93: =IF(A93>$A$8,"",OFFSET(InputPriceData!D$15,CalculationsAndCharts!$A93+$A$11,IF($C$5,8,0),1,1)) -> 48.52 | F93: =IF(A93>$A$8,"",OFFSET(InputPriceData!E$15,CalculationsAndCharts!$A93+$A$11,IF($C$5,8,0),1,1)) -> 47.330002 | G93: =IF(A93>$A$8,"",OFFSET(InputPriceData!F$15,CalculationsAndCharts!$A93+$A$11,IF($C$5,8,0),1,1)) -> 48.450001 | H93: 47.925001 | I93: 1.189998 | J93: 0.9418078732 | K93: 2.82542362 | L93: 50.75042462 | M93: 45.09957738 | N93: 49.79870779 | O93: 46.18876937 | P93: 46.18876937 | Q93: 0.9418078732 | R93: 3.767231493 | S93: 51.69223249 | T93: 44.15776951 | U93: 49.93417206 | V93: 46.13425566 | W93: 46.13425566 | BC93: 27071200
A94: 62 | B94: =IF(A94>$A$8,"",OFFSET(InputPriceData!B$15,$A94+$A$11,0,1,1)) -> 2023-02-14 | C94: =IF(A94>$A$8,"",OFFSET(InputPriceData!G$15,CalculationsAndCharts!$A94+$A$11,IF($C$5,8,0),1,1)) -> 19134400 | D94: =IF(A94>$A$8,"",OFFSET(InputPriceData!C$15,CalculationsAndCharts!$A94+$A$11,IF($C$5,8,0),1,1)) -> 47.779999 | E94: =IF(A94>$A$8,"",OFFSET(InputPriceData!D$15,CalculationsAndCharts!$A94+$A$11,IF($C$5,8,0),1,1)) -> 48 | F94: =IF(A94>$A$8,"",OFFSET(InputPriceData!E$15,CalculationsAndCharts!$A94+$A$11,IF($C$5,8,0),1,1)) -> 47.18 | G94: =IF(A94>$A$8,"",OFFSET(InputPriceData!F$15,CalculationsAndCharts!$A94+$A$11,IF($C$5,8,0),1,1)) -> 47.700001 | H94: 47.59 | I94: 0.82 | J94: 0.8866545117 | K94: 2.659963535 | L94: 50.24996354 | M94: 44.93003646 | N94: 49.79870779 | O94: 46.18876937 | P94: 46.18876937 | Q94: 0.8866545117 | R94: 3.546618047 | S94: 51.13661805 | T94: 44.04338195 | U94: 49.93417206 | V94: 46.13425566 | W94: 46.13425566 | BD94: 19134400
A95: 63 | B95: =IF(A95>$A$8,"",OFFSET(InputPriceData!B$15,$A95+$A$11,0,1,1)) -> 2023-02-13 | C95: =IF(A95>$A$8,"",OFFSET(InputPriceData!G$15,CalculationsAndCharts!$A95+$A$11,IF($C$5,8,0),1,1)) -> 19422100 | D95: =IF(A95>$A$8,"",OFFSET(InputPriceData!C$15,CalculationsAndCharts!$A95+$A$11,IF($C$5,8,0),1,1)) -> 47.450001 | E95: =IF(A95>$A$8,"",OFFSET(InputPriceData!D$15,CalculationsAndCharts!$A95+$A$11,IF($C$5,8,0),1,1)) -> 47.990002 | F95: =IF(A95>$A$8,"",OFFSET(InputPriceData!E$15,CalculationsAndCharts!$A95+$A$11,IF($C$5,8,0),1,1)) -> 47.389999 | G95: =IF(A95>$A$8,"",OFFSET(InputPriceData!F$15,CalculationsAndCharts!$A95+$A$11,IF($C$5,8,0),1,1)) -> 47.860001 | H95: 47.6900005 | I95: 0.730004 | J95: 0.9014666254 | K95: 2.704399876 | L95: 50.39440038 | M95: 44.98560062 | N95: 49.79870779 | O95: 46.18876937 | P95: 46.18876937 | Q95: 0.9014666254 | R95: 3.605866502 | S95: 51.295867 | T95: 44.084134 | U95: 49.93417206 | V95: 46.13425566 | W95: 46.13425566 | BC95: 19422100
A96: 64 | B96: =IF(A96>$A$8,"",OFFSET(InputPriceData!B$15,$A96+$A$11,0,1,1)) -> 2023-02-10 | C96: =IF(A96>$A$8,"",OFFSET(InputPriceData!G$15,CalculationsAndCharts!$A96+$A$11,IF($C$5,8,0),1,1)) -> 17397300 | D96: =IF(A96>$A$8,"",OFFSET(InputPriceData!C$15,CalculationsAndCharts!$A96+$A$11,IF($C$5,8,0),1,1)) -> 46.700001 | E96: =IF(A96>$A$8,"",OFFSET(InputPriceData!D$15,CalculationsAndCharts!$A96+$A$11,IF($C$5,8,0),1,1)) -> 47.32 | F96: =IF(A96>$A$8,"",OFFSET(InputPriceData!E$15,CalculationsAndCharts!$A96+$A$11,IF($C$5,8,0),1,1)) -> 46.639999 | G96: =IF(A96>$A$8,"",OFFSET(InputPriceData!F$15,CalculationsAndCharts!$A96+$A$11,IF($C$5,8,0),1,1)) -> 47.259998 | H96: 46.9799995 | I96: 0.680001 | J96: 0.939569431 | K96: 2.818708293 | L96: 49.79870779 | M96: 44.16129121 | N96: 49.79870779 | O96: 46.18876937 | P96: 46.18876937 | Q96: 0.939569431 | R96: 3.758277724 | S96: 50.73827722 | T96: 43.22172178 | U96: 49.93417206 | V96: 46.13425566 | W96: 46.13425566 | BC96: 17397300
A97: 65 | B97: =IF(A97>$A$8,"",OFFSET(InputPriceData!B$15,$A97+$A$11,0,1,1)) -> 2023-02-09 | C97: =IF(A97>$A$8,"",OFFSET(InputPriceData!G$15,CalculationsAndCharts!$A97+$A$11,IF($C$5,8,0),1,1)) -> 18598400 | D97: =IF(A97>$A$8,"",OFFSET(InputPriceData!C$15,CalculationsAndCharts!$A97+$A$11,IF($C$5,8,0),1,1)) -> 47.23 | E97: =IF(A97>$A$8,"",OFFSET(InputPriceData!D$15,CalculationsAndCharts!$A97+$A$11,IF($C$5,8,0),1,1)) -> 47.41 | F97: =IF(A97>$A$8,"",OFFSET(InputPriceData!E$15,CalculationsAndCharts!$A97+$A$11,IF($C$5,8,0),1,1)) -> 46.43 | G97: =IF(A97>$A$8,"",OFFSET(InputPriceData!F$15,CalculationsAndCharts!$A97+$A$11,IF($C$5,8,0),1,1)) -> 46.73 | H97: 46.92 | I97: 0.98 | J97: 0.9972513046 | K97: 2.991753914 | L97: 49.91175391 | M97: 43.92824609 | N97: 49.91175391 | O97: 46.18876937 | P97: 46.18876937 | Q97: 0.9972513046 | R97: 3.989005218 | S97: 50.90900522 | T97: 42.93099478 | U97: 49.93417206 | V97: 46.13425566 | W97: 46.13425566 | BD97: 18598400
A98: 66 | B98: =IF(A98>$A$8,"",OFFSET(InputPriceData!B$15,$A98+$A$11,0,1,1)) -> 2023-02-08 | C98: =IF(A98>$A$8,"",OFFSET(InputPriceData!G$15,CalculationsAndCharts!$A98+$A$11,IF($C$5,8,0),1,1)) -> 18905500 | D98: =IF(A98>$A$8,"",OFFSET(InputPriceData!C$15,CalculationsAndCharts!$A98+$A$11,IF($C$5,8,0),1,1)) -> 47.380001 | E98: =IF(A98>$A$8,"",OFFSET(InputPriceData!D$15,CalculationsAndCharts!$A98+$A$11,IF($C$5,8,0),1,1)) -> 47.540001 | F98: =IF(A98>$A$8,"",OFFSET(InputPriceData!E$15,CalculationsAndCharts!$A98+$A$11,IF($C$5,8,0),1,1)) -> 46.77 | G98: =IF(A98>$A$8,"",OFFSET(InputPriceData!F$15,CalculationsAndCharts!$A98+$A$11,IF($C$5,8,0),1,1)) -> 46.959999 | H98: =IF($A99>$A$8,NA(),(E98+F98)/2) -> 47.1550005 | I98: =IF(A98>$I$30,NA(),MAX(E98-F98,ABS(E98-G99),ABS(F98-G99))) -> 1.07 | J98: =IF(A98>$J$30,NA(),IF(A98=$J$30,AVERAGE(OFFSET(I98,0,0,$A$17,1)),$C$17*(I98-J99)+J99)) -> 1.001084928 | K98: =IF(A98>$J$30,NA(),J98*$A$18) -> 3.003254784 | L98: =IF(A98>$J$30,NA(),H98+K98) -> 50.15825528 | M98: =IF(A98>$J$30,NA(),H98-K98) -> 44.15174572 | N98: =IF($A98>$N$30,NA(),IF($A98=$N$30,L98,IF(OR(L98<N99,$G99>N99),L98,N99))) -> 50.15825528 | O98: =IF($A98>$N$30,NA(),IF($A98=$N$30,M98,IF(OR(M98>O99,$G99<O99),M98,O99))) -> 46.18876937 | P98: =IF($A98>$P$30,NA(),IF($A98=$P$30,N98,IF(P99=N99,IF($G98<=N98,N98,O98),IF(P99=O99,IF($G98>=O98,O98,N98),N98)))) -> 46.18876937 | Q98: =IF($A98>Q$30,NA(),IF($A98=Q$30,AVERAGE(OFFSET($I98,0,0,$A$21,1)),$C$21*($I98-Q99)+Q99)) -> 1.001084928 | R98: =IF($A98>$Q$30,NA(),Q98*$A$22) -> 4.004339711 | S98: =IF($A98>$Q$30,NA(),$H98+R98) -> 51.15934021 | T98: =IF($A98>$Q$30,NA(),$H98-R98) -> 43.15066079 | U98: =IF($A98>$U$30,NA(),IF($A98=$U$30,S98,IF(OR(S98<U99,$G99>U99),S98,U99))) -> 49.93417206 | V98: =IF($A98>$U$30,NA(),IF($A98=$U$30,T98,IF(OR(T98>V99,$G99<V99),T98,V99))) -> 46.13425566 | W98: =IF($A98>$W$30,NA(),IF($A98=$W$30,U98,IF(W99=U99,IF($G98<=U98,U98,V98),IF(W99=V99,IF($G98>=V98,V98,U98),U98)))) -> 46.13425566 | BD98: 18905500
A99: 67 | B99: =IF(A99>$A$8,"",OFFSET(InputPriceData!B$15,$A99+$A$11,0,1,1)) -> 2023-02-07 | C99: =IF(A99>$A$8,"",OFFSET(InputPriceData!G$15,CalculationsAndCharts!$A99+$A$11,IF($C$5,8,0),1,1)) -> 16675200 | D99: =IF(A99>$A$8,"",OFFSET(InputPriceData!C$15,CalculationsAndCharts!$A99+$A$11,IF($C$5,8,0),1,1)) -> 47.240002 | E99: =IF(A99>$A$8,"",OFFSET(InputPriceData!D$15,CalculationsAndCharts!$A99+$A$11,IF($C$5,8,0),1,1)) -> 48.150002 | F99: =IF(A99>$A$8,"",OFFSET(InputPriceData!E$15,CalculationsAndCharts!$A99+$A$11,IF($C$5,8,0),1,1)) -> 46.970001 | G99: =IF(A99>$A$8,"",OFFSET(InputPriceData!F$15,CalculationsAndCharts!$A99+$A$11,IF($C$5,8,0),1,1)) -> 47.84 | H99: 47.5600015 | I99: 1.180001 | J99: 0.9857704674 | K99: 2.957311402 | L99: 50.5173129 | M99: 44.6026901 | N99: 50.5173129 | O99: 46.18876937 | P99: 46.18876937 | Q99: 0.9857704674 | R99: 3.943081869 | S99: 51.50308337 | T99: 43.61691963 | U99: 49.93417206 | V99: 46.13425566 | W99: 46.13425566 | BC99: 16675200
A100: 68 | B100: =IF(A100>$A$8,"",OFFSET(InputPriceData!B$15,$A100+$A$11,0,1,1)) -> 2023-02-06 | C100: =IF(A100>$A$8,"",OFFSET(InputPriceData!G$15,CalculationsAndCharts!$A100+$A$11,IF($C$5,8,0),1,1)) -> 13991600 | D100: =IF(A100>$A$8,"",OFFSET(InputPriceData!C$15,CalculationsAndCharts!$A100+$A$11,IF($C$5,8,0),1,1)) -> 48.07 | E100: =IF(A100>$A$8,"",OFFSET(InputPriceData!D$15,CalculationsAndCharts!$A100+$A$11,IF($C$5,8,0),1,1)) -> 48.279999 | F100: =IF(A100>$A$8,"",OFFSET(InputPriceData!E$15,CalculationsAndCharts!$A100+$A$11,IF($C$5,8,0),1,1)) -> 47.52 | G100: =IF(A100>$A$8,"",OFFSET(InputPriceData!F$15,CalculationsAndCharts!$A100+$A$11,IF($C$5,8,0),1,1)) -> 47.57 | H100: 47.8999995 | I100: 1.110001 | J100: 0.9426081268 | K100: 2.82782438 | L100: 50.72782388 | M100: 45.07217512 | N100: 50.72782388 | O100: 46.18876937 | P100: 46.18876937 | Q100: 0.9426081268 | R100: 3.770432507 | S100: 51.67043201 | T100: 44.12956699 | U100: 49.93417206 | V100: 46.13425566 | W100: 46.13425566 | BD100: 13991600
A101: 69 | B101: =IF(A101>$A$8,"",OFFSET(InputPriceData!B$15,$A101+$A$11,0,1,1)) -> 2023-02-03 | C101: =IF(A101>$A$8,"",OFFSET(InputPriceData!G$15,CalculationsAndCharts!$A101+$A$11,IF($C$5,8,0),1,1)) -> 17980000 | D101: =IF(A101>$A$8,"",OFFSET(InputPriceData!C$15,CalculationsAndCharts!$A101+$A$11,IF($C$5,8,0),1,1)) -> 49.299999 | E101: =IF(A101>$A$8,"",OFFSET(InputPriceData!D$15,CalculationsAndCharts!$A101+$A$11,IF($C$5,8,0),1,1)) -> 49.299999 | F101: =IF(A101>$A$8,"",OFFSET(InputPriceData!E$15,CalculationsAndCharts!$A101+$A$11,IF($C$5,8,0),1,1)) -> 48.509998 | G101: =IF(A101>$A$8,"",OFFSET(InputPriceData!F$15,CalculationsAndCharts!$A101+$A$11,IF($C$5,8,0),1,1)) -> 48.630001 | H101: 48.9049985 | I101: 0.810002 | J101: 0.9054097105 | K101: 2.716229132 | L101: 51.62122763 | M101: 46.18876937 | N101: 51.62122763 | O101: 46.18876937 | P101: 46.18876937 | Q101: 0.9054097105 | R101: 3.621638842 | S101: 52.52663734 | T101: 45.28335966 | U101: 49.93417206 | V101: 46.13425566 | W101: 46.13425566 | BD101: 17980000
A102: 70 | B102: =IF(A102>$A$8,"",OFFSET(InputPriceData!B$15,$A102+$A$11,0,1,1)) -> 2023-02-02 | C102: =IF(A102>$A$8,"",OFFSET(InputPriceData!G$15,CalculationsAndCharts!$A102+$A$11,IF($C$5,8,0),1,1)) -> 17883800 | D102: =IF(A102>$A$8,"",OFFSET(InputPriceData!C$15,CalculationsAndCharts!$A102+$A$11,IF($C$5,8,0),1,1)) -> 48.529999 | E102: =IF(A102>$A$8,"",OFFSET(InputPriceData!D$15,CalculationsAndCharts!$A102+$A$11,IF($C$5,8,0),1,1)) -> 49.560001 | F102: =IF(A102>$A$8,"",OFFSET(InputPriceData!E$15,CalculationsAndCharts!$A102+$A$11,IF($C$5,8,0),1,1)) -> 48.360001 | G102: =IF(A102>$A$8,"",OFFSET(InputPriceData!F$15,CalculationsAndCharts!$A102+$A$11,IF($C$5,8,0),1,1)) -> 49.32 | H102: 48.960001 | I102: 1.2 | J102: 0.926611424 | K102: 2.779834272 | L102: 51.73983527 | M102: 46.18016673 | N102: 49.01312904 | O102: 46.18016673 | P102: 46.18016673 | Q102: 0.926611424 | R102: 3.706445696 | S102: 52.6664467 | T102: 45.2535553 | U102: 49.93417206 | V102: 46.13425566 | W102: 46.13425566 | BC102: 17883800
A103: 71 | B103: =IF(A103>$A$8,"",OFFSET(InputPriceData!B$15,$A103+$A$11,0,1,1)) -> 2023-02-01 | C103: =IF(A103>$A$8,"",OFFSET(InputPriceData!G$15,CalculationsAndCharts!$A103+$A$11,IF($C$5,8,0),1,1)) -> 19639400 | D103: =IF(A103>$A$8,"",OFFSET(InputPriceData!C$15,CalculationsAndCharts!$A103+$A$11,IF($C$5,8,0),1,1)) -> 48.389999 | E103: =IF(A103>$A$8,"",OFFSET(InputPriceData!D$15,CalculationsAndCharts!$A103+$A$11,IF($C$5,8,0),1,1)) -> 48.900002 | F103: =IF(A103>$A$8,"",OFFSET(InputPriceData!E$15,CalculationsAndCharts!$A103+$A$11,IF($C$5,8,0),1,1)) -> 47.509998 | G103: =IF(A103>$A$8,"",OFFSET(InputPriceData!F$15,CalculationsAndCharts!$A103+$A$11,IF($C$5,8,0),1,1)) -> 48.57 | H103: 48.205 | I103: 1.390004 | J103: 0.8658584071 | K103: 2.597575221 | L103: 50.80257522 | M103: 45.60742478 | N103: 49.01312904 | O103: 46.12185417 | P103: 49.01312904 | Q103: 0.8658584071 | R103: 3.463433628 | S103: 51.66843363 | T103: 44.74156637 | U103: 49.93417206 | V103: 46.13425566 | W103: 46.13425566 | BD103: 19639400
A104: 72 | B104: =IF(A104>$A$8,"",OFFSET(InputPriceData!B$15,$A104+$A$11,0,1,1)) -> 2023-01-31 | C104: =IF(A104>$A$8,"",OFFSET(InputPriceData!G$15,CalculationsAndCharts!$A104+$A$11,IF($C$5,8,0),1,1)) -> 16821600 | D104: =IF(A104>$A$8,"",OFFSET(InputPriceData!C$15,CalculationsAndCharts!$A104+$A$11,IF($C$5,8,0),1,1)) -> 48.119999 | E104: =IF(A104>$A$8,"",OFFSET(InputPriceData!D$15,CalculationsAndCharts!$A104+$A$11,IF($C$5,8,0),1,1)) -> 48.689999 | F104: =IF(A104>$A$8,"",OFFSET(InputPriceData!E$15,CalculationsAndCharts!$A104+$A$11,IF($C$5,8,0),1,1)) -> 48.049999 | G104: =IF(A104>$A$8,"",OFFSET(InputPriceData!F$15,CalculationsAndCharts!$A104+$A$11,IF($C$5,8,0),1,1)) -> 48.669998 | H104: 48.369999 | I104: 0.64 | J104: 0.7493816086 | K104: 2.248144826 | L104: 50.61814383 | M104: 46.12185417 | N104: 49.01312904 | O104: 46.12185417 | P104: 49.01312904 | Q104: 0.7493816086 | R104: 2.997526435 | S104: 51.36752543 | T104: 45.37247257 | U104: 49.93417206 | V104: 46.13425566 | W104: 46.13425566 | BC104: 16821600
A105: 73 | B105: =IF(A105>$A$8,"",OFFSET(InputPriceData!B$15,$A105+$A$11,0,1,1)) -> 2023-01-30 | C105: =IF(A105>$A$8,"",OFFSET(InputPriceData!G$15,CalculationsAndCharts!$A105+$A$11,IF($C$5,8,0),1,1)) -> 19261900 | D105: =IF(A105>$A$8,"",OFFSET(InputPriceData!C$15,CalculationsAndCharts!$A105+$A$11,IF($C$5,8,0),1,1)) -> 48.139999 | E105: =IF(A105>$A$8,"",OFFSET(InputPriceData!D$15,CalculationsAndCharts!$A105+$A$11,IF($C$5,8,0),1,1)) -> 48.5 | F105: =IF(A105>$A$8,"",OFFSET(InputPriceData!E$15,CalculationsAndCharts!$A105+$A$11,IF($C$5,8,0),1,1)) -> 48.119999 | G105: =IF(A105>$A$8,"",OFFSET(InputPriceData!F$15,CalculationsAndCharts!$A105+$A$11,IF($C$5,8,0),1,1)) -> 48.220001 | H105: 48.3099995 | I105: 0.389999 | J105: 0.7736886328 | K105: 2.321065898 | L105: 50.6310654 | M105: 45.9889336 | N105: 49.01312904 | O105: 45.9889336 | P105: 49.01312904 | Q105: 0.7736886328 | R105: 3.094754531 | S105: 51.40475403 | T105: 45.21524497 | U105: 49.93417206 | V105: 46.13425566 | W105: 46.13425566 | BD105: 19261900
A106: 74 | B106: =IF(A106>$A$8,"",OFFSET(InputPriceData!B$15,$A106+$A$11,0,1,1)) -> 2023-01-27 | C106: =IF(A106>$A$8,"",OFFSET(InputPriceData!G$15,CalculationsAndCharts!$A106+$A$11,IF($C$5,8,0),1,1)) -> 13414800 | D106: =IF(A106>$A$8,"",OFFSET(InputPriceData!C$15,CalculationsAndCharts!$A106+$A$11,IF($C$5,8,0),1,1)) -> 48.099998 | E106: =IF(A106>$A$8,"",OFFSET(InputPriceData!D$15,CalculationsAndCharts!$A106+$A$11,IF($C$5,8,0),1,1)) -> 48.73 | F106: =IF(A106>$A$8,"",OFFSET(InputPriceData!E$15,CalculationsAndCharts!$A106+$A$11,IF($C$5,8,0),1,1)) -> 47.970001 | G106: =IF(A106>$A$8,"",OFFSET(InputPriceData!F$15,CalculationsAndCharts!$A106+$A$11,IF($C$5,8,0),1,1)) -> 48.509998 | H106: 48.3500005 | I106: 0.759999 | J106: 0.8589529956 | K106: 2.576858987 | L106: 50.92685949 | M106: 45.77314151 | N106: 49.01312904 | O106: 45.77314151 | P106: 49.01312904 | Q106: 0.8589529956 | R106: 3.435811982 | S106: 51.78581248 | T106: 44.91418852 | U106: 49.93417206 | V106: 46.13425566 | W106: 46.13425566 | BC106: 13414800
A107: 75 | B107: =IF(A107>$A$8,"",OFFSET(InputPriceData!B$15,$A107+$A$11,0,1,1)) -> 2023-01-26 | C107: =IF(A107>$A$8,"",OFFSET(InputPriceData!G$15,CalculationsAndCharts!$A107+$A$11,IF($C$5,8,0),1,1)) -> 12952700 | D107: =IF(A107>$A$8,"",OFFSET(InputPriceData!C$15,CalculationsAndCharts!$A107+$A$11,IF($C$5,8,0),1,1)) -> 48.150002 | E107: =IF(A107>$A$8,"",OFFSET(InputPriceData!D$15,CalculationsAndCharts!$A107+$A$11,IF($C$5,8,0),1,1)) -> 48.470001 | F107: =IF(A107>$A$8,"",OFFSET(InputPriceData!E$15,CalculationsAndCharts!$A107+$A$11,IF($C$5,8,0),1,1)) -> 47.830002 | G107: =IF(A107>$A$8,"",OFFSET(InputPriceData!F$15,CalculationsAndCharts!$A107+$A$11,IF($C$5,8,0),1,1)) -> 48.34 | H107: 48.1500015 | I107: 0.639999 | J107: 0.8809427724 | K107: 2.642828317 | L107: 50.79282982 | M107: 45.50717318 | N107: 49.01312904 | O107: 45.50717318 | P107: 49.01312904 | Q107: 0.8809427724 | R107: 3.52377109 | S107: 51.67377259 | T107: 44.62623041 | U107: 49.93417206 | V107: 46.13425566 | W107: 46.13425566 | BC107: 12952700
A108: 76 | B108: =IF(A108>$A$8,"",OFFSET(InputPriceData!B$15,$A108+$A$11,0,1,1)) -> 2023-01-25 | C108: =IF(A108>$A$8,"",OFFSET(InputPriceData!G$15,CalculationsAndCharts!$A108+$A$11,IF($C$5,8,0),1,1)) -> 14638700 | D108: =IF(A108>$A$8,"",OFFSET(InputPriceData!C$15,CalculationsAndCharts!$A108+$A$11,IF($C$5,8,0),1,1)) -> 47.98 | E108: =IF(A108>$A$8,"",OFFSET(InputPriceData!D$15,CalculationsAndCharts!$A108+$A$11,IF($C$5,8,0),1,1)) -> 48.080002 | F108: =IF(A108>$A$8,"",OFFSET(InputPriceData!E$15,CalculationsAndCharts!$A108+$A$11,IF($C$5,8,0),1,1)) -> 47.23 | G108: =IF(A108>$A$8,"",OFFSET(InputPriceData!F$15,CalculationsAndCharts!$A108+$A$11,IF($C$5,8,0),1,1)) -> 47.98 | H108: 47.655001 | I108: 0.850002 | J108: 0.9344858329 | K108: 2.803457499 | L108: 50.4584585 | M108: 44.8515435 | N108: 49.01312904 | O108: 44.8515435 | P108: 49.01312904 | Q108: 0.9344858329 | R108: 3.737943332 | S108: 51.39294433 | T108: 43.91705767 | U108: 49.93417206 | V108: 46.13425566 | W108: 46.13425566 | BC108: 14638700
A109: 77 | B109: =IF(A109>$A$8,"",OFFSET(InputPriceData!B$15,$A109+$A$11,0,1,1)) -> 2023-01-24 | C109: =IF(A109>$A$8,"",OFFSET(InputPriceData!G$15,CalculationsAndCharts!$A109+$A$11,IF($C$5,8,0),1,1)) -> 14872700 | D109: =IF(A109>$A$8,"",OFFSET(InputPriceData!C$15,CalculationsAndCharts!$A109+$A$11,IF($C$5,8,0),1,1)) -> 47.490002 | E109: =IF(A109>$A$8,"",OFFSET(InputPriceData!D$15,CalculationsAndCharts!$A109+$A$11,IF($C$5,8,0),1,1)) -> 48.02 | F109: =IF(A109>$A$8,"",OFFSET(InputPriceData!E$15,CalculationsAndCharts!$A109+$A$11,IF($C$5,8,0),1,1)) -> 47.060001 | G109: =IF(A109>$A$8,"",OFFSET(InputPriceData!F$15,CalculationsAndCharts!$A109+$A$11,IF($C$5,8,0),1,1)) -> 47.810001 | H109: 47.5400005 | I109: 0.959999 | J109: 0.953260018 | K109: 2.859780054 | L109: 50.39978055 | M109: 44.68022045 | N109: 49.01312904 | O109: 44.68022045 | P109: 49.01312904 | Q109: 0.953260018 | R109: 3.813040072 | S109: 51.35304057 | T109: 43.72696043 | U109: 49.93417206 | V109: 46.13425566 | W109: 46.13425566 | BC109: =IF(G109>=G110,C109,NA()) -> 14872700 | BD109: =IF(G109<G110,C109,NA()) -> 
A110: 78 | B110: =IF(A110>$A$8,"",OFFSET(InputPriceData!B$15,$A110+$A$11,0,1,1)) -> 2023-01-23 | C110: =IF(A110>$A$8,"",OFFSET(InputPriceData!G$15,CalculationsAndCharts!$A110+$A$11,IF($C$5,8,0),1,1)) -> 15180500 | D110: =IF(A110>$A$8,"",OFFSET(InputPriceData!C$15,CalculationsAndCharts!$A110+$A$11,IF($C$5,8,0),1,1)) -> 46.900002 | E110: =IF(A110>$A$8,"",OFFSET(InputPriceData!D$15,CalculationsAndCharts!$A110+$A$11,IF($C$5,8,0),1,1)) -> 47.869999 | F110: =IF(A110>$A$8,"",OFFSET(InputPriceData!E$15,CalculationsAndCharts!$A110+$A$11,IF($C$5,8,0),1,1)) -> 46.810001 | G110: =IF(A110>$A$8,"",OFFSET(InputPriceData!F$15,CalculationsAndCharts!$A110+$A$11,IF($C$5,8,0),1,1)) -> 47.5 | H110: 47.34 | I110: 1.09 | J110: 0.9517624665 | K110: 2.855287399 | L110: 50.1952874 | M110: 44.4847126 | N110: 49.01312904 | O110: 44.4847126 | P110: 49.01312904 | Q110: 0.9517624665 | R110: 3.807049866 | S110: 51.14704987 | T110: 43.53295013 | U110: 49.93417206 | V110: 46.13425566 | W110: 46.13425566 | BC110: 15180500
A111: 79 | B111: =IF(A111>$A$8,"",OFFSET(InputPriceData!B$15,$A111+$A$11,0,1,1)) -> 2023-01-20 | C111: =IF(A111>$A$8,"",OFFSET(InputPriceData!G$15,CalculationsAndCharts!$A111+$A$11,IF($C$5,8,0),1,1)) -> 21847200 | D111: =IF(A111>$A$8,"",OFFSET(InputPriceData!C$15,CalculationsAndCharts!$A111+$A$11,IF($C$5,8,0),1,1)) -> 46.060001 | E111: =IF(A111>$A$8,"",OFFSET(InputPriceData!D$15,CalculationsAndCharts!$A111+$A$11,IF($C$5,8,0),1,1)) -> 46.830002 | F111: =IF(A111>$A$8,"",OFFSET(InputPriceData!E$15,CalculationsAndCharts!$A111+$A$11,IF($C$5,8,0),1,1)) -> 45.669998 | G111: =IF(A111>$A$8,"",OFFSET(InputPriceData!F$15,CalculationsAndCharts!$A111+$A$11,IF($C$5,8,0),1,1)) -> 46.779999 | H111: 46.25 | I111: 1.160004 | J111: 0.9210430146 | K111: 2.763129044 | L111: 49.01312904 | M111: 43.48687096 | N111: 49.01312904 | O111: 43.48687096 | P111: 49.01312904 | Q111: 0.9210430146 | R111: 3.684172058 | S111: 49.93417206 | T111: 42.56582794 | U111: 49.93417206 | V111: 46.13425566 | W111: 46.13425566 | BC111: 21847200
A112: 80 | B112: =IF(A112>$A$8,"",OFFSET(InputPriceData!B$15,$A112+$A$11,0,1,1)) -> 2023-01-19 | C112: =IF(A112>$A$8,"",OFFSET(InputPriceData!G$15,CalculationsAndCharts!$A112+$A$11,IF($C$5,8,0),1,1)) -> 19118600 | D112: =IF(A112>$A$8,"",OFFSET(InputPriceData!C$15,CalculationsAndCharts!$A112+$A$11,IF($C$5,8,0),1,1)) -> 46.950001 | E112: =IF(A112>$A$8,"",OFFSET(InputPriceData!D$15,CalculationsAndCharts!$A112+$A$11,IF($C$5,8,0),1,1)) -> 47.049999 | F112: =IF(A112>$A$8,"",OFFSET(InputPriceData!E$15,CalculationsAndCharts!$A112+$A$11,IF($C$5,8,0),1,1)) -> 46.389999 | G112: =IF(A112>$A$8,"",OFFSET(InputPriceData!F$15,CalculationsAndCharts!$A112+$A$11,IF($C$5,8,0),1,1)) -> 46.459999 | H112: 46.719999 | I112: 0.66 | J112: 0.8679405734 | K112: 2.60382172 | L112: 49.32382072 | M112: 44.11617728 | N112: 49.32382072 | O112: 46.71385524 | P112: 49.32382072 | Q112: 0.8679405734 | R112: 3.471762294 | S112: 50.19176129 | T112: 43.24823671 | U112: 50.19176129 | V112: 46.13425566 | W112: 46.13425566 | BD112: 19118600
A113: 81 | B113: =IF(A113>$A$8,"",OFFSET(InputPriceData!B$15,$A113+$A$11,0,1,1)) -> 2023-01-18 | C113: =IF(A113>$A$8,"",OFFSET(InputPriceData!G$15,CalculationsAndCharts!$A113+$A$11,IF($C$5,8,0),1,1)) -> 19882200 | D113: =IF(A113>$A$8,"",OFFSET(InputPriceData!C$15,CalculationsAndCharts!$A113+$A$11,IF($C$5,8,0),1,1)) -> 48.189999 | E113: =IF(A113>$A$8,"",OFFSET(InputPriceData!D$15,CalculationsAndCharts!$A113+$A$11,IF($C$5,8,0),1,1)) -> 48.27 | F113: =IF(A113>$A$8,"",OFFSET(InputPriceData!E$15,CalculationsAndCharts!$A113+$A$11,IF($C$5,8,0),1,1)) -> 46.889999 | G113: =IF(A113>$A$8,"",OFFSET(InputPriceData!F$15,CalculationsAndCharts!$A113+$A$11,IF($C$5,8,0),1,1)) -> 46.900002 | H113: 47.5799995 | I113: 1.380001 | J113: 0.9141495897 | K113: 2.742448769 | L113: 50.32244827 | M113: 44.83755073 | N113: 49.59099034 | O113: 46.71385524 | P113: 49.59099034 | Q113: 0.9141495897 | R113: 3.656598359 | S113: 51.23659786 | T113: 43.92340114 | U113: 50.35132062 | V113: 46.13425566 | W113: 46.13425566 | BD113: 19882200
A114: 82 | B114: =IF(A114>$A$8,"",OFFSET(InputPriceData!B$15,$A114+$A$11,0,1,1)) -> 2023-01-17 | C114: =IF(A114>$A$8,"",OFFSET(InputPriceData!G$15,CalculationsAndCharts!$A114+$A$11,IF($C$5,8,0),1,1)) -> 19290800 | D114: =IF(A114>$A$8,"",OFFSET(InputPriceData!C$15,CalculationsAndCharts!$A114+$A$11,IF($C$5,8,0),1,1)) -> 48.919998 | E114: =IF(A114>$A$8,"",OFFSET(InputPriceData!D$15,CalculationsAndCharts!$A114+$A$11,IF($C$5,8,0),1,1)) -> 48.939999 | F114: =IF(A114>$A$8,"",OFFSET(InputPriceData!E$15,CalculationsAndCharts!$A114+$A$11,IF($C$5,8,0),1,1)) -> 47.950001 | G114: =IF(A114>$A$8,"",OFFSET(InputPriceData!F$15,CalculationsAndCharts!$A114+$A$11,IF($C$5,8,0),1,1)) -> 48.080002 | H114: 48.445 | I114: 0.989998 | J114: 0.8106270541 | K114: 2.431881162 | L114: 50.87688116 | M114: 46.01311884 | N114: 49.59099034 | O114: 46.71385524 | P114: 49.59099034 | Q114: 0.8106270541 | R114: 3.242508216 | S114: 51.68750822 | T114: 45.20249178 | U114: 50.35132062 | V114: 46.13425566 | W114: 46.13425566 | BD114: 19290800
A115: 83 | B115: =IF(A115>$A$8,"",OFFSET(InputPriceData!B$15,$A115+$A$11,0,1,1)) -> 2023-01-13 | C115: =IF(A115>$A$8,"",OFFSET(InputPriceData!G$15,CalculationsAndCharts!$A115+$A$11,IF($C$5,8,0),1,1)) -> 12649300 | D115: =IF(A115>$A$8,"",OFFSET(InputPriceData!C$15,CalculationsAndCharts!$A115+$A$11,IF($C$5,8,0),1,1)) -> 48.560001 | E115: =IF(A115>$A$8,"",OFFSET(InputPriceData!D$15,CalculationsAndCharts!$A115+$A$11,IF($C$5,8,0),1,1)) -> 49.02 | F115: =IF(A115>$A$8,"",OFFSET(InputPriceData!E$15,CalculationsAndCharts!$A115+$A$11,IF($C$5,8,0),1,1)) -> 48.419998 | G115: =IF(A115>$A$8,"",OFFSET(InputPriceData!F$15,CalculationsAndCharts!$A115+$A$11,IF($C$5,8,0),1,1)) -> 48.880001 | H115: 48.719999 | I115: 0.600002 | J115: 0.7707668439 | K115: 2.312300532 | L115: 51.03229953 | M115: 46.40769847 | N115: 49.59099034 | O115: 46.71385524 | P115: 49.59099034 | Q115: 0.7707668439 | R115: 3.083067376 | S115: 51.80306638 | T115: 45.63693162 | U115: 50.35132062 | V115: 46.13425566 | W115: 46.13425566 | BD115: 12649300
A116: 84 | B116: =IF(A116>$A$8,"",OFFSET(InputPriceData!B$15,$A116+$A$11,0,1,1)) -> 2023-01-12 | C116: =IF(A116>$A$8,"",OFFSET(InputPriceData!G$15,CalculationsAndCharts!$A116+$A$11,IF($C$5,8,0),1,1)) -> 14241700 | D116: =IF(A116>$A$8,"",OFFSET(InputPriceData!C$15,CalculationsAndCharts!$A116+$A$11,IF($C$5,8,0),1,1)) -> 49.209999 | E116: =IF(A116>$A$8,"",OFFSET(InputPriceData!D$15,CalculationsAndCharts!$A116+$A$11,IF($C$5,8,0),1,1)) -> 49.43 | F116: =IF(A116>$A$8,"",OFFSET(InputPriceData!E$15,CalculationsAndCharts!$A116+$A$11,IF($C$5,8,0),1,1)) -> 48.849998 | G116: =IF(A116>$A$8,"",OFFSET(InputPriceData!F$15,CalculationsAndCharts!$A116+$A$11,IF($C$5,8,0),1,1)) -> 49 | H116: 49.139999 | I116: 0.580002 | J116: 0.808714587 | K116: 2.426143761 | L116: 51.56614276 | M116: 46.71385524 | N116: 49.59099034 | O116: 46.71385524 | P116: 49.59099034 | Q116: 0.808714587 | R116: 3.234858348 | S116: 52.37485735 | T116: 45.90514065 | U116: 50.35132062 | V116: 46.13425566 | W116: 46.13425566 | BD116: 14241700
A117: 85 | B117: =IF(A117>$A$8,"",OFFSET(InputPriceData!B$15,$A117+$A$11,0,1,1)) -> 2023-01-11 | C117: =IF(A117>$A$8,"",OFFSET(InputPriceData!G$15,CalculationsAndCharts!$A117+$A$11,IF($C$5,8,0),1,1)) -> 12530900 | D117: =IF(A117>$A$8,"",OFFSET(InputPriceData!C$15,CalculationsAndCharts!$A117+$A$11,IF($C$5,8,0),1,1)) -> 48.830002 | E117: =IF(A117>$A$8,"",OFFSET(InputPriceData!D$15,CalculationsAndCharts!$A117+$A$11,IF($C$5,8,0),1,1)) -> 49.23 | F117: =IF(A117>$A$8,"",OFFSET(InputPriceData!E$15,CalculationsAndCharts!$A117+$A$11,IF($C$5,8,0),1,1)) -> 48.700001 | G117: =IF(A117>$A$8,"",OFFSET(InputPriceData!F$15,CalculationsAndCharts!$A117+$A$11,IF($C$5,8,0),1,1)) -> 49.209999 | H117: 48.9650005 | I117: 0.529999 | J117: 0.8595396063 | K117: 2.578618819 | L117: 51.54361932 | M117: 46.38638168 | N117: 49.59099034 | O117: 46.38638168 | P117: 49.59099034 | Q117: 0.8595396063 | R117: 3.438158425 | S117: 52.40315893 | T117: 45.52684207 | U117: 50.35132062 | V117: 46.13425566 | W117: 46.13425566 | BC117: 12530900
A118: 86 | B118: =IF(A118>$A$8,"",OFFSET(InputPriceData!B$15,$A118+$A$11,0,1,1)) -> 2023-01-10 | C118: =IF(A118>$A$8,"",OFFSET(InputPriceData!G$15,CalculationsAndCharts!$A118+$A$11,IF($C$5,8,0),1,1)) -> 12474400 | D118: =IF(A118>$A$8,"",OFFSET(InputPriceData!C$15,CalculationsAndCharts!$A118+$A$11,IF($C$5,8,0),1,1)) -> 48.799999 | E118: =IF(A118>$A$8,"",OFFSET(InputPriceData!D$15,CalculationsAndCharts!$A118+$A$11,IF($C$5,8,0),1,1)) -> 49.209999 | F118: =IF(A118>$A$8,"",OFFSET(InputPriceData!E$15,CalculationsAndCharts!$A118+$A$11,IF($C$5,8,0),1,1)) -> 48.59 | G118: =IF(A118>$A$8,"",OFFSET(InputPriceData!F$15,CalculationsAndCharts!$A118+$A$11,IF($C$5,8,0),1,1)) -> 48.810001 | H118: 48.8999995 | I118: 0.629997 | J118: 0.9327708522 | K118: 2.798312556 | L118: 51.69831206 | M118: 46.10168694 | N118: 49.59099034 | O118: 46.10168694 | P118: 49.59099034 | Q118: 0.9327708522 | R118: 3.731083409 | S118: 52.63108291 | T118: 45.16891609 | U118: 50.35132062 | V118: 46.13425566 | W118: 46.13425566 | BC118: 12474400
A119: 87 | B119: =IF(A119>$A$8,"",OFFSET(InputPriceData!B$15,$A119+$A$11,0,1,1)) -> 2023-01-09 | C119: =IF(A119>$A$8,"",OFFSET(InputPriceData!G$15,CalculationsAndCharts!$A119+$A$11,IF($C$5,8,0),1,1)) -> 13938000 | D119: =IF(A119>$A$8,"",OFFSET(InputPriceData!C$15,CalculationsAndCharts!$A119+$A$11,IF($C$5,8,0),1,1)) -> 48.259998 | E119: =IF(A119>$A$8,"",OFFSET(InputPriceData!D$15,CalculationsAndCharts!$A119+$A$11,IF($C$5,8,0),1,1)) -> 49.209999 | F119: =IF(A119>$A$8,"",OFFSET(InputPriceData!E$15,CalculationsAndCharts!$A119+$A$11,IF($C$5,8,0),1,1)) -> 48.220001 | G119: =IF(A119>$A$8,"",OFFSET(InputPriceData!F$15,CalculationsAndCharts!$A119+$A$11,IF($C$5,8,0),1,1)) -> 48.580002 | H119: 48.715 | I119: 0.989998 | J119: 1.00005393 | K119: 3.000161791 | L119: 51.71516179 | M119: 45.71483821 | N119: 49.59099034 | O119: 45.71483821 | P119: 49.59099034 | Q119: 1.00005393 | R119: 4.000215722 | S119: 52.71521572 | T119: 44.71478428 | U119: 50.35132062 | V119: 46.13425566 | W119: 46.13425566 | BC119: 13938000
A120: 88 | B120: =IF(A120>$A$8,"",OFFSET(InputPriceData!B$15,$A120+$A$11,0,1,1)) -> 2023-01-06 | C120: =IF(A120>$A$8,"",OFFSET(InputPriceData!G$15,CalculationsAndCharts!$A120+$A$11,IF($C$5,8,0),1,1)) -> 20823000 | D120: =IF(A120>$A$8,"",OFFSET(InputPriceData!C$15,CalculationsAndCharts!$A120+$A$11,IF($C$5,8,0),1,1)) -> 47.459999 | E120: =IF(A120>$A$8,"",OFFSET(InputPriceData!D$15,CalculationsAndCharts!$A120+$A$11,IF($C$5,8,0),1,1)) -> 48.59 | F120: =IF(A120>$A$8,"",OFFSET(InputPriceData!E$15,CalculationsAndCharts!$A120+$A$11,IF($C$5,8,0),1,1)) -> 47.279999 | G120: =IF(A120>$A$8,"",OFFSET(InputPriceData!F$15,CalculationsAndCharts!$A120+$A$11,IF($C$5,8,0),1,1)) -> 48.32 | H120: 47.9349995 | I120: 1.709999 | J120: 1.002288582 | K120: 3.006865745 | L120: 50.94186524 | M120: 44.92813376 | N120: 49.59099034 | O120: 45.4100995 | P120: 49.59099034 | Q120: 1.002288582 | R120: 4.009154326 | S120: 51.94415383 | T120: 43.92584517 | U120: 50.35132062 | V120: 46.13425566 | W120: 46.13425566 | BC120: 20823000
A121: 89 | B121: =IF(A121>$A$8,"",OFFSET(InputPriceData!B$15,$A121+$A$11,0,1,1)) -> 2023-01-05 | C121: =IF(A121>$A$8,"",OFFSET(InputPriceData!G$15,CalculationsAndCharts!$A121+$A$11,IF($C$5,8,0),1,1)) -> 17372100 | D121: =IF(A121>$A$8,"",OFFSET(InputPriceData!C$15,CalculationsAndCharts!$A121+$A$11,IF($C$5,8,0),1,1)) -> 47.490002 | E121: =IF(A121>$A$8,"",OFFSET(InputPriceData!D$15,CalculationsAndCharts!$A121+$A$11,IF($C$5,8,0),1,1)) -> 47.490002 | F121: =IF(A121>$A$8,"",OFFSET(InputPriceData!E$15,CalculationsAndCharts!$A121+$A$11,IF($C$5,8,0),1,1)) -> 46.759998 | G121: =IF(A121>$A$8,"",OFFSET(InputPriceData!F$15,CalculationsAndCharts!$A121+$A$11,IF($C$5,8,0),1,1)) -> 46.880001 | H121: 47.125 | I121: 0.790001 | J121: 0.8450195998 | K121: 2.535058799 | L121: 49.6600588 | M121: 44.5899412 | N121: 49.59099034 | O121: 45.4100995 | P121: 49.59099034 | Q121: 0.8450195998 | R121: 3.380078399 | S121: 50.5050784 | T121: 43.7449216 | U121: 50.35132062 | V121: 46.13425566 | W121: 46.13425566 | BD121: 17372100
A122: 90 | B122: =IF(A122>$A$8,"",OFFSET(InputPriceData!B$15,$A122+$A$11,0,1,1)) -> 2023-01-04 | C122: =IF(A122>$A$8,"",OFFSET(InputPriceData!G$15,CalculationsAndCharts!$A122+$A$11,IF($C$5,8,0),1,1)) -> 18339800 | D122: =IF(A122>$A$8,"",OFFSET(InputPriceData!C$15,CalculationsAndCharts!$A122+$A$11,IF($C$5,8,0),1,1)) -> 48.279999 | E122: =IF(A122>$A$8,"",OFFSET(InputPriceData!D$15,CalculationsAndCharts!$A122+$A$11,IF($C$5,8,0),1,1)) -> 48.48 | F122: =IF(A122>$A$8,"",OFFSET(InputPriceData!E$15,CalculationsAndCharts!$A122+$A$11,IF($C$5,8,0),1,1)) -> 47.169998 | G122: =IF(A122>$A$8,"",OFFSET(InputPriceData!F$15,CalculationsAndCharts!$A122+$A$11,IF($C$5,8,0),1,1)) -> 47.549999 | H122: 47.824999 | I122: 1.310002 | J122: 0.8572459553 | K122: 2.571737866 | L122: 50.39673687 | M122: 45.25326113 | N122: 49.59099034 | O122: 45.4100995 | P122: 49.59099034 | Q122: 0.8572459553 | R122: 3.428983821 | S122: 51.25398282 | T122: 44.39601518 | U122: 50.35132062 | V122: 46.13425566 | W122: 46.13425566 | BD122: 18339800
A123: 91 | B123: =IF(A123>$A$8,"",OFFSET(InputPriceData!B$15,$A123+$A$11,0,1,1)) -> 2023-01-03 | C123: =IF(A123>$A$8,"",OFFSET(InputPriceData!G$15,CalculationsAndCharts!$A123+$A$11,IF($C$5,8,0),1,1)) -> 17718900 | D123: =IF(A123>$A$8,"",OFFSET(InputPriceData!C$15,CalculationsAndCharts!$A123+$A$11,IF($C$5,8,0),1,1)) -> 47.860001 | E123: =IF(A123>$A$8,"",OFFSET(InputPriceData!D$15,CalculationsAndCharts!$A123+$A$11,IF($C$5,8,0),1,1)) -> 48.049999 | F123: =IF(A123>$A$8,"",OFFSET(InputPriceData!E$15,CalculationsAndCharts!$A123+$A$11,IF($C$5,8,0),1,1)) -> 47.310001 | G123: =IF(A123>$A$8,"",OFFSET(InputPriceData!F$15,CalculationsAndCharts!$A123+$A$11,IF($C$5,8,0),1,1)) -> 47.939999 | H123: 47.68 | I123: 0.739998 | J123: 0.7566335009 | K123: 2.269900503 | L123: 49.9499005 | M123: 45.4100995 | N123: 49.59099034 | O123: 45.4100995 | P123: 49.59099034 | Q123: 0.7566335009 | R123: 3.026534004 | S123: 50.706534 | T123: 44.653466 | U123: 50.35132062 | V123: 46.13425566 | W123: 46.13425566 | BC123: 17718900
A124: 92 | B124: =IF(A124>$A$8,"",OFFSET(InputPriceData!B$15,$A124+$A$11,0,1,1)) -> 2022-12-30 | C124: =IF(A124>$A$8,"",OFFSET(InputPriceData!G$15,CalculationsAndCharts!$A124+$A$11,IF($C$5,8,0),1,1)) -> 13199800 | D124: =IF(A124>$A$8,"",OFFSET(InputPriceData!C$15,CalculationsAndCharts!$A124+$A$11,IF($C$5,8,0),1,1)) -> 47.27 | E124: =IF(A124>$A$8,"",OFFSET(InputPriceData!D$15,CalculationsAndCharts!$A124+$A$11,IF($C$5,8,0),1,1)) -> 47.669998 | F124: =IF(A124>$A$8,"",OFFSET(InputPriceData!E$15,CalculationsAndCharts!$A124+$A$11,IF($C$5,8,0),1,1)) -> 46.950001 | G124: =IF(A124>$A$8,"",OFFSET(InputPriceData!F$15,CalculationsAndCharts!$A124+$A$11,IF($C$5,8,0),1,1)) -> 47.639999 | H124: 47.3099995 | I124: 0.719997 | J124: 0.7603302788 | K124: 2.280990837 | L124: 49.59099034 | M124: 45.02900866 | N124: 49.59099034 | O124: 45.19212031 | P124: 49.59099034 | Q124: 0.7603302788 | R124: 3.041321115 | S124: 50.35132062 | T124: 44.26867838 | U124: 50.35132062 | V124: 46.13425566 | W124: 46.13425566 | BC124: 13199800
A125: 93 | B125: =IF(A125>$A$8,"",OFFSET(InputPriceData!B$15,$A125+$A$11,0,1,1)) -> 2022-12-29 | C125: =IF(A125>$A$8,"",OFFSET(InputPriceData!G$15,CalculationsAndCharts!$A125+$A$11,IF($C$5,8,0),1,1)) -> 11396500 | D125: =IF(A125>$A$8,"",OFFSET(InputPriceData!C$15,CalculationsAndCharts!$A125+$A$11,IF($C$5,8,0),1,1)) -> 47.259998 | E125: =IF(A125>$A$8,"",OFFSET(InputPriceData!D$15,CalculationsAndCharts!$A125+$A$11,IF($C$5,8,0),1,1)) -> 47.740002 | F125: =IF(A125>$A$8,"",OFFSET(InputPriceData!E$15,CalculationsAndCharts!$A125+$A$11,IF($C$5,8,0),1,1)) -> 47.259998 | G125: =IF(A125>$A$8,"",OFFSET(InputPriceData!F$15,CalculationsAndCharts!$A125+$A$11,IF($C$5,8,0),1,1)) -> 47.5 | H125: 47.5 | I125: 0.670002 | J125: 0.7692932297 | K125: 2.307879689 | L125: 49.80787969 | M125: 45.19212031 | N125: 49.74907384 | O125: 45.19212031 | P125: 49.74907384 | Q125: 0.7692932297 | R125: 3.077172919 | S125: 50.57717292 | T125: 44.42282708 | U125: 50.54043179 | V125: 46.13425566 | W125: 46.13425566 | BC125: 11396500
A126: 94 | B126: =IF(A126>$A$8,"",OFFSET(InputPriceData!B$15,$A126+$A$11,0,1,1)) -> 2022-12-28 | C126: =IF(A126>$A$8,"",OFFSET(InputPriceData!G$15,CalculationsAndCharts!$A126+$A$11,IF($C$5,8,0),1,1)) -> 9847400 | D126: =IF(A126>$A$8,"",OFFSET(InputPriceData!C$15,CalculationsAndCharts!$A126+$A$11,IF($C$5,8,0),1,1)) -> 47.689999 | E126: =IF(A126>$A$8,"",OFFSET(InputPriceData!D$15,CalculationsAndCharts!$A126+$A$11,IF($C$5,8,0),1,1)) -> 47.77 | F126: =IF(A126>$A$8,"",OFFSET(InputPriceData!E$15,CalculationsAndCharts!$A126+$A$11,IF($C$5,8,0),1,1)) -> 46.98 | G126: =IF(A126>$A$8,"",OFFSET(InputPriceData!F$15,CalculationsAndCharts!$A126+$A$11,IF($C$5,8,0),1,1)) -> 47.07 | H126: 47.375 | I126: 0.79 | J126: 0.7913579474 | K126: 2.374073842 | L126: 49.74907384 | M126: 45.00092616 | N126: 49.74907384 | O126: 47.11944149 | P126: 49.74907384 | Q126: 0.7913579474 | R126: 3.16543179 | S126: 50.54043179 | T126: 44.20956821 | U126: 50.54043179 | V126: 46.13425566 | W126: 46.13425566 | BD126: 9847400
A127: 95 | B127: =IF(A127>$A$8,"",OFFSET(InputPriceData!B$15,$A127+$A$11,0,1,1)) -> 2022-12-27 | C127: =IF(A127>$A$8,"",OFFSET(InputPriceData!G$15,CalculationsAndCharts!$A127+$A$11,IF($C$5,8,0),1,1)) -> 12066200 | D127: =IF(A127>$A$8,"",OFFSET(InputPriceData!C$15,CalculationsAndCharts!$A127+$A$11,IF($C$5,8,0),1,1)) -> 47.669998 | E127: =IF(A127>$A$8,"",OFFSET(InputPriceData!D$15,CalculationsAndCharts!$A127+$A$11,IF($C$5,8,0),1,1)) -> 47.709999 | F127: =IF(A127>$A$8,"",OFFSET(InputPriceData!E$15,CalculationsAndCharts!$A127+$A$11,IF($C$5,8,0),1,1)) -> 47.220001 | G127: =IF(A127>$A$8,"",OFFSET(InputPriceData!F$15,CalculationsAndCharts!$A127+$A$11,IF($C$5,8,0),1,1)) -> 47.529999 | H127: 47.465 | I127: 0.489998 | J127: 0.7916597135 | K127: 2.374979141 | L127: 49.83997914 | M127: 45.09002086 | N127: 49.82608695 | O127: 47.11944149 | P127: 47.11944149 | Q127: 0.7916597135 | R127: 3.166638854 | S127: 50.63163885 | T127: 44.29836115 | U127: 50.63163885 | V127: 46.13425566 | W127: 46.13425566 | BC127: 12066200
A128: 96 | B128: =IF(A128>$A$8,"",OFFSET(InputPriceData!B$15,$A128+$A$11,0,1,1)) -> 2022-12-23 | C128: =IF(A128>$A$8,"",OFFSET(InputPriceData!G$15,CalculationsAndCharts!$A128+$A$11,IF($C$5,8,0),1,1)) -> 9554400 | D128: =IF(A128>$A$8,"",OFFSET(InputPriceData!C$15,CalculationsAndCharts!$A128+$A$11,IF($C$5,8,0),1,1)) -> 47.25 | E128: =IF(A128>$A$8,"",OFFSET(InputPriceData!D$15,CalculationsAndCharts!$A128+$A$11,IF($C$5,8,0),1,1)) -> 47.490002 | F128: =IF(A128>$A$8,"",OFFSET(InputPriceData!E$15,CalculationsAndCharts!$A128+$A$11,IF($C$5,8,0),1,1)) -> 47.009998 | G128: =IF(A128>$A$8,"",OFFSET(InputPriceData!F$15,CalculationsAndCharts!$A128+$A$11,IF($C$5,8,0),1,1)) -> 47.48 | H128: 47.25 | I128: 0.480004 | J128: 0.8586956498 | K128: 2.57608695 | L128: 49.82608695 | M128: 44.67391305 | N128: 49.82608695 | O128: 47.11944149 | P128: 47.11944149 | Q128: 0.8586956498 | R128: 3.434782599 | S128: 50.6847826 | T128: 43.8152174 | U128: 50.6847826 | V128: 46.13425566 | W128: 46.13425566 | BC128: 9554400
A129: 97 | B129: =IF(A129>$A$8,"",OFFSET(InputPriceData!B$15,$A129+$A$11,0,1,1)) -> 2022-12-22 | C129: =IF(A129>$A$8,"",OFFSET(InputPriceData!G$15,CalculationsAndCharts!$A129+$A$11,IF($C$5,8,0),1,1)) -> 23118500 | D129: =IF(A129>$A$8,"",OFFSET(InputPriceData!C$15,CalculationsAndCharts!$A129+$A$11,IF($C$5,8,0),1,1)) -> 47.490002 | E129: =IF(A129>$A$8,"",OFFSET(InputPriceData!D$15,CalculationsAndCharts!$A129+$A$11,IF($C$5,8,0),1,1)) -> 47.490002 | F129: =IF(A129>$A$8,"",OFFSET(InputPriceData!E$15,CalculationsAndCharts!$A129+$A$11,IF($C$5,8,0),1,1)) -> 46.689999 | G129: =IF(A129>$A$8,"",OFFSET(InputPriceData!F$15,CalculationsAndCharts!$A129+$A$11,IF($C$5,8,0),1,1)) -> 47.32 | H129: 47.0900005 | I129: 0.970001 | J129: 0.9428493498 | K129: 2.828548049 | L129: 49.91854855 | M129: 44.26145245 | N129: 49.91854855 | O129: 47.11944149 | P129: 47.11944149 | Q129: 0.9428493498 | R129: 3.771397399 | S129: 50.8613979 | T129: 43.3186031 | U129: 50.8613979 | V129: 46.13425566 | W129: 46.13425566 | BD129: 23118500
A130: 98 | B130: =IF(A130>$A$8,"",OFFSET(InputPriceData!B$15,$A130+$A$11,0,1,1)) -> 2022-12-21 | C130: =IF(A130>$A$8,"",OFFSET(InputPriceData!G$15,CalculationsAndCharts!$A130+$A$11,IF($C$5,8,0),1,1)) -> 15599400 | D130: =IF(A130>$A$8,"",OFFSET(InputPriceData!C$15,CalculationsAndCharts!$A130+$A$11,IF($C$5,8,0),1,1)) -> 47.689999 | E130: =IF(A130>$A$8,"",OFFSET(InputPriceData!D$15,CalculationsAndCharts!$A130+$A$11,IF($C$5,8,0),1,1)) -> 47.959999 | F130: =IF(A130>$A$8,"",OFFSET(InputPriceData!E$15,CalculationsAndCharts!$A130+$A$11,IF($C$5,8,0),1,1)) -> 47.419998 | G130: =IF(A130>$A$8,"",OFFSET(InputPriceData!F$15,CalculationsAndCharts!$A130+$A$11,IF($C$5,8,0),1,1)) -> 47.66 | H130: 47.6899985 | I130: 0.59 | J130: 0.9368156498 | K130: 2.810446949 | L130: 50.50044545 | M130: 44.87955155 | N130: 50.21665838 | O130: 47.11944149 | P130: 47.11944149 | Q130: 0.9368156498 | R130: 3.747262599 | S130: 51.4372611 | T130: 43.9427359 | U130: 51.23054418 | V130: 46.13425566 | W130: 46.13425566 | BC130: 15599400
A131: 99 | B131: =IF(A131>$A$8,"",OFFSET(InputPriceData!B$15,$A131+$A$11,0,1,1)) -> 2022-12-20 | C131: =IF(A131>$A$8,"",OFFSET(InputPriceData!G$15,CalculationsAndCharts!$A131+$A$11,IF($C$5,8,0),1,1)) -> 15086200 | D131: =IF(A131>$A$8,"",OFFSET(InputPriceData!C$15,CalculationsAndCharts!$A131+$A$11,IF($C$5,8,0),1,1)) -> 47.41 | E131: =IF(A131>$A$8,"",OFFSET(InputPriceData!D$15,CalculationsAndCharts!$A131+$A$11,IF($C$5,8,0),1,1)) -> 47.560001 | F131: =IF(A131>$A$8,"",OFFSET(InputPriceData!E$15,CalculationsAndCharts!$A131+$A$11,IF($C$5,8,0),1,1)) -> 46.790001 | G131: =IF(A131>$A$8,"",OFFSET(InputPriceData!F$15,CalculationsAndCharts!$A131+$A$11,IF($C$5,8,0),1,1)) -> 47.369999 | H131: 47.175001 | I131: 0.77 | J131: 1.013885794 | K131: 3.041657382 | L131: 50.21665838 | M131: 44.13334362 | N131: 50.21665838 | O131: 47.11944149 | P131: 47.11944149 | Q131: 1.013885794 | R131: 4.055543177 | S131: 51.23054418 | T131: 43.11945782 | U131: 51.23054418 | V131: 46.13425566 | W131: 46.13425566 | BD131: 15086200
A132: 100 | B132: =IF(A132>$A$8,"",OFFSET(InputPriceData!B$15,$A132+$A$11,0,1,1)) -> 2022-12-19 | C132: =IF(A132>$A$8,"",OFFSET(InputPriceData!G$15,CalculationsAndCharts!$A132+$A$11,IF($C$5,8,0),1,1)) -> 17986300 | D132: =IF(A132>$A$8,"",OFFSET(InputPriceData!C$15,CalculationsAndCharts!$A132+$A$11,IF($C$5,8,0),1,1)) -> 47.66 | E132: =IF(A132>$A$8,"",OFFSET(InputPriceData!D$15,CalculationsAndCharts!$A132+$A$11,IF($C$5,8,0),1,1)) -> 47.959999 | F132: =IF(A132>$A$8,"",OFFSET(InputPriceData!E$15,CalculationsAndCharts!$A132+$A$11,IF($C$5,8,0),1,1)) -> 47.139999 | G132: =IF(A132>$A$8,"",OFFSET(InputPriceData!F$15,CalculationsAndCharts!$A132+$A$11,IF($C$5,8,0),1,1)) -> 47.400002 | H132: 47.549999 | I132: 0.82 | J132: 1.068082637 | K132: 3.204247912 | L132: 50.75424691 | M132: 44.34575109 | N132: 50.66601601 | O132: 47.11944149 | P132: 47.11944149 | Q132: 1.068082637 | R132: 4.272330549 | S132: 51.82232955 | T132: 43.27766845 | U132: 51.51302134 | V132: 46.13425566 | W132: 46.13425566 | BD132: 17986300
A133: 101 | B133: =IF(A133>$A$8,"",OFFSET(InputPriceData!B$15,$A133+$A$11,0,1,1)) -> 2022-12-16 | C133: =IF(A133>$A$8,"",OFFSET(InputPriceData!G$15,CalculationsAndCharts!$A133+$A$11,IF($C$5,8,0),1,1)) -> 66125400 | D133: =IF(A133>$A$8,"",OFFSET(InputPriceData!C$15,CalculationsAndCharts!$A133+$A$11,IF($C$5,8,0),1,1)) -> 47.41 | E133: =IF(A133>$A$8,"",OFFSET(InputPriceData!D$15,CalculationsAndCharts!$A133+$A$11,IF($C$5,8,0),1,1)) -> 48 | F133: =IF(A133>$A$8,"",OFFSET(InputPriceData!E$15,CalculationsAndCharts!$A133+$A$11,IF($C$5,8,0),1,1)) -> 47.080002 | G133: =IF(A133>$A$8,"",OFFSET(InputPriceData!F$15,CalculationsAndCharts!$A133+$A$11,IF($C$5,8,0),1,1)) -> 47.810001 | H133: 47.540001 | I133: 1.07 | J133: 1.123212112 | K133: 3.369636337 | L133: 50.90963734 | M133: 44.17036466 | N133: 50.66601601 | O133: 47.11944149 | P133: 47.11944149 | Q133: 1.123212112 | R133: 4.492848449 | S133: 52.03284945 | T133: 43.04715255 | U133: 51.51302134 | V133: 46.13425566 | W133: 46.13425566 | BD133: 66125400
A134: 102 | B134: =IF(A134>$A$8,"",OFFSET(InputPriceData!B$15,$A134+$A$11,0,1,1)) -> 2022-12-15 | C134: =IF(A134>$A$8,"",OFFSET(InputPriceData!G$15,CalculationsAndCharts!$A134+$A$11,IF($C$5,8,0),1,1)) -> 19372500 | D134: =IF(A134>$A$8,"",OFFSET(InputPriceData!C$15,CalculationsAndCharts!$A134+$A$11,IF($C$5,8,0),1,1)) -> 48.959999 | E134: =IF(A134>$A$8,"",OFFSET(InputPriceData!D$15,CalculationsAndCharts!$A134+$A$11,IF($C$5,8,0),1,1)) -> 49.049999 | F134: =IF(A134>$A$8,"",OFFSET(InputPriceData!E$15,CalculationsAndCharts!$A134+$A$11,IF($C$5,8,0),1,1)) -> 47.740002 | G134: =IF(A134>$A$8,"",OFFSET(InputPriceData!F$15,CalculationsAndCharts!$A134+$A$11,IF($C$5,8,0),1,1)) -> 48.150002 | H134: 48.3950005 | I134: 1.559997 | J134: 1.135037026 | K134: 3.405111078 | L134: 51.80011158 | M134: 44.98988942 | N134: 50.66601601 | O134: 47.11944149 | P134: 47.11944149 | Q134: 1.135037026 | R134: 4.540148104 | S134: 52.9351486 | T134: 43.8548524 | U134: 51.51302134 | V134: 46.13425566 | W134: 46.13425566 | BD134: 19372500
A135: 103 | B135: =IF(A135>$A$8,"",OFFSET(InputPriceData!B$15,$A135+$A$11,0,1,1)) -> 2022-12-14 | C135: =IF(A135>$A$8,"",OFFSET(InputPriceData!G$15,CalculationsAndCharts!$A135+$A$11,IF($C$5,8,0),1,1)) -> 19050400 | D135: =IF(A135>$A$8,"",OFFSET(InputPriceData!C$15,CalculationsAndCharts!$A135+$A$11,IF($C$5,8,0),1,1)) -> 49.740002 | E135: =IF(A135>$A$8,"",OFFSET(InputPriceData!D$15,CalculationsAndCharts!$A135+$A$11,IF($C$5,8,0),1,1)) -> 50.060001 | F135: =IF(A135>$A$8,"",OFFSET(InputPriceData!E$15,CalculationsAndCharts!$A135+$A$11,IF($C$5,8,0),1,1)) -> 48.82 | G135: =IF(A135>$A$8,"",OFFSET(InputPriceData!F$15,CalculationsAndCharts!$A135+$A$11,IF($C$5,8,0),1,1)) -> 49.299999 | H135: 49.4400005 | I135: 1.240001 | J135: 1.040601476 | K135: 3.121804429 | L135: 52.56180493 | M135: 46.31819607 | N135: 50.66601601 | O135: 47.11944149 | P135: 47.11944149 | Q135: 1.040601476 | R135: 4.162405905 | S135: 53.60240641 | T135: 45.27759459 | U135: 51.51302134 | V135: 46.13425566 | W135: 46.13425566 | BD135: 19050400
A136: 104 | B136: =IF(A136>$A$8,"",OFFSET(InputPriceData!B$15,$A136+$A$11,0,1,1)) -> 2022-12-13 | C136: =IF(A136>$A$8,"",OFFSET(InputPriceData!G$15,CalculationsAndCharts!$A136+$A$11,IF($C$5,8,0),1,1)) -> 22705900 | D136: =IF(A136>$A$8,"",OFFSET(InputPriceData!C$15,CalculationsAndCharts!$A136+$A$11,IF($C$5,8,0),1,1)) -> 50.330002 | E136: =IF(A136>$A$8,"",OFFSET(InputPriceData!D$15,CalculationsAndCharts!$A136+$A$11,IF($C$5,8,0),1,1)) -> 50.709999 | F136: =IF(A136>$A$8,"",OFFSET(InputPriceData!E$15,CalculationsAndCharts!$A136+$A$11,IF($C$5,8,0),1,1)) -> 49.23 | G136: =IF(A136>$A$8,"",OFFSET(InputPriceData!F$15,CalculationsAndCharts!$A136+$A$11,IF($C$5,8,0),1,1)) -> 49.639999 | H136: 49.9699995 | I136: 1.479999 | J136: 0.9962904711 | K136: 2.988871413 | L136: 52.95887091 | M136: 46.98112809 | N136: 50.66601601 | O136: 47.11944149 | P136: 47.11944149 | Q136: 0.9962904711 | R136: 3.985161884 | S136: 53.95516138 | T136: 45.98483762 | U136: 51.51302134 | V136: 46.13425566 | W136: 46.13425566 | BC136: 22705900
A137: 105 | B137: =IF(A137>$A$8,"",OFFSET(InputPriceData!B$15,$A137+$A$11,0,1,1)) -> 2022-12-12 | C137: =IF(A137>$A$8,"",OFFSET(InputPriceData!G$15,CalculationsAndCharts!$A137+$A$11,IF($C$5,8,0),1,1)) -> 15425300 | D137: =IF(A137>$A$8,"",OFFSET(InputPriceData!C$15,CalculationsAndCharts!$A137+$A$11,IF($C$5,8,0),1,1)) -> 48.799999 | E137: =IF(A137>$A$8,"",OFFSET(InputPriceData!D$15,CalculationsAndCharts!$A137+$A$11,IF($C$5,8,0),1,1)) -> 49.32 | F137: =IF(A137>$A$8,"",OFFSET(InputPriceData!E$15,CalculationsAndCharts!$A137+$A$11,IF($C$5,8,0),1,1)) -> 48.369999 | G137: =IF(A137>$A$8,"",OFFSET(InputPriceData!F$15,CalculationsAndCharts!$A137+$A$11,IF($C$5,8,0),1,1)) -> 49.299999 | H137: 48.8449995 | I137: 0.950001 | J137: 0.8887996869 | K137: 2.666399061 | L137: 51.51139856 | M137: 46.17860044 | N137: 50.66601601 | O137: 47.11944149 | P137: 47.11944149 | Q137: 0.8887996869 | R137: 3.555198747 | S137: 52.40019825 | T137: 45.28980075 | U137: 51.51302134 | V137: 46.13425566 | W137: 46.13425566 | BC137: 15425300
A138: 106 | B138: =IF(A138>$A$8,"",OFFSET(InputPriceData!B$15,$A138+$A$11,0,1,1)) -> 2022-12-09 | C138: =IF(A138>$A$8,"",OFFSET(InputPriceData!G$15,CalculationsAndCharts!$A138+$A$11,IF($C$5,8,0),1,1)) -> 14303200 | D138: =IF(A138>$A$8,"",OFFSET(InputPriceData!C$15,CalculationsAndCharts!$A138+$A$11,IF($C$5,8,0),1,1)) -> 49.099998 | E138: =IF(A138>$A$8,"",OFFSET(InputPriceData!D$15,CalculationsAndCharts!$A138+$A$11,IF($C$5,8,0),1,1)) -> 49.169998 | F138: =IF(A138>$A$8,"",OFFSET(InputPriceData!E$15,CalculationsAndCharts!$A138+$A$11,IF($C$5,8,0),1,1)) -> 48.439999 | G138: =IF(A138>$A$8,"",OFFSET(InputPriceData!F$15,CalculationsAndCharts!$A138+$A$11,IF($C$5,8,0),1,1)) -> 48.459999 | H138: 48.8049985 | I138: 0.729999 | J138: 0.8751993951 | K138: 2.625598185 | L138: 51.43059669 | M138: 46.17940031 | N138: 50.66601601 | O138: 47.11944149 | P138: 47.11944149 | Q138: 0.8751993951 | R138: 3.50079758 | S138: 52.30579608 | T138: 45.30420092 | U138: 51.51302134 | V138: 46.13425566 | W138: 46.13425566 | BD138: 14303200
A139: 107 | B139: =IF(A139>$A$8,"",OFFSET(InputPriceData!B$15,$A139+$A$11,0,1,1)) -> 2022-12-08 | C139: =IF(A139>$A$8,"",OFFSET(InputPriceData!G$15,CalculationsAndCharts!$A139+$A$11,IF($C$5,8,0),1,1)) -> 16015800 | D139: =IF(A139>$A$8,"",OFFSET(InputPriceData!C$15,CalculationsAndCharts!$A139+$A$11,IF($C$5,8,0),1,1)) -> 48.66 | E139: =IF(A139>$A$8,"",OFFSET(InputPriceData!D$15,CalculationsAndCharts!$A139+$A$11,IF($C$5,8,0),1,1)) -> 49.200001 | F139: =IF(A139>$A$8,"",OFFSET(InputPriceData!E$15,CalculationsAndCharts!$A139+$A$11,IF($C$5,8,0),1,1)) -> 48.619999 | G139: =IF(A139>$A$8,"",OFFSET(InputPriceData!F$15,CalculationsAndCharts!$A139+$A$11,IF($C$5,8,0),1,1)) -> 48.990002 | H139: 48.91 | I139: 1.020001 | J139: 0.9074661495 | K139: 2.722398449 | L139: 51.63239845 | M139: 46.18760155 | N139: 50.66601601 | O139: 47.11944149 | P139: 47.11944149 | Q139: 0.9074661495 | R139: 3.629864598 | S139: 52.5398646 | T139: 45.2801354 | U139: 51.51302134 | V139: 46.13425566 | W139: 46.13425566 | BC139: 16015800
A140: 108 | B140: =IF(A140>$A$8,"",OFFSET(InputPriceData!B$15,$A140+$A$11,0,1,1)) -> 2022-12-07 | C140: =IF(A140>$A$8,"",OFFSET(InputPriceData!G$15,CalculationsAndCharts!$A140+$A$11,IF($C$5,8,0),1,1)) -> 15171700 | D140: =IF(A140>$A$8,"",OFFSET(InputPriceData!C$15,CalculationsAndCharts!$A140+$A$11,IF($C$5,8,0),1,1)) -> 48.400002 | E140: =IF(A140>$A$8,"",OFFSET(InputPriceData!D$15,CalculationsAndCharts!$A140+$A$11,IF($C$5,8,0),1,1)) -> 48.549999 | F140: =IF(A140>$A$8,"",OFFSET(InputPriceData!E$15,CalculationsAndCharts!$A140+$A$11,IF($C$5,8,0),1,1)) -> 48.060001 | G140: =IF(A140>$A$8,"",OFFSET(InputPriceData!F$15,CalculationsAndCharts!$A140+$A$11,IF($C$5,8,0),1,1)) -> 48.18 | H140: 48.305 | I140: 0.529999 | J140: 0.882458405 | K140: 2.647375215 | L140: 50.95237521 | M140: 45.65762479 | N140: 50.66601601 | O140: 47.11944149 | P140: 47.11944149 | Q140: 0.882458405 | R140: 3.52983362 | S140: 51.83483362 | T140: 44.77516638 | U140: 51.51302134 | V140: 46.13425566 | W140: 46.13425566 | BD140: 15171700
A141: 109 | B141: =IF(A141>$A$8,"",OFFSET(InputPriceData!B$15,$A141+$A$11,0,1,1)) -> 2022-12-06 | C141: =IF(A141>$A$8,"",OFFSET(InputPriceData!G$15,CalculationsAndCharts!$A141+$A$11,IF($C$5,8,0),1,1)) -> 15443800 | D141: =IF(A141>$A$8,"",OFFSET(InputPriceData!C$15,CalculationsAndCharts!$A141+$A$11,IF($C$5,8,0),1,1)) -> 49.439999 | E141: =IF(A141>$A$8,"",OFFSET(InputPriceData!D$15,CalculationsAndCharts!$A141+$A$11,IF($C$5,8,0),1,1)) -> 49.439999 | F141: =IF(A141>$A$8,"",OFFSET(InputPriceData!E$15,CalculationsAndCharts!$A141+$A$11,IF($C$5,8,0),1,1)) -> 48.259998 | G141: =IF(A141>$A$8,"",OFFSET(InputPriceData!F$15,CalculationsAndCharts!$A141+$A$11,IF($C$5,8,0),1,1)) -> 48.59 | H141: 48.8499985 | I141: 1.180001 | J141: 0.9607827172 | K141: 2.882348152 | L141: 51.73234665 | M141: 45.96765035 | N141: 50.66601601 | O141: 47.11944149 | P141: 47.11944149 | Q141: 0.9607827172 | R141: 3.843130869 | S141: 52.69312937 | T141: 45.00686763 | U141: 51.51302134 | V141: 46.13425566 | W141: 46.13425566 | BD141: 15443800
A142: 110 | B142: =IF(A142>$A$8,"",OFFSET(InputPriceData!B$15,$A142+$A$11,0,1,1)) -> 2022-12-05 | C142: =IF(A142>$A$8,"",OFFSET(InputPriceData!G$15,CalculationsAndCharts!$A142+$A$11,IF($C$5,8,0),1,1)) -> 13795900 | D142: =IF(A142>$A$8,"",OFFSET(InputPriceData!C$15,CalculationsAndCharts!$A142+$A$11,IF($C$5,8,0),1,1)) -> 49.549999 | E142: =IF(A142>$A$8,"",OFFSET(InputPriceData!D$15,CalculationsAndCharts!$A142+$A$11,IF($C$5,8,0),1,1)) -> 49.639999 | F142: =IF(A142>$A$8,"",OFFSET(InputPriceData!E$15,CalculationsAndCharts!$A142+$A$11,IF($C$5,8,0),1,1)) -> 49.169998 | G142: =IF(A142>$A$8,"",OFFSET(InputPriceData!F$15,CalculationsAndCharts!$A142+$A$11,IF($C$5,8,0),1,1)) -> 49.330002 | H142: 49.4049985 | I142: 0.530003 | J142: 0.9120675432 | K142: 2.73620263 | L142: 52.14120113 | M142: 46.66879587 | N142: 50.66601601 | O142: 47.11944149 | P142: 47.11944149 | Q142: 0.9120675432 | R142: 3.648270173 | S142: 53.05326867 | T142: 45.75672833 | U142: 51.51302134 | V142: 46.13425566 | W142: 46.13425566 | BD142: 13795900
A143: 111 | B143: =IF(A143>$A$8,"",OFFSET(InputPriceData!B$15,$A143+$A$11,0,1,1)) -> 2022-12-02 | C143: =IF(A143>$A$8,"",OFFSET(InputPriceData!G$15,CalculationsAndCharts!$A143+$A$11,IF($C$5,8,0),1,1)) -> 12325100 | D143: =IF(A143>$A$8,"",OFFSET(InputPriceData!C$15,CalculationsAndCharts!$A143+$A$11,IF($C$5,8,0),1,1)) -> 49.23 | E143: =IF(A143>$A$8,"",OFFSET(InputPriceData!D$15,CalculationsAndCharts!$A143+$A$11,IF($C$5,8,0),1,1)) -> 49.84 | F143: =IF(A143>$A$8,"",OFFSET(InputPriceData!E$15,CalculationsAndCharts!$A143+$A$11,IF($C$5,8,0),1,1)) -> 48.919998 | G143: =IF(A143>$A$8,"",OFFSET(InputPriceData!F$15,CalculationsAndCharts!$A143+$A$11,IF($C$5,8,0),1,1)) -> 49.700001 | H143: 49.379999 | I143: 1.050003 | J143: 0.996970775 | K143: 2.990912325 | L143: 52.37091133 | M143: 46.38908667 | N143: 50.66601601 | O143: 47.11944149 | P143: 47.11944149 | Q143: 0.996970775 | R143: 3.9878831 | S143: 53.3678821 | T143: 45.3921159 | U143: 51.51302134 | V143: 46.13425566 | W143: 46.13425566 | BD143: 12325100
A144: 112 | B144: =IF(A144>$A$8,"",OFFSET(InputPriceData!B$15,$A144+$A$11,0,1,1)) -> 2022-12-01 | C144: =IF(A144>$A$8,"",OFFSET(InputPriceData!G$15,CalculationsAndCharts!$A144+$A$11,IF($C$5,8,0),1,1)) -> 18559500 | D144: =IF(A144>$A$8,"",OFFSET(InputPriceData!C$15,CalculationsAndCharts!$A144+$A$11,IF($C$5,8,0),1,1)) -> 49.880001 | E144: =IF(A144>$A$8,"",OFFSET(InputPriceData!D$15,CalculationsAndCharts!$A144+$A$11,IF($C$5,8,0),1,1)) -> 50.459999 | F144: =IF(A144>$A$8,"",OFFSET(InputPriceData!E$15,CalculationsAndCharts!$A144+$A$11,IF($C$5,8,0),1,1)) -> 49.689999 | G144: =IF(A144>$A$8,"",OFFSET(InputPriceData!F$15,CalculationsAndCharts!$A144+$A$11,IF($C$5,8,0),1,1)) -> 49.970001 | H144: 50.074999 | I144: 0.77 | J144: 0.9851858362 | K144: 2.955557509 | L144: 53.03055651 | M144: 47.11944149 | N144: 50.66601601 | O144: 47.11944149 | P144: 47.11944149 | Q144: 0.9851858362 | R144: 3.940743345 | S144: 54.01574234 | T144: 46.13425566 | U144: 51.51302134 | V144: 46.13425566 | W144: 46.13425566 | BC144: 18559500
A145: 113 | B145: =IF(A145>$A$8,"",OFFSET(InputPriceData!B$15,$A145+$A$11,0,1,1)) -> 2022-11-30 | C145: =IF(A145>$A$8,"",OFFSET(InputPriceData!G$15,CalculationsAndCharts!$A145+$A$11,IF($C$5,8,0),1,1)) -> 29919700 | D145: =IF(A145>$A$8,"",OFFSET(InputPriceData!C$15,CalculationsAndCharts!$A145+$A$11,IF($C$5,8,0),1,1)) -> 48.169998 | E145: =IF(A145>$A$8,"",OFFSET(InputPriceData!D$15,CalculationsAndCharts!$A145+$A$11,IF($C$5,8,0),1,1)) -> 49.830002 | F145: =IF(A145>$A$8,"",OFFSET(InputPriceData!E$15,CalculationsAndCharts!$A145+$A$11,IF($C$5,8,0),1,1)) -> 47.959999 | G145: =IF(A145>$A$8,"",OFFSET(InputPriceData!F$15,CalculationsAndCharts!$A145+$A$11,IF($C$5,8,0),1,1)) -> 49.720001 | H145: 48.8950005 | I145: 1.870003 | J145: 1.033004911 | K145: 3.099014733 | L145: 51.99401523 | M145: 45.79598577 | N145: 50.66601601 | O145: 45.79598577 | P145: 45.79598577 | Q145: 1.033004911 | R145: 4.132019643 | S145: 53.02702014 | T145: 44.76298086 | U145: 51.51302134 | V145: 44.76298086 | W145: 44.76298086 | BC145: 29919700
A146: 114 | B146: =IF(A146>$A$8,"",OFFSET(InputPriceData!B$15,$A146+$A$11,0,1,1)) -> 2022-11-29 | C146: =IF(A146>$A$8,"",OFFSET(InputPriceData!G$15,CalculationsAndCharts!$A146+$A$11,IF($C$5,8,0),1,1)) -> 13779300 | D146: =IF(A146>$A$8,"",OFFSET(InputPriceData!C$15,CalculationsAndCharts!$A146+$A$11,IF($C$5,8,0),1,1)) -> 48.25 | E146: =IF(A146>$A$8,"",OFFSET(InputPriceData!D$15,CalculationsAndCharts!$A146+$A$11,IF($C$5,8,0),1,1)) -> 48.41 | F146: =IF(A146>$A$8,"",OFFSET(InputPriceData!E$15,CalculationsAndCharts!$A146+$A$11,IF($C$5,8,0),1,1)) -> 47.84 | G146: =IF(A146>$A$8,"",OFFSET(InputPriceData!F$15,CalculationsAndCharts!$A146+$A$11,IF($C$5,8,0),1,1)) -> 48.279999 | H146: 48.125 | I146: 0.57 | J146: 0.8470053355 | K146: 2.541016007 | L146: 50.66601601 | M146: 45.58398399 | N146: 50.66601601 | O146: 45.73527289 | P146: 45.73527289 | Q146: 0.8470053355 | R146: 3.388021342 | S146: 51.51302134 | T146: 44.73697866 | U146: 51.51302134 | V146: 44.74703101 | W146: 44.74703101 | BC146: 13779300
A147: 115 | B147: =IF(A147>$A$8,"",OFFSET(InputPriceData!B$15,$A147+$A$11,0,1,1)) -> 2022-11-28 | C147: =IF(A147>$A$8,"",OFFSET(InputPriceData!G$15,CalculationsAndCharts!$A147+$A$11,IF($C$5,8,0),1,1)) -> 14976600 | D147: =IF(A147>$A$8,"",OFFSET(InputPriceData!C$15,CalculationsAndCharts!$A147+$A$11,IF($C$5,8,0),1,1)) -> 48.290001 | E147: =IF(A147>$A$8,"",OFFSET(InputPriceData!D$15,CalculationsAndCharts!$A147+$A$11,IF($C$5,8,0),1,1)) -> 48.470001 | F147: =IF(A147>$A$8,"",OFFSET(InputPriceData!E$15,CalculationsAndCharts!$A147+$A$11,IF($C$5,8,0),1,1)) -> 47.919998 | G147: =IF(A147>$A$8,"",OFFSET(InputPriceData!F$15,CalculationsAndCharts!$A147+$A$11,IF($C$5,8,0),1,1)) -> 48.080002 | H147: 48.1949995 | I147: 0.550003 | J147: 0.9085620767 | K147: 2.72568623 | L147: 50.92068573 | M147: 45.46931327 | N147: 50.92068573 | O147: 45.73527289 | P147: 45.73527289 | Q147: 0.9085620767 | R147: 3.634248307 | S147: 51.82924781 | T147: 44.56075119 | U147: 51.82924781 | V147: 44.74703101 | W147: 44.74703101 | BD147: 14976600
A148: 116 | B148: =IF(A148>$A$8,"",OFFSET(InputPriceData!B$15,$A148+$A$11,0,1,1)) -> 2022-11-25 | C148: =IF(A148>$A$8,"",OFFSET(InputPriceData!G$15,CalculationsAndCharts!$A148+$A$11,IF($C$5,8,0),1,1)) -> 8492600 | D148: =IF(A148>$A$8,"",OFFSET(InputPriceData!C$15,CalculationsAndCharts!$A148+$A$11,IF($C$5,8,0),1,1)) -> 48.75 | E148: =IF(A148>$A$8,"",OFFSET(InputPriceData!D$15,CalculationsAndCharts!$A148+$A$11,IF($C$5,8,0),1,1)) -> 49.049999 | F148: =IF(A148>$A$8,"",OFFSET(InputPriceData!E$15,CalculationsAndCharts!$A148+$A$11,IF($C$5,8,0),1,1)) -> 48.349998 | G148: =IF(A148>$A$8,"",OFFSET(InputPriceData!F$15,CalculationsAndCharts!$A148+$A$11,IF($C$5,8,0),1,1)) -> 48.400002 | H148: 48.6999985 | I148: 0.700001 | J148: 0.9882418716 | K148: 2.964725615 | L148: 51.66472411 | M148: 45.73527289 | N148: 51.40804581 | O148: 45.73527289 | P148: 45.73527289 | Q148: 0.9882418716 | R148: 3.952967486 | S148: 52.65296599 | T148: 44.74703101 | U148: 52.65296599 | V148: 44.74703101 | W148: 44.74703101 | BD148: 8492600
A149: 117 | B149: =IF(A149>$A$8,"",OFFSET(InputPriceData!B$15,$A149+$A$11,0,1,1)) -> 2022-11-23 | C149: =IF(A149>$A$8,"",OFFSET(InputPriceData!G$15,CalculationsAndCharts!$A149+$A$11,IF($C$5,8,0),1,1)) -> 12065600 | D149: =IF(A149>$A$8,"",OFFSET(InputPriceData!C$15,CalculationsAndCharts!$A149+$A$11,IF($C$5,8,0),1,1)) -> 48.400002 | E149: =IF(A149>$A$8,"",OFFSET(InputPriceData!D$15,CalculationsAndCharts!$A149+$A$11,IF($C$5,8,0),1,1)) -> 48.990002 | F149: =IF(A149>$A$8,"",OFFSET(InputPriceData!E$15,CalculationsAndCharts!$A149+$A$11,IF($C$5,8,0),1,1)) -> 48.32 | G149: =IF(A149>$A$8,"",OFFSET(InputPriceData!F$15,CalculationsAndCharts!$A149+$A$11,IF($C$5,8,0),1,1)) -> 48.57 | H149: 48.655001 | I149: 0.670002 | J149: 1.052295399 | K149: 3.156886196 | L149: 51.8118872 | M149: 45.4981148 | N149: 51.40804581 | O149: 45.4981148 | P149: 45.4981148 | Q149: 1.052295399 | R149: 4.209181594 | S149: 52.86418259 | T149: 44.44581941 | U149: 52.86418259 | V149: 44.44581941 | W149: 44.44581941 | BC149: 12065600
A150: 118 | B150: =IF(A150>$A$8,"",OFFSET(InputPriceData!B$15,$A150+$A$11,0,1,1)) -> 2022-11-22 | C150: =IF(A150>$A$8,"",OFFSET(InputPriceData!G$15,CalculationsAndCharts!$A150+$A$11,IF($C$5,8,0),1,1)) -> 16367800 | D150: =IF(A150>$A$8,"",OFFSET(InputPriceData!C$15,CalculationsAndCharts!$A150+$A$11,IF($C$5,8,0),1,1)) -> 48 | E150: =IF(A150>$A$8,"",OFFSET(InputPriceData!D$15,CalculationsAndCharts!$A150+$A$11,IF($C$5,8,0),1,1)) -> 48.419998 | F150: =IF(A150>$A$8,"",OFFSET(InputPriceData!E$15,CalculationsAndCharts!$A150+$A$11,IF($C$5,8,0),1,1)) -> 47.759998 | G150: =IF(A150>$A$8,"",OFFSET(InputPriceData!F$15,CalculationsAndCharts!$A150+$A$11,IF($C$5,8,0),1,1)) -> 48.380001 | H150: 48.089998 | I150: 0.799999 | J150: 1.137249487 | K150: 3.411748461 | L150: 51.50174646 | M150: 44.67824954 | N150: 51.40804581 | O150: 44.67824954 | P150: 44.67824954 | Q150: 1.137249487 | R150: 4.548997949 | S150: 52.63899595 | T150: 43.54100005 | U150: 48.11367627 | V150: 43.54100005 | W150: 43.54100005 | BC150: 16367800
A151: 119 | B151: =IF(A151>$A$8,"",OFFSET(InputPriceData!B$15,$A151+$A$11,0,1,1)) -> 2022-11-21 | C151: =IF(A151>$A$8,"",OFFSET(InputPriceData!G$15,CalculationsAndCharts!$A151+$A$11,IF($C$5,8,0),1,1)) -> 17049500 | D151: =IF(A151>$A$8,"",OFFSET(InputPriceData!C$15,CalculationsAndCharts!$A151+$A$11,IF($C$5,8,0),1,1)) -> 47.610001 | E151: =IF(A151>$A$8,"",OFFSET(InputPriceData!D$15,CalculationsAndCharts!$A151+$A$11,IF($C$5,8,0),1,1)) -> 48.290001 | F151: =IF(A151>$A$8,"",OFFSET(InputPriceData!E$15,CalculationsAndCharts!$A151+$A$11,IF($C$5,8,0),1,1)) -> 47.560001 | G151: =IF(A151>$A$8,"",OFFSET(InputPriceData!F$15,CalculationsAndCharts!$A151+$A$11,IF($C$5,8,0),1,1)) -> 47.619999 | H151: 47.925001 | I151: 0.73 | J151: 1.21219404 | K151: 3.63658212 | L151: 51.56158312 | M151: 44.28841888 | N151: 51.40804581 | O151: 44.28841888 | P151: 44.28841888 | Q151: 1.21219404 | R151: 4.848776159 | S151: 52.77377716 | T151: 43.07622484 | U151: 48.11367627 | V151: 43.07622484 | W151: 43.07622484 | BD151: 17049500
A152: 120 | B152: =IF(A152>$A$8,"",OFFSET(InputPriceData!B$15,$A152+$A$11,0,1,1)) -> 2022-11-18 | C152: =IF(A152>$A$8,"",OFFSET(InputPriceData!G$15,CalculationsAndCharts!$A152+$A$11,IF($C$5,8,0),1,1)) -> 30843200 | D152: =IF(A152>$A$8,"",OFFSET(InputPriceData!C$15,CalculationsAndCharts!$A152+$A$11,IF($C$5,8,0),1,1)) -> 46.91 | E152: =IF(A152>$A$8,"",OFFSET(InputPriceData!D$15,CalculationsAndCharts!$A152+$A$11,IF($C$5,8,0),1,1)) -> 48.040001 | F152: =IF(A152>$A$8,"",OFFSET(InputPriceData!E$15,CalculationsAndCharts!$A152+$A$11,IF($C$5,8,0),1,1)) -> 46.860001 | G152: =IF(A152>$A$8,"",OFFSET(InputPriceData!F$15,CalculationsAndCharts!$A152+$A$11,IF($C$5,8,0),1,1)) -> 47.790001 | H152: 47.450001 | I152: 1.450001 | J152: 1.319348271 | K152: 3.958044813 | L152: 51.40804581 | M152: 43.49195619 | N152: 51.40804581 | O152: 43.49195619 | P152: 43.49195619 | Q152: 1.319348271 | R152: 5.277393084 | S152: 52.72739408 | T152: 42.17260792 | U152: 48.11367627 | V152: 42.17260792 | W152: 42.17260792 | BC152: 30843200
A153: 121 | B153: =IF(A153>$A$8,"",OFFSET(InputPriceData!B$15,$A153+$A$11,0,1,1)) -> 2022-11-17 | C153: =IF(A153>$A$8,"",OFFSET(InputPriceData!G$15,CalculationsAndCharts!$A153+$A$11,IF($C$5,8,0),1,1)) -> 38887800 | D153: =IF(A153>$A$8,"",OFFSET(InputPriceData!C$15,CalculationsAndCharts!$A153+$A$11,IF($C$5,8,0),1,1)) -> 46.189999 | E153: =IF(A153>$A$8,"",OFFSET(InputPriceData!D$15,CalculationsAndCharts!$A153+$A$11,IF($C$5,8,0),1,1)) -> 46.849998 | F153: =IF(A153>$A$8,"",OFFSET(InputPriceData!E$15,CalculationsAndCharts!$A153+$A$11,IF($C$5,8,0),1,1)) -> 45.16 | G153: =IF(A153>$A$8,"",OFFSET(InputPriceData!F$15,CalculationsAndCharts!$A153+$A$11,IF($C$5,8,0),1,1)) -> 46.59 | H153: 46.004999 | I153: 2.459999 | J153: 1.290314331 | K153: 3.870942993 | L153: 49.87594199 | M153: 42.13405601 | N153: 46.58196024 | O153: 42.62662433 | P153: 42.62662433 | Q153: 1.290314331 | R153: 5.161257325 | S153: 51.16625632 | T153: 40.84374168 | U153: 48.11367627 | V153: 41.69383211 | W153: 41.69383211 | BC153: 38887800
A154: 122 | B154: =IF(A154>$A$8,"",OFFSET(InputPriceData!B$15,$A154+$A$11,0,1,1)) -> 2022-11-16 | C154: =IF(A154>$A$8,"",OFFSET(InputPriceData!G$15,CalculationsAndCharts!$A154+$A$11,IF($C$5,8,0),1,1)) -> 24939600 | D154: =IF(A154>$A$8,"",OFFSET(InputPriceData!C$15,CalculationsAndCharts!$A154+$A$11,IF($C$5,8,0),1,1)) -> 44.939999 | E154: =IF(A154>$A$8,"",OFFSET(InputPriceData!D$15,CalculationsAndCharts!$A154+$A$11,IF($C$5,8,0),1,1)) -> 44.98 | F154: =IF(A154>$A$8,"",OFFSET(InputPriceData!E$15,CalculationsAndCharts!$A154+$A$11,IF($C$5,8,0),1,1)) -> 44.299999 | G154: =IF(A154>$A$8,"",OFFSET(InputPriceData!F$15,CalculationsAndCharts!$A154+$A$11,IF($C$5,8,0),1,1)) -> 44.389999 | H154: 44.6399995 | I154: 0.680001 | J154: 1.030384405 | K154: 3.091153214 | L154: 47.73115271 | M154: 41.54884629 | N154: 46.58196024 | O154: 42.62662433 | P154: 42.62662433 | Q154: 1.030384405 | R154: 4.121537619 | S154: 48.76153712 | T154: 40.51846188 | U154: 48.11367627 | V154: 41.69383211 | W154: 41.69383211 | BD154: 24939600
A155: 123 | B155: =IF(A155>$A$8,"",OFFSET(InputPriceData!B$15,$A155+$A$11,0,1,1)) -> 2022-11-15 | C155: =IF(A155>$A$8,"",OFFSET(InputPriceData!G$15,CalculationsAndCharts!$A155+$A$11,IF($C$5,8,0),1,1)) -> 19318000 | D155: =IF(A155>$A$8,"",OFFSET(InputPriceData!C$15,CalculationsAndCharts!$A155+$A$11,IF($C$5,8,0),1,1)) -> 45.040001 | E155: =IF(A155>$A$8,"",OFFSET(InputPriceData!D$15,CalculationsAndCharts!$A155+$A$11,IF($C$5,8,0),1,1)) -> 45.240002 | F155: =IF(A155>$A$8,"",OFFSET(InputPriceData!E$15,CalculationsAndCharts!$A155+$A$11,IF($C$5,8,0),1,1)) -> 44.450001 | G155: =IF(A155>$A$8,"",OFFSET(InputPriceData!F$15,CalculationsAndCharts!$A155+$A$11,IF($C$5,8,0),1,1)) -> 44.900002 | H155: 44.8450015 | I155: 0.790001 | J155: 1.108247384 | K155: 3.324742151 | L155: 48.16974365 | M155: 41.52025935 | N155: 46.58196024 | O155: 42.62662433 | P155: 42.62662433 | Q155: 1.108247384 | R155: 4.432989534 | S155: 49.27799103 | T155: 40.41201197 | U155: 48.11367627 | V155: 41.69383211 | W155: 41.69383211 | BC155: 19318000
A156: 124 | B156: =IF(A156>$A$8,"",OFFSET(InputPriceData!B$15,$A156+$A$11,0,1,1)) -> 2022-11-14 | C156: =IF(A156>$A$8,"",OFFSET(InputPriceData!G$15,CalculationsAndCharts!$A156+$A$11,IF($C$5,8,0),1,1)) -> 21091300 | D156: =IF(A156>$A$8,"",OFFSET(InputPriceData!C$15,CalculationsAndCharts!$A156+$A$11,IF($C$5,8,0),1,1)) -> 44.830002 | E156: =IF(A156>$A$8,"",OFFSET(InputPriceData!D$15,CalculationsAndCharts!$A156+$A$11,IF($C$5,8,0),1,1)) -> 45.439999 | F156: =IF(A156>$A$8,"",OFFSET(InputPriceData!E$15,CalculationsAndCharts!$A156+$A$11,IF($C$5,8,0),1,1)) -> 44.68 | G156: =IF(A156>$A$8,"",OFFSET(InputPriceData!F$15,CalculationsAndCharts!$A156+$A$11,IF($C$5,8,0),1,1)) -> 44.740002 | H156: 45.0599995 | I156: 0.759999 | J156: 1.178968802 | K156: 3.536906406 | L156: 48.59690591 | M156: 41.52309309 | N156: 46.58196024 | O156: 42.62662433 | P156: 42.62662433 | Q156: 1.178968802 | R156: 4.715875208 | S156: 49.77587471 | T156: 40.34412429 | U156: 48.11367627 | V156: 41.69383211 | W156: 41.69383211 | BD156: 21091300
A157: 125 | B157: =IF(A157>$A$8,"",OFFSET(InputPriceData!B$15,$A157+$A$11,0,1,1)) -> 2022-11-11 | C157: =IF(A157>$A$8,"",OFFSET(InputPriceData!G$15,CalculationsAndCharts!$A157+$A$11,IF($C$5,8,0),1,1)) -> 25961800 | D157: =IF(A157>$A$8,"",OFFSET(InputPriceData!C$15,CalculationsAndCharts!$A157+$A$11,IF($C$5,8,0),1,1)) -> 45.18 | E157: =IF(A157>$A$8,"",OFFSET(InputPriceData!D$15,CalculationsAndCharts!$A157+$A$11,IF($C$5,8,0),1,1)) -> 45.32 | F157: =IF(A157>$A$8,"",OFFSET(InputPriceData!E$15,CalculationsAndCharts!$A157+$A$11,IF($C$5,8,0),1,1)) -> 43.919998 | G157: =IF(A157>$A$8,"",OFFSET(InputPriceData!F$15,CalculationsAndCharts!$A157+$A$11,IF($C$5,8,0),1,1)) -> 44.790001 | H157: 44.619999 | I157: 1.740002 | J157: 1.272073203 | K157: 3.816219608 | L157: 48.43621861 | M157: 40.80377939 | N157: 46.58196024 | O157: 42.62662433 | P157: 42.62662433 | Q157: 1.272073203 | R157: 5.08829281 | S157: 49.70829181 | T157: 39.53170619 | U157: 48.11367627 | V157: 41.69383211 | W157: 41.69383211 | BD157: 25961800
A158: 126 | B158: =IF(A158>$A$8,"",OFFSET(InputPriceData!B$15,$A158+$A$11,0,1,1)) -> 2022-11-10 | C158: =IF(A158>$A$8,"",OFFSET(InputPriceData!G$15,CalculationsAndCharts!$A158+$A$11,IF($C$5,8,0),1,1)) -> 27190100 | D158: =IF(A158>$A$8,"",OFFSET(InputPriceData!C$15,CalculationsAndCharts!$A158+$A$11,IF($C$5,8,0),1,1)) -> 45.700001 | E158: =IF(A158>$A$8,"",OFFSET(InputPriceData!D$15,CalculationsAndCharts!$A158+$A$11,IF($C$5,8,0),1,1)) -> 45.810001 | F158: =IF(A158>$A$8,"",OFFSET(InputPriceData!E$15,CalculationsAndCharts!$A158+$A$11,IF($C$5,8,0),1,1)) -> 44.650002 | G158: =IF(A158>$A$8,"",OFFSET(InputPriceData!F$15,CalculationsAndCharts!$A158+$A$11,IF($C$5,8,0),1,1)) -> 45.66 | H158: 45.2300015 | I158: 1.900001 | J158: 1.168089025 | K158: 3.504267076 | L158: 48.73426858 | M158: 41.72573442 | N158: 46.58196024 | O158: 42.62662433 | P158: 42.62662433 | Q158: 1.168089025 | R158: 4.672356101 | S158: 49.9023576 | T158: 40.5576454 | U158: 48.11367627 | V158: 41.69383211 | W158: 41.69383211 | BC158: 27190100
A159: 127 | B159: =IF(A159>$A$8,"",OFFSET(InputPriceData!B$15,$A159+$A$11,0,1,1)) -> 2022-11-09 | C159: =IF(A159>$A$8,"",OFFSET(InputPriceData!G$15,CalculationsAndCharts!$A159+$A$11,IF($C$5,8,0),1,1)) -> 19311700 | D159: =IF(A159>$A$8,"",OFFSET(InputPriceData!C$15,CalculationsAndCharts!$A159+$A$11,IF($C$5,8,0),1,1)) -> 44.509998 | E159: =IF(A159>$A$8,"",OFFSET(InputPriceData!D$15,CalculationsAndCharts!$A159+$A$11,IF($C$5,8,0),1,1)) -> 44.720001 | F159: =IF(A159>$A$8,"",OFFSET(InputPriceData!E$15,CalculationsAndCharts!$A159+$A$11,IF($C$5,8,0),1,1)) -> 43.889999 | G159: =IF(A159>$A$8,"",OFFSET(InputPriceData!F$15,CalculationsAndCharts!$A159+$A$11,IF($C$5,8,0),1,1)) -> 43.91 | H159: 44.305 | I159: 0.830002 | J159: 1.00544192 | K159: 3.01632576 | L159: 47.32132576 | M159: 41.28867424 | N159: 46.58196024 | O159: 42.62662433 | P159: 42.62662433 | Q159: 1.00544192 | R159: 4.02176768 | S159: 48.32676768 | T159: 40.28323232 | U159: 48.11367627 | V159: 41.69383211 | W159: 41.69383211 | BD159: 19311700
A160: 128 | B160: =IF(A160>$A$8,"",OFFSET(InputPriceData!B$15,$A160+$A$11,0,1,1)) -> 2022-11-08 | C160: =IF(A160>$A$8,"",OFFSET(InputPriceData!G$15,CalculationsAndCharts!$A160+$A$11,IF($C$5,8,0),1,1)) -> 17503100 | D160: =IF(A160>$A$8,"",OFFSET(InputPriceData!C$15,CalculationsAndCharts!$A160+$A$11,IF($C$5,8,0),1,1)) -> 44.689999 | E160: =IF(A160>$A$8,"",OFFSET(InputPriceData!D$15,CalculationsAndCharts!$A160+$A$11,IF($C$5,8,0),1,1)) -> 45.349998 | F160: =IF(A160>$A$8,"",OFFSET(InputPriceData!E$15,CalculationsAndCharts!$A160+$A$11,IF($C$5,8,0),1,1)) -> 44.18 | G160: =IF(A160>$A$8,"",OFFSET(InputPriceData!F$15,CalculationsAndCharts!$A160+$A$11,IF($C$5,8,0),1,1)) -> 44.610001 | H160: 44.764999 | I160: 1.169998 | J160: 1.044428569 | K160: 3.133285706 | L160: 47.89828471 | M160: 41.63171329 | N160: 46.58196024 | O160: 42.62662433 | P160: 42.62662433 | Q160: 1.044428569 | R160: 4.177714275 | S160: 48.94271328 | T160: 40.58728472 | U160: 48.11367627 | V160: 41.69383211 | W160: 41.69383211 | BC160: 17503100
A161: 129 | B161: =IF(A161>$A$8,"",OFFSET(InputPriceData!B$15,$A161+$A$11,0,1,1)) -> 2022-11-07 | C161: =IF(A161>$A$8,"",OFFSET(InputPriceData!G$15,CalculationsAndCharts!$A161+$A$11,IF($C$5,8,0),1,1)) -> 21383000 | D161: =IF(A161>$A$8,"",OFFSET(InputPriceData!C$15,CalculationsAndCharts!$A161+$A$11,IF($C$5,8,0),1,1)) -> 44.830002 | E161: =IF(A161>$A$8,"",OFFSET(InputPriceData!D$15,CalculationsAndCharts!$A161+$A$11,IF($C$5,8,0),1,1)) -> 44.98 | F161: =IF(A161>$A$8,"",OFFSET(InputPriceData!E$15,CalculationsAndCharts!$A161+$A$11,IF($C$5,8,0),1,1)) -> 44.41 | G161: =IF(A161>$A$8,"",OFFSET(InputPriceData!F$15,CalculationsAndCharts!$A161+$A$11,IF($C$5,8,0),1,1)) -> 44.549999 | H161: 44.695 | I161: 0.57 | J161: 1.016524251 | K161: 3.049572752 | L161: 47.74457275 | M161: 41.64542725 | N161: 46.58196024 | O161: 42.62662433 | P161: 42.62662433 | Q161: 1.016524251 | R161: 4.066097003 | S161: 48.761097 | T161: 40.628903 | U161: 48.11367627 | V161: 41.69383211 | W161: 41.69383211 | BC161: 21383000
A162: 130 | B162: =IF(A162>$A$8,"",OFFSET(InputPriceData!B$15,$A162+$A$11,0,1,1)) -> 2022-11-04 | C162: =IF(A162>$A$8,"",OFFSET(InputPriceData!G$15,CalculationsAndCharts!$A162+$A$11,IF($C$5,8,0),1,1)) -> 19648700 | D162: =IF(A162>$A$8,"",OFFSET(InputPriceData!C$15,CalculationsAndCharts!$A162+$A$11,IF($C$5,8,0),1,1)) -> 44.5 | E162: =IF(A162>$A$8,"",OFFSET(InputPriceData!D$15,CalculationsAndCharts!$A162+$A$11,IF($C$5,8,0),1,1)) -> 45.080002 | F162: =IF(A162>$A$8,"",OFFSET(InputPriceData!E$15,CalculationsAndCharts!$A162+$A$11,IF($C$5,8,0),1,1)) -> 43.830002 | G162: =IF(A162>$A$8,"",OFFSET(InputPriceData!F$15,CalculationsAndCharts!$A162+$A$11,IF($C$5,8,0),1,1)) -> 44.52 | H162: =IF($A163>$A$8,NA(),(E162+F162)/2) -> 44.455002 | I162: =IF(A162>$I$30,NA(),MAX(E162-F162,ABS(E162-G163),ABS(F162-G163))) -> 1.25 | J162: =IF(A162>$J$30,NA(),IF(A162=$J$30,AVERAGE(OFFSET(I162,0,0,$A$17,1)),$C$17*(I162-J163)+J163)) -> 1.115751862 | K162: =IF(A162>$J$30,NA(),J162*$A$18) -> 3.347255586 | L162: =IF(A162>$J$30,NA(),H162+K162) -> 47.80225759 | M162: =IF(A162>$J$30,NA(),H162-K162) -> 41.10774641 | N162: =IF($A162>$N$30,NA(),IF($A162=$N$30,L162,IF(OR(L162<N163,$G163>N163),L162,N163))) -> 46.58196024 | O162: =IF($A162>$N$30,NA(),IF($A162=$N$30,M162,IF(OR(M162>O163,$G163<O163),M162,O163))) -> 42.62662433 | P162: =IF($A162>$P$30,NA(),IF($A162=$P$30,N162,IF(P163=N163,IF($G162<=N162,N162,O162),IF(P163=O163,IF($G162>=O162,O162,N162),N162)))) -> 42.62662433 | Q162: =IF($A162>Q$30,NA(),IF($A162=Q$30,AVERAGE(OFFSET($I162,0,0,$A$21,1)),$C$21*($I162-Q163)+Q163)) -> 1.115751862 | R162: =IF($A162>$Q$30,NA(),Q162*$A$22) -> 4.463007448 | S162: =IF($A162>$Q$30,NA(),$H162+R162) -> 48.91800945 | T162: =IF($A162>$Q$30,NA(),$H162-R162) -> 39.99199455 | U162: =IF($A162>$U$30,NA(),IF($A162=$U$30,S162,IF(OR(S162<U163,$G163>U163),S162,U163))) -> 48.11367627 | V162: =IF($A162>$U$30,NA(),IF($A162=$U$30,T162,IF(OR(T162>V163,$G163<V163),T162,V163))) -> 41.69383211 | W162: =IF($A162>$W$30,NA(),IF($A162=$W$30,U162,IF(W163=U163,IF($G162<=U162,U162,V162),IF(W163=V163,IF($G162>=V162,V162,U162),U162)))) -> 41.69383211 | BC162: 19648700
A163: 131 | B163: =IF(A163>$A$8,"",OFFSET(InputPriceData!B$15,$A163+$A$11,0,1,1)) -> 2022-11-03 | C163: =IF(A163>$A$8,"",OFFSET(InputPriceData!G$15,CalculationsAndCharts!$A163+$A$11,IF($C$5,8,0),1,1)) -> 17895600 | D163: =IF(A163>$A$8,"",OFFSET(InputPriceData!C$15,CalculationsAndCharts!$A163+$A$11,IF($C$5,8,0),1,1)) -> 44.029999 | E163: =IF(A163>$A$8,"",OFFSET(InputPriceData!D$15,CalculationsAndCharts!$A163+$A$11,IF($C$5,8,0),1,1)) -> 44.150002 | F163: =IF(A163>$A$8,"",OFFSET(InputPriceData!E$15,CalculationsAndCharts!$A163+$A$11,IF($C$5,8,0),1,1)) -> 43.389999 | G163: =IF(A163>$A$8,"",OFFSET(InputPriceData!F$15,CalculationsAndCharts!$A163+$A$11,IF($C$5,8,0),1,1)) -> 43.849998 | H163: 43.7700005 | I163: 1.180001 | J163: 1.085918942 | K163: 3.257756827 | L163: 47.02775733 | M163: 40.51224367 | N163: 46.58196024 | O163: 42.62662433 | P163: 42.62662433 | Q163: 1.085918942 | R163: 4.34367577 | S163: 48.11367627 | T163: 39.42632473 | U163: 48.11367627 | V163: 41.69383211 | W163: 41.69383211 | BD163: 17895600
A164: 132 | B164: =IF(A164>$A$8,"",OFFSET(InputPriceData!B$15,$A164+$A$11,0,1,1)) -> 2022-11-02 | C164: =IF(A164>$A$8,"",OFFSET(InputPriceData!G$15,CalculationsAndCharts!$A164+$A$11,IF($C$5,8,0),1,1)) -> 15308800 | D164: =IF(A164>$A$8,"",OFFSET(InputPriceData!C$15,CalculationsAndCharts!$A164+$A$11,IF($C$5,8,0),1,1)) -> 45.470001 | E164: =IF(A164>$A$8,"",OFFSET(InputPriceData!D$15,CalculationsAndCharts!$A164+$A$11,IF($C$5,8,0),1,1)) -> 46.209999 | F164: =IF(A164>$A$8,"",OFFSET(InputPriceData!E$15,CalculationsAndCharts!$A164+$A$11,IF($C$5,8,0),1,1)) -> 44.549999 | G164: =IF(A164>$A$8,"",OFFSET(InputPriceData!F$15,CalculationsAndCharts!$A164+$A$11,IF($C$5,8,0),1,1)) -> 44.57 | H164: 45.379999 | I164: 1.66 | J164: 1.065011819 | K164: 3.195035456 | L164: 48.57503446 | M164: 42.18496354 | N164: 46.58196024 | O164: 42.62662433 | P164: 42.62662433 | Q164: 1.065011819 | R164: 4.260047274 | S164: 49.64004627 | T164: 41.11995173 | U164: 48.23668503 | V164: 41.69383211 | W164: 41.69383211 | BD164: 15308800
A165: 133 | B165: =IF(A165>$A$8,"",OFFSET(InputPriceData!B$15,$A165+$A$11,0,1,1)) -> 2022-11-01 | C165: =IF(A165>$A$8,"",OFFSET(InputPriceData!G$15,CalculationsAndCharts!$A165+$A$11,IF($C$5,8,0),1,1)) -> 12088700 | D165: =IF(A165>$A$8,"",OFFSET(InputPriceData!C$15,CalculationsAndCharts!$A165+$A$11,IF($C$5,8,0),1,1)) -> 45.580002 | E165: =IF(A165>$A$8,"",OFFSET(InputPriceData!D$15,CalculationsAndCharts!$A165+$A$11,IF($C$5,8,0),1,1)) -> 45.790001 | F165: =IF(A165>$A$8,"",OFFSET(InputPriceData!E$15,CalculationsAndCharts!$A165+$A$11,IF($C$5,8,0),1,1)) -> 45.060001 | G165: =IF(A165>$A$8,"",OFFSET(InputPriceData!F$15,CalculationsAndCharts!$A165+$A$11,IF($C$5,8,0),1,1)) -> 45.459999 | H165: 45.425001 | I165: 0.73 | J165: 0.9327922226 | K165: 2.798376668 | L165: 48.22337767 | M165: 42.62662433 | N165: 46.58196024 | O165: 42.62662433 | P165: 42.62662433 | Q165: 0.9327922226 | R165: 3.731168891 | S165: 49.15616989 | T165: 41.69383211 | U165: 48.23668503 | V165: 41.69383211 | W165: 41.69383211 | BC165: 12088700
A166: 134 | B166: =IF(A166>$A$8,"",OFFSET(InputPriceData!B$15,$A166+$A$11,0,1,1)) -> 2022-10-31 | C166: =IF(A166>$A$8,"",OFFSET(InputPriceData!G$15,CalculationsAndCharts!$A166+$A$11,IF($C$5,8,0),1,1)) -> 17793700 | D166: =IF(A166>$A$8,"",OFFSET(InputPriceData!C$15,CalculationsAndCharts!$A166+$A$11,IF($C$5,8,0),1,1)) -> 45.310001 | E166: =IF(A166>$A$8,"",OFFSET(InputPriceData!D$15,CalculationsAndCharts!$A166+$A$11,IF($C$5,8,0),1,1)) -> 45.639999 | F166: =IF(A166>$A$8,"",OFFSET(InputPriceData!E$15,CalculationsAndCharts!$A166+$A$11,IF($C$5,8,0),1,1)) -> 45.060001 | G166: =IF(A166>$A$8,"",OFFSET(InputPriceData!F$15,CalculationsAndCharts!$A166+$A$11,IF($C$5,8,0),1,1)) -> 45.43 | H166: 45.35 | I166: 0.579998 | J166: 0.977857161 | K166: 2.933571483 | L166: 48.28357148 | M166: 42.41642852 | N166: 46.58196024 | O166: 42.41642852 | P166: 42.41642852 | Q166: 0.977857161 | R166: 3.911428644 | S166: 49.26142864 | T166: 41.43857136 | U166: 48.23668503 | V166: 41.43857136 | W166: 41.43857136 | BD166: 17793700
A167: 135 | B167: =IF(A167>$A$8,"",OFFSET(InputPriceData!B$15,$A167+$A$11,0,1,1)) -> 2022-10-28 | C167: =IF(A167>$A$8,"",OFFSET(InputPriceData!G$15,CalculationsAndCharts!$A167+$A$11,IF($C$5,8,0),1,1)) -> 17978300 | D167: =IF(A167>$A$8,"",OFFSET(InputPriceData!C$15,CalculationsAndCharts!$A167+$A$11,IF($C$5,8,0),1,1)) -> 44.689999 | E167: =IF(A167>$A$8,"",OFFSET(InputPriceData!D$15,CalculationsAndCharts!$A167+$A$11,IF($C$5,8,0),1,1)) -> 45.709999 | F167: =IF(A167>$A$8,"",OFFSET(InputPriceData!E$15,CalculationsAndCharts!$A167+$A$11,IF($C$5,8,0),1,1)) -> 44.650002 | G167: =IF(A167>$A$8,"",OFFSET(InputPriceData!F$15,CalculationsAndCharts!$A167+$A$11,IF($C$5,8,0),1,1)) -> 45.639999 | H167: 45.1800005 | I167: 1.290001 | J167: 1.066270308 | K167: 3.198810924 | L167: 48.37881142 | M167: 41.98118958 | N167: 46.58196024 | O167: 41.98118958 | P167: 41.98118958 | Q167: 1.066270308 | R167: 4.265081232 | S167: 49.44508173 | T167: 40.91491927 | U167: 48.23668503 | V167: 40.91491927 | W167: 40.91491927 | BC167: 17978300
A168: 136 | B168: =IF(A168>$A$8,"",OFFSET(InputPriceData!B$15,$A168+$A$11,0,1,1)) -> 2022-10-27 | C168: =IF(A168>$A$8,"",OFFSET(InputPriceData!G$15,CalculationsAndCharts!$A168+$A$11,IF($C$5,8,0),1,1)) -> 18102500 | D168: =IF(A168>$A$8,"",OFFSET(InputPriceData!C$15,CalculationsAndCharts!$A168+$A$11,IF($C$5,8,0),1,1)) -> 44.77 | E168: =IF(A168>$A$8,"",OFFSET(InputPriceData!D$15,CalculationsAndCharts!$A168+$A$11,IF($C$5,8,0),1,1)) -> 45.09 | F168: =IF(A168>$A$8,"",OFFSET(InputPriceData!E$15,CalculationsAndCharts!$A168+$A$11,IF($C$5,8,0),1,1)) -> 44.360001 | G168: =IF(A168>$A$8,"",OFFSET(InputPriceData!F$15,CalculationsAndCharts!$A168+$A$11,IF($C$5,8,0),1,1)) -> 44.419998 | H168: 44.7250005 | I168: 0.729999 | J168: 1.016552376 | K168: 3.049657129 | L168: 47.77465763 | M168: 41.67534337 | N168: 46.58196024 | O168: 41.67534337 | P168: 41.67534337 | Q168: 1.016552376 | R168: 4.066209505 | S168: 48.79121001 | T168: 40.65879099 | U168: 48.23668503 | V168: 40.65879099 | W168: 40.65879099 | BC168: 18102500
A169: 137 | B169: =IF(A169>$A$8,"",OFFSET(InputPriceData!B$15,$A169+$A$11,0,1,1)) -> 2022-10-26 | C169: =IF(A169>$A$8,"",OFFSET(InputPriceData!G$15,CalculationsAndCharts!$A169+$A$11,IF($C$5,8,0),1,1)) -> 20051000 | D169: =IF(A169>$A$8,"",OFFSET(InputPriceData!C$15,CalculationsAndCharts!$A169+$A$11,IF($C$5,8,0),1,1)) -> 44.93 | E169: =IF(A169>$A$8,"",OFFSET(InputPriceData!D$15,CalculationsAndCharts!$A169+$A$11,IF($C$5,8,0),1,1)) -> 45.23 | F169: =IF(A169>$A$8,"",OFFSET(InputPriceData!E$15,CalculationsAndCharts!$A169+$A$11,IF($C$5,8,0),1,1)) -> 44.279999 | G169: =IF(A169>$A$8,"",OFFSET(InputPriceData!F$15,CalculationsAndCharts!$A169+$A$11,IF($C$5,8,0),1,1)) -> 44.380001 | H169: 44.7549995 | I169: 0.950001 | J169: 1.080230904 | K169: 3.240692713 | L169: 47.99569221 | M169: 41.51430679 | N169: 46.58196024 | O169: 41.51430679 | P169: 41.51430679 | Q169: 1.080230904 | R169: 4.320923617 | S169: 49.07592312 | T169: 40.43407588 | U169: 48.23668503 | V169: 40.43407588 | W169: 40.43407588 | BC169: 20051000
A170: 138 | B170: =IF(A170>$A$8,"",OFFSET(InputPriceData!B$15,$A170+$A$11,0,1,1)) -> 2022-10-25 | C170: =IF(A170>$A$8,"",OFFSET(InputPriceData!G$15,CalculationsAndCharts!$A170+$A$11,IF($C$5,8,0),1,1)) -> 19165200 | D170: =IF(A170>$A$8,"",OFFSET(InputPriceData!C$15,CalculationsAndCharts!$A170+$A$11,IF($C$5,8,0),1,1)) -> 43.34 | E170: =IF(A170>$A$8,"",OFFSET(InputPriceData!D$15,CalculationsAndCharts!$A170+$A$11,IF($C$5,8,0),1,1)) -> 44.400002 | F170: =IF(A170>$A$8,"",OFFSET(InputPriceData!E$15,CalculationsAndCharts!$A170+$A$11,IF($C$5,8,0),1,1)) -> 43.200001 | G170: =IF(A170>$A$8,"",OFFSET(InputPriceData!F$15,CalculationsAndCharts!$A170+$A$11,IF($C$5,8,0),1,1)) -> 44.360001 | H170: 43.8000015 | I170: 1.200001 | J170: 1.109170883 | K170: 3.327512649 | L170: 47.12751415 | M170: 40.47248885 | N170: 46.58196024 | O170: 40.47248885 | P170: 40.47248885 | Q170: 1.109170883 | R170: 4.436683532 | S170: 48.23668503 | T170: 39.36331797 | U170: 48.23668503 | V170: 39.36331797 | W170: 39.36331797 | BC170: 19165200
A171: 139 | B171: =IF(A171>$A$8,"",OFFSET(InputPriceData!B$15,$A171+$A$11,0,1,1)) -> 2022-10-24 | C171: =IF(A171>$A$8,"",OFFSET(InputPriceData!G$15,CalculationsAndCharts!$A171+$A$11,IF($C$5,8,0),1,1)) -> 18785300 | D171: =IF(A171>$A$8,"",OFFSET(InputPriceData!C$15,CalculationsAndCharts!$A171+$A$11,IF($C$5,8,0),1,1)) -> 43.119999 | E171: =IF(A171>$A$8,"",OFFSET(InputPriceData!D$15,CalculationsAndCharts!$A171+$A$11,IF($C$5,8,0),1,1)) -> 43.73 | F171: =IF(A171>$A$8,"",OFFSET(InputPriceData!E$15,CalculationsAndCharts!$A171+$A$11,IF($C$5,8,0),1,1)) -> 42.900002 | G171: =IF(A171>$A$8,"",OFFSET(InputPriceData!F$15,CalculationsAndCharts!$A171+$A$11,IF($C$5,8,0),1,1)) -> 43.540001 | H171: 43.315001 | I171: 0.930001 | J171: 1.088986413 | K171: 3.266959238 | L171: 46.58196024 | M171: 40.04804176 | N171: 46.58196024 | O171: 40.04804176 | P171: 40.04804176 | Q171: 1.088986413 | R171: 4.355945651 | S171: 47.67094665 | T171: 38.95905535 | U171: 43.39550836 | V171: 38.95905535 | W171: 38.95905535 | BC171: 18785300
A172: 140 | B172: =IF(A172>$A$8,"",OFFSET(InputPriceData!B$15,$A172+$A$11,0,1,1)) -> 2022-10-21 | C172: =IF(A172>$A$8,"",OFFSET(InputPriceData!G$15,CalculationsAndCharts!$A172+$A$11,IF($C$5,8,0),1,1)) -> 25035000 | D172: =IF(A172>$A$8,"",OFFSET(InputPriceData!C$15,CalculationsAndCharts!$A172+$A$11,IF($C$5,8,0),1,1)) -> 41.849998 | E172: =IF(A172>$A$8,"",OFFSET(InputPriceData!D$15,CalculationsAndCharts!$A172+$A$11,IF($C$5,8,0),1,1)) -> 42.970001 | F172: =IF(A172>$A$8,"",OFFSET(InputPriceData!E$15,CalculationsAndCharts!$A172+$A$11,IF($C$5,8,0),1,1)) -> 41.810001 | G172: =IF(A172>$A$8,"",OFFSET(InputPriceData!F$15,CalculationsAndCharts!$A172+$A$11,IF($C$5,8,0),1,1)) -> 42.799999 | H172: 42.390001 | I172: 1.260002 | J172: 1.124316504 | K172: 3.372949513 | L172: 45.76295051 | M172: 39.01705149 | N172: 42.4353814 | O172: 39.01705149 | P172: 39.01705149 | Q172: 1.124316504 | R172: 4.497266018 | S172: 46.88726702 | T172: 37.89273498 | U172: 43.39550836 | V172: 38.13328906 | W172: 43.39550836 | BC172: 25035000
A173: 141 | B173: =IF(A173>$A$8,"",OFFSET(InputPriceData!B$15,$A173+$A$11,0,1,1)) -> 2022-10-20 | C173: =IF(A173>$A$8,"",OFFSET(InputPriceData!G$15,CalculationsAndCharts!$A173+$A$11,IF($C$5,8,0),1,1)) -> 16830500 | D173: =IF(A173>$A$8,"",OFFSET(InputPriceData!C$15,CalculationsAndCharts!$A173+$A$11,IF($C$5,8,0),1,1)) -> 41.560001 | E173: =IF(A173>$A$8,"",OFFSET(InputPriceData!D$15,CalculationsAndCharts!$A173+$A$11,IF($C$5,8,0),1,1)) -> 42.619999 | F173: =IF(A173>$A$8,"",OFFSET(InputPriceData!E$15,CalculationsAndCharts!$A173+$A$11,IF($C$5,8,0),1,1)) -> 41.459999 | G173: =IF(A173>$A$8,"",OFFSET(InputPriceData!F$15,CalculationsAndCharts!$A173+$A$11,IF($C$5,8,0),1,1)) -> 41.709999 | H173: 42.039999 | I173: 1.16 | J173: 1.094164172 | K173: 3.282492516 | L173: 45.32249152 | M173: 38.75750648 | N173: 42.4353814 | O173: 38.827333 | P173: 42.4353814 | Q173: 1.094164172 | R173: 4.376656688 | S173: 46.41665569 | T173: 37.66334231 | U173: 43.39550836 | V173: 38.13328906 | W173: 43.39550836 | BC173: =IF(G173>=G174,C173,NA()) ->  | BD173: =IF(G173<G174,C173,NA()) -> 16830500
A174: 142 | B174: =IF(A174>$A$8,"",OFFSET(InputPriceData!B$15,$A174+$A$11,0,1,1)) -> 2022-10-19 | C174: =IF(A174>$A$8,"",OFFSET(InputPriceData!G$15,CalculationsAndCharts!$A174+$A$11,IF($C$5,8,0),1,1)) -> 19071700 | D174: =IF(A174>$A$8,"",OFFSET(InputPriceData!C$15,CalculationsAndCharts!$A174+$A$11,IF($C$5,8,0),1,1)) -> 41.630001 | E174: =IF(A174>$A$8,"",OFFSET(InputPriceData!D$15,CalculationsAndCharts!$A174+$A$11,IF($C$5,8,0),1,1)) -> 42.240002 | F174: =IF(A174>$A$8,"",OFFSET(InputPriceData!E$15,CalculationsAndCharts!$A174+$A$11,IF($C$5,8,0),1,1)) -> 41.470001 | G174: =IF(A174>$A$8,"",OFFSET(InputPriceData!F$15,CalculationsAndCharts!$A174+$A$11,IF($C$5,8,0),1,1)) -> 41.880001 | H174: 41.8550015 | I174: 0.770001 | J174: 1.079533988 | K174: 3.238601964 | L174: 45.09360346 | M174: 38.61639954 | N174: 42.4353814 | O174: 38.827333 | P174: 42.4353814 | Q174: 1.079533988 | R174: 4.318135952 | S174: 46.17313745 | T174: 37.53686555 | U174: 43.39550836 | V174: 38.13328906 | W174: 43.39550836 | BC174: 19071700
A175: 143 | B175: =IF(A175>$A$8,"",OFFSET(InputPriceData!B$15,$A175+$A$11,0,1,1)) -> 2022-10-18 | C175: =IF(A175>$A$8,"",OFFSET(InputPriceData!G$15,CalculationsAndCharts!$A175+$A$11,IF($C$5,8,0),1,1)) -> 18223300 | D175: =IF(A175>$A$8,"",OFFSET(InputPriceData!C$15,CalculationsAndCharts!$A175+$A$11,IF($C$5,8,0),1,1)) -> 41.919998 | E175: =IF(A175>$A$8,"",OFFSET(InputPriceData!D$15,CalculationsAndCharts!$A175+$A$11,IF($C$5,8,0),1,1)) -> 42.220001 | F175: =IF(A175>$A$8,"",OFFSET(InputPriceData!E$15,CalculationsAndCharts!$A175+$A$11,IF($C$5,8,0),1,1)) -> 41.259998 | G175: =IF(A175>$A$8,"",OFFSET(InputPriceData!F$15,CalculationsAndCharts!$A175+$A$11,IF($C$5,8,0),1,1)) -> 41.790001 | H175: 41.7399995 | I175: 0.960003 | J175: 1.148319097 | K175: 3.44495729 | L175: 45.18495679 | M175: 38.29504221 | N175: 42.4353814 | O175: 38.827333 | P175: 42.4353814 | Q175: 1.148319097 | R175: 4.593276386 | S175: 46.33327589 | T175: 37.14672311 | U175: 43.39550836 | V175: 38.13328906 | W175: 43.39550836 | BC175: 18223300
A176: 144 | B176: =IF(A176>$A$8,"",OFFSET(InputPriceData!B$15,$A176+$A$11,0,1,1)) -> 2022-10-17 | C176: =IF(A176>$A$8,"",OFFSET(InputPriceData!G$15,CalculationsAndCharts!$A176+$A$11,IF($C$5,8,0),1,1)) -> 27845200 | D176: =IF(A176>$A$8,"",OFFSET(InputPriceData!C$15,CalculationsAndCharts!$A176+$A$11,IF($C$5,8,0),1,1)) -> 41.040001 | E176: =IF(A176>$A$8,"",OFFSET(InputPriceData!D$15,CalculationsAndCharts!$A176+$A$11,IF($C$5,8,0),1,1)) -> 41.529999 | F176: =IF(A176>$A$8,"",OFFSET(InputPriceData!E$15,CalculationsAndCharts!$A176+$A$11,IF($C$5,8,0),1,1)) -> 40.950001 | G176: =IF(A176>$A$8,"",OFFSET(InputPriceData!F$15,CalculationsAndCharts!$A176+$A$11,IF($C$5,8,0),1,1)) -> 41.299999 | H176: 41.24 | I176: 1.329998 | J176: 1.190167118 | K176: 3.570501354 | L176: 44.81050135 | M176: 37.66949865 | N176: 42.4353814 | O176: 38.827333 | P176: 42.4353814 | Q176: 1.190167118 | R176: 4.760668472 | S176: 46.00066847 | T176: 36.47933153 | U176: 43.39550836 | V176: 38.13328906 | W176: 43.39550836 | BC176: 27845200
A177: 145 | B177: =IF(A177>$A$8,"",OFFSET(InputPriceData!B$15,$A177+$A$11,0,1,1)) -> 2022-10-14 | C177: =IF(A177>$A$8,"",OFFSET(InputPriceData!G$15,CalculationsAndCharts!$A177+$A$11,IF($C$5,8,0),1,1)) -> 19571000 | D177: =IF(A177>$A$8,"",OFFSET(InputPriceData!C$15,CalculationsAndCharts!$A177+$A$11,IF($C$5,8,0),1,1)) -> 40.84 | E177: =IF(A177>$A$8,"",OFFSET(InputPriceData!D$15,CalculationsAndCharts!$A177+$A$11,IF($C$5,8,0),1,1)) -> 40.959999 | F177: =IF(A177>$A$8,"",OFFSET(InputPriceData!E$15,CalculationsAndCharts!$A177+$A$11,IF($C$5,8,0),1,1)) -> 39.919998 | G177: =IF(A177>$A$8,"",OFFSET(InputPriceData!F$15,CalculationsAndCharts!$A177+$A$11,IF($C$5,8,0),1,1)) -> 40.200001 | H177: 40.4399985 | I177: 1.040001 | J177: 1.159093589 | K177: 3.477280766 | L177: 43.91727927 | M177: 36.96271773 | N177: 42.4353814 | O177: 38.827333 | P177: 42.4353814 | Q177: 1.159093589 | R177: 4.636374354 | S177: 45.07637285 | T177: 35.80362415 | U177: 43.39550836 | V177: 38.13328906 | W177: 43.39550836 | BD177: 19571000
A178: 146 | B178: =IF(A178>$A$8,"",OFFSET(InputPriceData!B$15,$A178+$A$11,0,1,1)) -> 2022-10-13 | C178: =IF(A178>$A$8,"",OFFSET(InputPriceData!G$15,CalculationsAndCharts!$A178+$A$11,IF($C$5,8,0),1,1)) -> 26328300 | D178: =IF(A178>$A$8,"",OFFSET(InputPriceData!C$15,CalculationsAndCharts!$A178+$A$11,IF($C$5,8,0),1,1)) -> 39.029999 | E178: =IF(A178>$A$8,"",OFFSET(InputPriceData!D$15,CalculationsAndCharts!$A178+$A$11,IF($C$5,8,0),1,1)) -> 40.799999 | F178: =IF(A178>$A$8,"",OFFSET(InputPriceData!E$15,CalculationsAndCharts!$A178+$A$11,IF($C$5,8,0),1,1)) -> 38.599998 | G178: =IF(A178>$A$8,"",OFFSET(InputPriceData!F$15,CalculationsAndCharts!$A178+$A$11,IF($C$5,8,0),1,1)) -> 40.610001 | H178: 39.6999985 | I178: 2.200001 | J178: 1.185558608 | K178: 3.556675825 | L178: 43.25667432 | M178: 36.14332268 | N178: 42.4353814 | O178: 38.827333 | P178: 42.4353814 | Q178: 1.185558608 | R178: 4.742234433 | S178: 44.44223293 | T178: 34.95776407 | U178: 43.39550836 | V178: 38.13328906 | W178: 43.39550836 | BC178: 26328300
A179: 147 | B179: =IF(A179>$A$8,"",OFFSET(InputPriceData!B$15,$A179+$A$11,0,1,1)) -> 2022-10-12 | C179: =IF(A179>$A$8,"",OFFSET(InputPriceData!G$15,CalculationsAndCharts!$A179+$A$11,IF($C$5,8,0),1,1)) -> 17279900 | D179: =IF(A179>$A$8,"",OFFSET(InputPriceData!C$15,CalculationsAndCharts!$A179+$A$11,IF($C$5,8,0),1,1)) -> 39.700001 | E179: =IF(A179>$A$8,"",OFFSET(InputPriceData!D$15,CalculationsAndCharts!$A179+$A$11,IF($C$5,8,0),1,1)) -> 39.860001 | F179: =IF(A179>$A$8,"",OFFSET(InputPriceData!E$15,CalculationsAndCharts!$A179+$A$11,IF($C$5,8,0),1,1)) -> 39.25 | G179: =IF(A179>$A$8,"",OFFSET(InputPriceData!F$15,CalculationsAndCharts!$A179+$A$11,IF($C$5,8,0),1,1)) -> 39.27 | H179: 39.5550005 | I179: 0.610001 | J179: 0.9601269657 | K179: 2.880380897 | L179: 42.4353814 | M179: 36.6746196 | N179: 42.4353814 | O179: 38.827333 | P179: 42.4353814 | Q179: 0.9601269657 | R179: 3.840507863 | S179: 43.39550836 | T179: 35.71449264 | U179: 43.39550836 | V179: 38.13328906 | W179: 43.39550836 | BD179: 17279900
A180: 148 | B180: =IF(A180>$A$8,"",OFFSET(InputPriceData!B$15,$A180+$A$11,0,1,1)) -> 2022-10-11 | C180: =IF(A180>$A$8,"",OFFSET(InputPriceData!G$15,CalculationsAndCharts!$A180+$A$11,IF($C$5,8,0),1,1)) -> 19386400 | D180: =IF(A180>$A$8,"",OFFSET(InputPriceData!C$15,CalculationsAndCharts!$A180+$A$11,IF($C$5,8,0),1,1)) -> 39.810001 | E180: =IF(A180>$A$8,"",OFFSET(InputPriceData!D$15,CalculationsAndCharts!$A180+$A$11,IF($C$5,8,0),1,1)) -> 40.110001 | F180: =IF(A180>$A$8,"",OFFSET(InputPriceData!E$15,CalculationsAndCharts!$A180+$A$11,IF($C$5,8,0),1,1)) -> 39.27 | G180: =IF(A180>$A$8,"",OFFSET(InputPriceData!F$15,CalculationsAndCharts!$A180+$A$11,IF($C$5,8,0),1,1)) -> 39.580002 | H180: 39.6900005 | I180: 0.840001 | J180: 1.037932736 | K180: 3.113798208 | L180: 42.80379871 | M180: 36.57620229 | N180: 42.80379871 | O180: 38.827333 | P180: 42.80379871 | Q180: 1.037932736 | R180: 4.151730943 | S180: 43.84173144 | T180: 35.53826956 | U180: 43.84173144 | V180: 38.13328906 | W180: 43.84173144 | BD180: 19386400
A181: 149 | B181: =IF(A181>$A$8,"",OFFSET(InputPriceData!B$15,$A181+$A$11,0,1,1)) -> 2022-10-10 | C181: =IF(A181>$A$8,"",OFFSET(InputPriceData!G$15,CalculationsAndCharts!$A181+$A$11,IF($C$5,8,0),1,1)) -> 16628400 | D181: =IF(A181>$A$8,"",OFFSET(InputPriceData!C$15,CalculationsAndCharts!$A181+$A$11,IF($C$5,8,0),1,1)) -> 40.630001 | E181: =IF(A181>$A$8,"",OFFSET(InputPriceData!D$15,CalculationsAndCharts!$A181+$A$11,IF($C$5,8,0),1,1)) -> 40.810001 | F181: =IF(A181>$A$8,"",OFFSET(InputPriceData!E$15,CalculationsAndCharts!$A181+$A$11,IF($C$5,8,0),1,1)) -> 39.599998 | G181: =IF(A181>$A$8,"",OFFSET(InputPriceData!F$15,CalculationsAndCharts!$A181+$A$11,IF($C$5,8,0),1,1)) -> 39.889999 | H181: 40.2049995 | I181: 1.210003 | J181: 1.081917566 | K181: 3.245752698 | L181: 43.4507522 | M181: 36.9592468 | N181: 43.4507522 | O181: 38.827333 | P181: 43.4507522 | Q181: 1.081917566 | R181: 4.327670264 | S181: 44.53266976 | T181: 35.87732924 | U181: 44.50616981 | V181: 38.13328906 | W181: 44.50616981 | BD181: 16628400
A182: 150 | B182: =IF(A182>$A$8,"",OFFSET(InputPriceData!B$15,$A182+$A$11,0,1,1)) -> 2022-10-07 | C182: =IF(A182>$A$8,"",OFFSET(InputPriceData!G$15,CalculationsAndCharts!$A182+$A$11,IF($C$5,8,0),1,1)) -> 19055400 | D182: =IF(A182>$A$8,"",OFFSET(InputPriceData!C$15,CalculationsAndCharts!$A182+$A$11,IF($C$5,8,0),1,1)) -> 41.25 | E182: =IF(A182>$A$8,"",OFFSET(InputPriceData!D$15,CalculationsAndCharts!$A182+$A$11,IF($C$5,8,0),1,1)) -> 41.25 | F182: =IF(A182>$A$8,"",OFFSET(InputPriceData!E$15,CalculationsAndCharts!$A182+$A$11,IF($C$5,8,0),1,1)) -> 40.080002 | G182: =IF(A182>$A$8,"",OFFSET(InputPriceData!F$15,CalculationsAndCharts!$A182+$A$11,IF($C$5,8,0),1,1)) -> 40.27 | H182: 40.665001 | I182: 1.439998 | J182: 1.053454136 | K182: 3.160362409 | L182: 43.82536341 | M182: 37.50463859 | N182: 43.55398941 | O182: 38.827333 | P182: 43.55398941 | Q182: 1.053454136 | R182: 4.213816545 | S182: 44.87881755 | T182: 36.45118445 | U182: 44.50616981 | V182: 38.13328906 | W182: 44.50616981 | BD182: 19055400
A183: 151 | B183: =IF(A183>$A$8,"",OFFSET(InputPriceData!B$15,$A183+$A$11,0,1,1)) -> 2022-10-06 | C183: =IF(A183>$A$8,"",OFFSET(InputPriceData!G$15,CalculationsAndCharts!$A183+$A$11,IF($C$5,8,0),1,1)) -> 18198800 | D183: =IF(A183>$A$8,"",OFFSET(InputPriceData!C$15,CalculationsAndCharts!$A183+$A$11,IF($C$5,8,0),1,1)) -> 41.650002 | E183: =IF(A183>$A$8,"",OFFSET(InputPriceData!D$15,CalculationsAndCharts!$A183+$A$11,IF($C$5,8,0),1,1)) -> 42.09 | F183: =IF(A183>$A$8,"",OFFSET(InputPriceData!E$15,CalculationsAndCharts!$A183+$A$11,IF($C$5,8,0),1,1)) -> 41.369999 | G183: =IF(A183>$A$8,"",OFFSET(InputPriceData!F$15,CalculationsAndCharts!$A183+$A$11,IF($C$5,8,0),1,1)) -> 41.52 | H183: 41.7299995 | I183: 0.720001 | J183: 0.9675554999 | K183: 2.9026665 | L183: 44.632666 | M183: 38.827333 | N183: 43.55398941 | O183: 38.827333 | P183: 43.55398941 | Q183: 0.9675554999 | R183: 3.870221999 | S183: 45.6002215 | T183: 37.8597775 | U183: 44.50616981 | V183: 38.13328906 | W183: 44.50616981 | BD183: 18198800
A184: 152 | B184: =IF(A184>$A$8,"",OFFSET(InputPriceData!B$15,$A184+$A$11,0,1,1)) -> 2022-10-05 | C184: =IF(A184>$A$8,"",OFFSET(InputPriceData!G$15,CalculationsAndCharts!$A184+$A$11,IF($C$5,8,0),1,1)) -> 14289700 | D184: =IF(A184>$A$8,"",OFFSET(InputPriceData!C$15,CalculationsAndCharts!$A184+$A$11,IF($C$5,8,0),1,1)) -> 41.59 | E184: =IF(A184>$A$8,"",OFFSET(InputPriceData!D$15,CalculationsAndCharts!$A184+$A$11,IF($C$5,8,0),1,1)) -> 42.25 | F184: =IF(A184>$A$8,"",OFFSET(InputPriceData!E$15,CalculationsAndCharts!$A184+$A$11,IF($C$5,8,0),1,1)) -> 41.400002 | G184: =IF(A184>$A$8,"",OFFSET(InputPriceData!F$15,CalculationsAndCharts!$A184+$A$11,IF($C$5,8,0),1,1)) -> 41.990002 | H184: 41.825001 | I184: 0.849998 | J184: 1.022567611 | K184: 3.067702833 | L184: 44.89270383 | M184: 38.75729817 | N184: 43.55398941 | O184: 38.75729817 | P184: 43.55398941 | Q184: 1.022567611 | R184: 4.090270444 | S184: 45.91527144 | T184: 37.73473056 | U184: 44.50616981 | V184: 38.13328906 | W184: 44.50616981 | BC184: 14289700
A185: 153 | B185: =IF(A185>$A$8,"",OFFSET(InputPriceData!B$15,$A185+$A$11,0,1,1)) -> 2022-10-04 | C185: =IF(A185>$A$8,"",OFFSET(InputPriceData!G$15,CalculationsAndCharts!$A185+$A$11,IF($C$5,8,0),1,1)) -> 22889400 | D185: =IF(A185>$A$8,"",OFFSET(InputPriceData!C$15,CalculationsAndCharts!$A185+$A$11,IF($C$5,8,0),1,1)) -> 41.560001 | E185: =IF(A185>$A$8,"",OFFSET(InputPriceData!D$15,CalculationsAndCharts!$A185+$A$11,IF($C$5,8,0),1,1)) -> 42.040001 | F185: =IF(A185>$A$8,"",OFFSET(InputPriceData!E$15,CalculationsAndCharts!$A185+$A$11,IF($C$5,8,0),1,1)) -> 41.389999 | G185: =IF(A185>$A$8,"",OFFSET(InputPriceData!F$15,CalculationsAndCharts!$A185+$A$11,IF($C$5,8,0),1,1)) -> 41.82 | H185: 41.715 | I185: 0.75 | J185: 1.060916413 | K185: 3.18274924 | L185: 44.89774924 | M185: 38.53225076 | N185: 43.55398941 | O185: 38.53225076 | P185: 43.55398941 | Q185: 1.060916413 | R185: 4.243665654 | S185: 45.95866565 | T185: 37.47133435 | U185: 44.50616981 | V185: 38.13328906 | W185: 44.50616981 | BC185: 22889400
A186: 154 | B186: =IF(A186>$A$8,"",OFFSET(InputPriceData!B$15,$A186+$A$11,0,1,1)) -> 2022-10-03 | C186: =IF(A186>$A$8,"",OFFSET(InputPriceData!G$15,CalculationsAndCharts!$A186+$A$11,IF($C$5,8,0),1,1)) -> 22203600 | D186: =IF(A186>$A$8,"",OFFSET(InputPriceData!C$15,CalculationsAndCharts!$A186+$A$11,IF($C$5,8,0),1,1)) -> 40.669998 | E186: =IF(A186>$A$8,"",OFFSET(InputPriceData!D$15,CalculationsAndCharts!$A186+$A$11,IF($C$5,8,0),1,1)) -> 41.529999 | F186: =IF(A186>$A$8,"",OFFSET(InputPriceData!E$15,CalculationsAndCharts!$A186+$A$11,IF($C$5,8,0),1,1)) -> 40.470001 | G186: =IF(A186>$A$8,"",OFFSET(InputPriceData!F$15,CalculationsAndCharts!$A186+$A$11,IF($C$5,8,0),1,1)) -> 41.290001 | H186: 41 | I186: 1.529999 | J186: 1.13000895 | K186: 3.390026849 | L186: 44.39002685 | M186: 37.60997315 | N186: 43.55398941 | O186: 37.60997315 | P186: 43.55398941 | Q186: 1.13000895 | R186: 4.520035799 | S186: 45.5200358 | T186: 36.4799642 | U186: 44.50616981 | V186: 38.13328906 | W186: 44.50616981 | BC186: 22203600
A187: 155 | B187: =IF(A187>$A$8,"",OFFSET(InputPriceData!B$15,$A187+$A$11,0,1,1)) -> 2022-09-30 | C187: =IF(A187>$A$8,"",OFFSET(InputPriceData!G$15,CalculationsAndCharts!$A187+$A$11,IF($C$5,8,0),1,1)) -> 27989900 | D187: =IF(A187>$A$8,"",OFFSET(InputPriceData!C$15,CalculationsAndCharts!$A187+$A$11,IF($C$5,8,0),1,1)) -> 40.66 | E187: =IF(A187>$A$8,"",OFFSET(InputPriceData!D$15,CalculationsAndCharts!$A187+$A$11,IF($C$5,8,0),1,1)) -> 41.040001 | F187: =IF(A187>$A$8,"",OFFSET(InputPriceData!E$15,CalculationsAndCharts!$A187+$A$11,IF($C$5,8,0),1,1)) -> 39.959999 | G187: =IF(A187>$A$8,"",OFFSET(InputPriceData!F$15,CalculationsAndCharts!$A187+$A$11,IF($C$5,8,0),1,1)) -> 40 | H187: 40.5 | I187: 1.080002 | J187: 1.041122272 | K187: 3.123366816 | L187: 43.62336682 | M187: 37.37663318 | N187: 43.55398941 | O187: 40.27396166 | P187: 43.55398941 | Q187: 1.041122272 | R187: 4.164489087 | S187: 44.66448909 | T187: 36.33551091 | U187: 44.50616981 | V187: 38.13328906 | W187: 44.50616981 | BD187: 27989900
A188: 156 | B188: =IF(A188>$A$8,"",OFFSET(InputPriceData!B$15,$A188+$A$11,0,1,1)) -> 2022-09-29 | C188: =IF(A188>$A$8,"",OFFSET(InputPriceData!G$15,CalculationsAndCharts!$A188+$A$11,IF($C$5,8,0),1,1)) -> 19496400 | D188: =IF(A188>$A$8,"",OFFSET(InputPriceData!C$15,CalculationsAndCharts!$A188+$A$11,IF($C$5,8,0),1,1)) -> 41.049999 | E188: =IF(A188>$A$8,"",OFFSET(InputPriceData!D$15,CalculationsAndCharts!$A188+$A$11,IF($C$5,8,0),1,1)) -> 41.099998 | F188: =IF(A188>$A$8,"",OFFSET(InputPriceData!E$15,CalculationsAndCharts!$A188+$A$11,IF($C$5,8,0),1,1)) -> 40.150002 | G188: =IF(A188>$A$8,"",OFFSET(InputPriceData!F$15,CalculationsAndCharts!$A188+$A$11,IF($C$5,8,0),1,1)) -> 40.57 | H188: 40.625 | I188: 1.189998 | J188: 1.032482332 | K188: 3.097446997 | L188: 43.722447 | M188: 37.527553 | N188: 43.55398941 | O188: 40.27396166 | P188: 43.55398941 | Q188: 1.032482332 | R188: 4.129929329 | S188: 44.75492933 | T188: 36.49507067 | U188: 44.50616981 | V188: 38.13328906 | W188: 44.50616981 | BD188: 19496400
A189: 157 | B189: =IF(A189>$A$8,"",OFFSET(InputPriceData!B$15,$A189+$A$11,0,1,1)) -> 2022-09-28 | C189: =IF(A189>$A$8,"",OFFSET(InputPriceData!G$15,CalculationsAndCharts!$A189+$A$11,IF($C$5,8,0),1,1)) -> 23217700 | D189: =IF(A189>$A$8,"",OFFSET(InputPriceData!C$15,CalculationsAndCharts!$A189+$A$11,IF($C$5,8,0),1,1)) -> 40.849998 | E189: =IF(A189>$A$8,"",OFFSET(InputPriceData!D$15,CalculationsAndCharts!$A189+$A$11,IF($C$5,8,0),1,1)) -> 41.57 | F189: =IF(A189>$A$8,"",OFFSET(InputPriceData!E$15,CalculationsAndCharts!$A189+$A$11,IF($C$5,8,0),1,1)) -> 40.59 | G189: =IF(A189>$A$8,"",OFFSET(InputPriceData!F$15,CalculationsAndCharts!$A189+$A$11,IF($C$5,8,0),1,1)) -> 41.34 | H189: 41.08 | I189: 1.05 | J189: 0.9974788505 | K189: 2.992436552 | L189: 44.07243655 | M189: 38.08756345 | N189: 43.55398941 | O189: 40.27396166 | P189: 43.55398941 | Q189: 0.9974788505 | R189: 3.989915402 | S189: 45.0699154 | T189: 37.0900846 | U189: 44.50616981 | V189: 38.13328906 | W189: 44.50616981 | BC189: 23217700
A190: 158 | B190: =IF(A190>$A$8,"",OFFSET(InputPriceData!B$15,$A190+$A$11,0,1,1)) -> 2022-09-27 | C190: =IF(A190>$A$8,"",OFFSET(InputPriceData!G$15,CalculationsAndCharts!$A190+$A$11,IF($C$5,8,0),1,1)) -> 15027900 | D190: =IF(A190>$A$8,"",OFFSET(InputPriceData!C$15,CalculationsAndCharts!$A190+$A$11,IF($C$5,8,0),1,1)) -> 41.139999 | E190: =IF(A190>$A$8,"",OFFSET(InputPriceData!D$15,CalculationsAndCharts!$A190+$A$11,IF($C$5,8,0),1,1)) -> 41.459999 | F190: =IF(A190>$A$8,"",OFFSET(InputPriceData!E$15,CalculationsAndCharts!$A190+$A$11,IF($C$5,8,0),1,1)) -> 40.23 | G190: =IF(A190>$A$8,"",OFFSET(InputPriceData!F$15,CalculationsAndCharts!$A190+$A$11,IF($C$5,8,0),1,1)) -> 40.52 | H190: 40.8449995 | I190: 1.229999 | J190: 0.985807484 | K190: 2.957422452 | L190: 43.80242195 | M190: 37.88757705 | N190: 43.55398941 | O190: 40.27396166 | P190: 43.55398941 | Q190: 0.985807484 | R190: 3.943229936 | S190: 44.78822944 | T190: 36.90176956 | U190: 44.50616981 | V190: 38.13328906 | W190: 44.50616981 | BD190: 15027900
A191: 159 | B191: =IF(A191>$A$8,"",OFFSET(InputPriceData!B$15,$A191+$A$11,0,1,1)) -> 2022-09-26 | C191: =IF(A191>$A$8,"",OFFSET(InputPriceData!G$15,CalculationsAndCharts!$A191+$A$11,IF($C$5,8,0),1,1)) -> 22694800 | D191: =IF(A191>$A$8,"",OFFSET(InputPriceData!C$15,CalculationsAndCharts!$A191+$A$11,IF($C$5,8,0),1,1)) -> 40.66 | E191: =IF(A191>$A$8,"",OFFSET(InputPriceData!D$15,CalculationsAndCharts!$A191+$A$11,IF($C$5,8,0),1,1)) -> 41.189999 | F191: =IF(A191>$A$8,"",OFFSET(InputPriceData!E$15,CalculationsAndCharts!$A191+$A$11,IF($C$5,8,0),1,1)) -> 40.369999 | G191: =IF(A191>$A$8,"",OFFSET(InputPriceData!F$15,CalculationsAndCharts!$A191+$A$11,IF($C$5,8,0),1,1)) -> 40.580002 | H191: 40.779999 | I191: 0.82 | J191: 0.9315427026 | K191: 2.794628108 | L191: 43.57462711 | M191: 37.98537089 | N191: 43.55398941 | O191: 40.27396166 | P191: 43.55398941 | Q191: 0.9315427026 | R191: 3.726170811 | S191: 44.50616981 | T191: 37.05382819 | U191: 44.50616981 | V191: 38.13328906 | W191: 44.50616981 | BD191: 22694800
A192: 160 | B192: =IF(A192>$A$8,"",OFFSET(InputPriceData!B$15,$A192+$A$11,0,1,1)) -> 2022-09-23 | C192: =IF(A192>$A$8,"",OFFSET(InputPriceData!G$15,CalculationsAndCharts!$A192+$A$11,IF($C$5,8,0),1,1)) -> 19067700 | D192: =IF(A192>$A$8,"",OFFSET(InputPriceData!C$15,CalculationsAndCharts!$A192+$A$11,IF($C$5,8,0),1,1)) -> 41.25 | E192: =IF(A192>$A$8,"",OFFSET(InputPriceData!D$15,CalculationsAndCharts!$A192+$A$11,IF($C$5,8,0),1,1)) -> 41.25 | F192: =IF(A192>$A$8,"",OFFSET(InputPriceData!E$15,CalculationsAndCharts!$A192+$A$11,IF($C$5,8,0),1,1)) -> 40.119999 | G192: =IF(A192>$A$8,"",OFFSET(InputPriceData!F$15,CalculationsAndCharts!$A192+$A$11,IF($C$5,8,0),1,1)) -> 40.66 | H192: 40.6849995 | I192: 1.130001 | J192: 0.9563299699 | K192: 2.86898991 | L192: 43.55398941 | M192: 37.81600959 | N192: 43.55398941 | O192: 40.27396166 | P192: 43.55398941 | Q192: 0.9563299699 | R192: 3.82531988 | S192: 44.51031938 | T192: 36.85967962 | U192: 44.51031938 | V192: 38.13328906 | W192: 44.51031938 | BD192: 19067700
A193: 161 | B193: =IF(A193>$A$8,"",OFFSET(InputPriceData!B$15,$A193+$A$11,0,1,1)) -> 2022-09-22 | C193: =IF(A193>$A$8,"",OFFSET(InputPriceData!G$15,CalculationsAndCharts!$A193+$A$11,IF($C$5,8,0),1,1)) -> 16691000 | D193: =IF(A193>$A$8,"",OFFSET(InputPriceData!C$15,CalculationsAndCharts!$A193+$A$11,IF($C$5,8,0),1,1)) -> 41.34 | E193: =IF(A193>$A$8,"",OFFSET(InputPriceData!D$15,CalculationsAndCharts!$A193+$A$11,IF($C$5,8,0),1,1)) -> 41.549999 | F193: =IF(A193>$A$8,"",OFFSET(InputPriceData!E$15,CalculationsAndCharts!$A193+$A$11,IF($C$5,8,0),1,1)) -> 41.139999 | G193: =IF(A193>$A$8,"",OFFSET(InputPriceData!F$15,CalculationsAndCharts!$A193+$A$11,IF($C$5,8,0),1,1)) -> 41.150002 | H193: 41.344999 | I193: 0.450001 | J193: 0.9177364076 | K193: 2.753209223 | L193: 44.09820822 | M193: 38.59178978 | N193: 44.09820822 | O193: 40.27396166 | P193: 44.09820822 | Q193: 0.9177364076 | R193: 3.670945631 | S193: 45.01594463 | T193: 37.67405337 | U193: 45.01594463 | V193: 38.13328906 | W193: 45.01594463 | BD193: 16691000
A194: 162 | B194: =IF(A194>$A$8,"",OFFSET(InputPriceData!B$15,$A194+$A$11,0,1,1)) -> 2022-09-21 | C194: =IF(A194>$A$8,"",OFFSET(InputPriceData!G$15,CalculationsAndCharts!$A194+$A$11,IF($C$5,8,0),1,1)) -> 21415900 | D194: =IF(A194>$A$8,"",OFFSET(InputPriceData!C$15,CalculationsAndCharts!$A194+$A$11,IF($C$5,8,0),1,1)) -> 42.32 | E194: =IF(A194>$A$8,"",OFFSET(InputPriceData!D$15,CalculationsAndCharts!$A194+$A$11,IF($C$5,8,0),1,1)) -> 42.869999 | F194: =IF(A194>$A$8,"",OFFSET(InputPriceData!E$15,CalculationsAndCharts!$A194+$A$11,IF($C$5,8,0),1,1)) -> 41.57 | G194: =IF(A194>$A$8,"",OFFSET(InputPriceData!F$15,CalculationsAndCharts!$A194+$A$11,IF($C$5,8,0),1,1)) -> 41.59 | H194: 42.2199995 | I194: 1.299999 | J194: 1.021677609 | K194: 3.065032828 | L194: 45.28503233 | M194: 39.15496667 | N194: 45.28503233 | O194: 40.27396166 | P194: 45.28503233 | Q194: 1.021677609 | R194: 4.086710437 | S194: 46.30670994 | T194: 38.13328906 | U194: 46.30670994 | V194: 38.13328906 | W194: 46.30670994 | BD194: 21415900
A195: 163 | B195: =IF(A195>$A$8,"",OFFSET(InputPriceData!B$15,$A195+$A$11,0,1,1)) -> 2022-09-20 | C195: =IF(A195>$A$8,"",OFFSET(InputPriceData!G$15,CalculationsAndCharts!$A195+$A$11,IF($C$5,8,0),1,1)) -> 16813900 | D195: =IF(A195>$A$8,"",OFFSET(InputPriceData!C$15,CalculationsAndCharts!$A195+$A$11,IF($C$5,8,0),1,1)) -> 43.009998 | E195: =IF(A195>$A$8,"",OFFSET(InputPriceData!D$15,CalculationsAndCharts!$A195+$A$11,IF($C$5,8,0),1,1)) -> 43.02 | F195: =IF(A195>$A$8,"",OFFSET(InputPriceData!E$15,CalculationsAndCharts!$A195+$A$11,IF($C$5,8,0),1,1)) -> 42.259998 | G195: =IF(A195>$A$8,"",OFFSET(InputPriceData!F$15,CalculationsAndCharts!$A195+$A$11,IF($C$5,8,0),1,1)) -> 42.580002 | H195: 42.639999 | I195: 1.040001 | J195: 0.9598284114 | K195: 2.879485234 | L195: 45.51948423 | M195: 39.76051377 | N195: 45.51948423 | O195: 40.27396166 | P195: 45.51948423 | Q195: 0.9598284114 | R195: 3.839313646 | S195: 46.47931265 | T195: 38.80068535 | U195: 46.47931265 | V195: 42.74605693 | W195: 46.47931265 | BD195: 16813900
A196: 164 | B196: =IF(A196>$A$8,"",OFFSET(InputPriceData!B$15,$A196+$A$11,0,1,1)) -> 2022-09-19 | C196: =IF(A196>$A$8,"",OFFSET(InputPriceData!G$15,CalculationsAndCharts!$A196+$A$11,IF($C$5,8,0),1,1)) -> 13667500 | D196: =IF(A196>$A$8,"",OFFSET(InputPriceData!C$15,CalculationsAndCharts!$A196+$A$11,IF($C$5,8,0),1,1)) -> 42.900002 | E196: =IF(A196>$A$8,"",OFFSET(InputPriceData!D$15,CalculationsAndCharts!$A196+$A$11,IF($C$5,8,0),1,1)) -> 43.439999 | F196: =IF(A196>$A$8,"",OFFSET(InputPriceData!E$15,CalculationsAndCharts!$A196+$A$11,IF($C$5,8,0),1,1)) -> 42.759998 | G196: =IF(A196>$A$8,"",OFFSET(InputPriceData!F$15,CalculationsAndCharts!$A196+$A$11,IF($C$5,8,0),1,1)) -> 43.299999 | H196: 43.0999985 | I196: 0.680001 | J196: 0.9420122806 | K196: 2.826036842 | L196: 45.92603534 | M196: 40.27396166 | N196: 45.92603534 | O196: 40.27396166 | P196: 45.92603534 | Q196: 0.9420122806 | R196: 3.768049122 | S196: 46.86804762 | T196: 39.33194938 | U196: 46.86804762 | V196: 42.74605693 | W196: 46.86804762 | BC196: 13667500
A197: 165 | B197: =IF(A197>$A$8,"",OFFSET(InputPriceData!B$15,$A197+$A$11,0,1,1)) -> 2022-09-16 | C197: =IF(A197>$A$8,"",OFFSET(InputPriceData!G$15,CalculationsAndCharts!$A197+$A$11,IF($C$5,8,0),1,1)) -> 32696100 | D197: =IF(A197>$A$8,"",OFFSET(InputPriceData!C$15,CalculationsAndCharts!$A197+$A$11,IF($C$5,8,0),1,1)) -> 43.110001 | E197: =IF(A197>$A$8,"",OFFSET(InputPriceData!D$15,CalculationsAndCharts!$A197+$A$11,IF($C$5,8,0),1,1)) -> 43.580002 | F197: =IF(A197>$A$8,"",OFFSET(InputPriceData!E$15,CalculationsAndCharts!$A197+$A$11,IF($C$5,8,0),1,1)) -> 42.790001 | G197: =IF(A197>$A$8,"",OFFSET(InputPriceData!F$15,CalculationsAndCharts!$A197+$A$11,IF($C$5,8,0),1,1)) -> 43.299999 | H197: 43.1850015 | I197: 0.790001 | J197: 1.00023701 | K197: 3.000711029 | L197: 46.18571253 | M197: 40.18429047 | N197: 46.18571253 | O197: 40.18429047 | P197: 46.18571253 | Q197: 1.00023701 | R197: 4.000948039 | S197: 47.18594954 | T197: 39.18405346 | U197: 47.18594954 | V197: 42.74605693 | W197: 47.18594954 | BC197: 32696100
A198: 166 | B198: =IF(A198>$A$8,"",OFFSET(InputPriceData!B$15,$A198+$A$11,0,1,1)) -> 2022-09-15 | C198: =IF(A198>$A$8,"",OFFSET(InputPriceData!G$15,CalculationsAndCharts!$A198+$A$11,IF($C$5,8,0),1,1)) -> 18148600 | D198: =IF(A198>$A$8,"",OFFSET(InputPriceData!C$15,CalculationsAndCharts!$A198+$A$11,IF($C$5,8,0),1,1)) -> 43.810001 | E198: =IF(A198>$A$8,"",OFFSET(InputPriceData!D$15,CalculationsAndCharts!$A198+$A$11,IF($C$5,8,0),1,1)) -> 43.869999 | F198: =IF(A198>$A$8,"",OFFSET(InputPriceData!E$15,CalculationsAndCharts!$A198+$A$11,IF($C$5,8,0),1,1)) -> 43.09 | G198: =IF(A198>$A$8,"",OFFSET(InputPriceData!F$15,CalculationsAndCharts!$A198+$A$11,IF($C$5,8,0),1,1)) -> 43.290001 | H198: 43.4799995 | I198: 0.869999 | J198: 1.046956123 | K198: 3.140868369 | L198: 46.62086787 | M198: 40.33913113 | N198: 46.62086787 | O198: 43.64704282 | P198: 46.62086787 | Q198: 1.046956123 | R198: 4.187824492 | S198: 47.66782399 | T198: 39.29217501 | U198: 47.66782399 | V198: 42.74605693 | W198: 47.66782399 | BD198: 18148600
A199: 167 | B199: =IF(A199>$A$8,"",OFFSET(InputPriceData!B$15,$A199+$A$11,0,1,1)) -> 2022-09-14 | C199: =IF(A199>$A$8,"",OFFSET(InputPriceData!G$15,CalculationsAndCharts!$A199+$A$11,IF($C$5,8,0),1,1)) -> 27551500 | D199: =IF(A199>$A$8,"",OFFSET(InputPriceData!C$15,CalculationsAndCharts!$A199+$A$11,IF($C$5,8,0),1,1)) -> 44.040001 | E199: =IF(A199>$A$8,"",OFFSET(InputPriceData!D$15,CalculationsAndCharts!$A199+$A$11,IF($C$5,8,0),1,1)) -> 44.27 | F199: =IF(A199>$A$8,"",OFFSET(InputPriceData!E$15,CalculationsAndCharts!$A199+$A$11,IF($C$5,8,0),1,1)) -> 43.560001 | G199: =IF(A199>$A$8,"",OFFSET(InputPriceData!F$15,CalculationsAndCharts!$A199+$A$11,IF($C$5,8,0),1,1)) -> 43.959999 | H199: 43.9150005 | I199: 0.709999 | J199: 1.086279928 | K199: 3.258839784 | L199: 47.17384028 | M199: 40.65616072 | N199: 47.17384028 | O199: 43.64704282 | P199: 47.17384028 | Q199: 1.086279928 | R199: 4.345119712 | S199: 48.26012021 | T199: 39.56988079 | U199: 48.26012021 | V199: 42.74605693 | W199: 48.26012021 | BD199: 27551500
A200: 168 | B200: =IF(A200>$A$8,"",OFFSET(InputPriceData!B$15,$A200+$A$11,0,1,1)) -> 2022-09-13 | C200: =IF(A200>$A$8,"",OFFSET(InputPriceData!G$15,CalculationsAndCharts!$A200+$A$11,IF($C$5,8,0),1,1)) -> 23028600 | D200: =IF(A200>$A$8,"",OFFSET(InputPriceData!C$15,CalculationsAndCharts!$A200+$A$11,IF($C$5,8,0),1,1)) -> 45.720001 | E200: =IF(A200>$A$8,"",OFFSET(InputPriceData!D$15,CalculationsAndCharts!$A200+$A$11,IF($C$5,8,0),1,1)) -> 45.91 | F200: =IF(A200>$A$8,"",OFFSET(InputPriceData!E$15,CalculationsAndCharts!$A200+$A$11,IF($C$5,8,0),1,1)) -> 44.02 | G200: =IF(A200>$A$8,"",OFFSET(InputPriceData!F$15,CalculationsAndCharts!$A200+$A$11,IF($C$5,8,0),1,1)) -> 44.110001 | H200: 44.965 | I200: 2.380002 | J200: 1.169897912 | K200: 3.509693736 | L200: 48.47469374 | M200: 41.45530626 | N200: 47.49107772 | O200: 43.64704282 | P200: 47.49107772 | Q200: 1.169897912 | R200: 4.679591648 | S200: 49.64459165 | T200: 40.28540835 | U200: 48.5264368 | V200: 42.74605693 | W200: 48.5264368 | BD200: 23028600
A201: 169 | B201: =IF(A201>$A$8,"",OFFSET(InputPriceData!B$15,$A201+$A$11,0,1,1)) -> 2022-09-12 | C201: =IF(A201>$A$8,"",OFFSET(InputPriceData!G$15,CalculationsAndCharts!$A201+$A$11,IF($C$5,8,0),1,1)) -> 17923000 | D201: =IF(A201>$A$8,"",OFFSET(InputPriceData!C$15,CalculationsAndCharts!$A201+$A$11,IF($C$5,8,0),1,1)) -> 46.110001 | E201: =IF(A201>$A$8,"",OFFSET(InputPriceData!D$15,CalculationsAndCharts!$A201+$A$11,IF($C$5,8,0),1,1)) -> 46.73 | F201: =IF(A201>$A$8,"",OFFSET(InputPriceData!E$15,CalculationsAndCharts!$A201+$A$11,IF($C$5,8,0),1,1)) -> 45.970001 | G201: =IF(A201>$A$8,"",OFFSET(InputPriceData!F$15,CalculationsAndCharts!$A201+$A$11,IF($C$5,8,0),1,1)) -> 46.400002 | H201: 46.3500005 | I201: 0.96 | J201: 0.9009858924 | K201: 2.702957677 | L201: 49.05295818 | M201: 43.64704282 | N201: 47.49107772 | O201: 43.64704282 | P201: 47.49107772 | Q201: 0.9009858924 | R201: 3.60394357 | S201: 49.95394407 | T201: 42.74605693 | U201: 48.5264368 | V201: 42.74605693 | W201: 48.5264368 | BC201: 17923000
A202: 170 | B202: =IF(A202>$A$8,"",OFFSET(InputPriceData!B$15,$A202+$A$11,0,1,1)) -> 2022-09-09 | C202: =IF(A202>$A$8,"",OFFSET(InputPriceData!G$15,CalculationsAndCharts!$A202+$A$11,IF($C$5,8,0),1,1)) -> 15499300 | D202: =IF(A202>$A$8,"",OFFSET(InputPriceData!C$15,CalculationsAndCharts!$A202+$A$11,IF($C$5,8,0),1,1)) -> 45.66 | E202: =IF(A202>$A$8,"",OFFSET(InputPriceData!D$15,CalculationsAndCharts!$A202+$A$11,IF($C$5,8,0),1,1)) -> 45.889999 | F202: =IF(A202>$A$8,"",OFFSET(InputPriceData!E$15,CalculationsAndCharts!$A202+$A$11,IF($C$5,8,0),1,1)) -> 45.400002 | G202: =IF(A202>$A$8,"",OFFSET(InputPriceData!F$15,CalculationsAndCharts!$A202+$A$11,IF($C$5,8,0),1,1)) -> 45.77 | H202: 45.6450005 | I202: 0.52 | J202: 0.8878716463 | K202: 2.663614939 | L202: 48.30861544 | M202: 42.98138556 | N202: 47.49107772 | O202: 43.02783105 | P202: 47.49107772 | Q202: 0.8878716463 | R202: 3.551486585 | S202: 49.19648709 | T202: 42.09351391 | U202: 48.5264368 | V202: 42.09351391 | W202: 48.5264368 | BC202: 15499300
A203: 171 | B203: =IF(A203>$A$8,"",OFFSET(InputPriceData!B$15,$A203+$A$11,0,1,1)) -> 2022-09-08 | C203: =IF(A203>$A$8,"",OFFSET(InputPriceData!G$15,CalculationsAndCharts!$A203+$A$11,IF($C$5,8,0),1,1)) -> 14231500 | D203: =IF(A203>$A$8,"",OFFSET(InputPriceData!C$15,CalculationsAndCharts!$A203+$A$11,IF($C$5,8,0),1,1)) -> 44.759998 | E203: =IF(A203>$A$8,"",OFFSET(InputPriceData!D$15,CalculationsAndCharts!$A203+$A$11,IF($C$5,8,0),1,1)) -> 45.470001 | F203: =IF(A203>$A$8,"",OFFSET(InputPriceData!E$15,CalculationsAndCharts!$A203+$A$11,IF($C$5,8,0),1,1)) -> 44.619999 | G203: =IF(A203>$A$8,"",OFFSET(InputPriceData!F$15,CalculationsAndCharts!$A203+$A$11,IF($C$5,8,0),1,1)) -> 45.369999 | H203: 45.045 | I203: 0.850002 | J203: 0.969620901 | K203: 2.908862703 | L203: 47.9538627 | M203: 42.1361373 | N203: 47.49107772 | O203: 43.02783105 | P203: 47.49107772 | Q203: 0.969620901 | R203: 3.878483604 | S203: 48.9234836 | T203: 41.1665164 | U203: 48.5264368 | V203: 41.1665164 | W203: 48.5264368 | BC203: 14231500
A204: 172 | B204: =IF(A204>$A$8,"",OFFSET(InputPriceData!B$15,$A204+$A$11,0,1,1)) -> 2022-09-07 | C204: =IF(A204>$A$8,"",OFFSET(InputPriceData!G$15,CalculationsAndCharts!$A204+$A$11,IF($C$5,8,0),1,1)) -> 18297400 | D204: =IF(A204>$A$8,"",OFFSET(InputPriceData!C$15,CalculationsAndCharts!$A204+$A$11,IF($C$5,8,0),1,1)) -> 44.75 | E204: =IF(A204>$A$8,"",OFFSET(InputPriceData!D$15,CalculationsAndCharts!$A204+$A$11,IF($C$5,8,0),1,1)) -> 45.169998 | F204: =IF(A204>$A$8,"",OFFSET(InputPriceData!E$15,CalculationsAndCharts!$A204+$A$11,IF($C$5,8,0),1,1)) -> 44.349998 | G204: =IF(A204>$A$8,"",OFFSET(InputPriceData!F$15,CalculationsAndCharts!$A204+$A$11,IF($C$5,8,0),1,1)) -> 45.02 | H204: 44.759998 | I204: 0.82 | J204: 0.996202879 | K204: 2.988608637 | L204: 47.74860664 | M204: 41.77138936 | N204: 47.49107772 | O204: 43.02783105 | P204: 47.49107772 | Q204: 0.996202879 | R204: 3.984811516 | S204: 48.74480952 | T204: 40.77518648 | U204: 48.5264368 | V204: 40.77518648 | W204: 48.5264368 | BC204: 18297400
A205: 173 | B205: =IF(A205>$A$8,"",OFFSET(InputPriceData!B$15,$A205+$A$11,0,1,1)) -> 2022-09-06 | C205: =IF(A205>$A$8,"",OFFSET(InputPriceData!G$15,CalculationsAndCharts!$A205+$A$11,IF($C$5,8,0),1,1)) -> 14366100 | D205: =IF(A205>$A$8,"",OFFSET(InputPriceData!C$15,CalculationsAndCharts!$A205+$A$11,IF($C$5,8,0),1,1)) -> 44.66 | E205: =IF(A205>$A$8,"",OFFSET(InputPriceData!D$15,CalculationsAndCharts!$A205+$A$11,IF($C$5,8,0),1,1)) -> 44.790001 | F205: =IF(A205>$A$8,"",OFFSET(InputPriceData!E$15,CalculationsAndCharts!$A205+$A$11,IF($C$5,8,0),1,1)) -> 43.98 | G205: =IF(A205>$A$8,"",OFFSET(InputPriceData!F$15,CalculationsAndCharts!$A205+$A$11,IF($C$5,8,0),1,1)) -> 44.470001 | H205: 44.3850005 | I205: 0.810001 | J205: 1.035359074 | K205: 3.106077223 | L205: 47.49107772 | M205: 41.27892328 | N205: 47.49107772 | O205: 43.02783105 | P205: 47.49107772 | Q205: 1.035359074 | R205: 4.141436297 | S205: 48.5264368 | T205: 40.2435642 | U205: 48.5264368 | V205: 40.2435642 | W205: 48.5264368 | BD205: 14366100
... 1077 more rows

Sheet Follow
A1: Stocks and Indexes I wish to follow
A3: To ease following a stock, enter a Yahoo Finance acceptable symbol in column "A" anywhere below cell "A9".
A4: Thereafter you may doubleclick the cell containing a symbol of interest to initiate data retrieval and charting for that symbol.
A6: =COUNTA(A10:A108) -> 97
A7: Symbol
A8: To | B8: Description | C8: Last Trade as of most recent check
A9: Follow | C9: Date | D9: Time | E9: Open | F9: High | G9: Low | H9: Close | I9: Volume | J9: Change | K9: Retrieved @
A10: A | B10: Agilent Technologies, Inc. (A) -NYSE (Daily) | C10: 2022-10-07 | D10: 16:03:00 | E10: 130.449997 | F10: 130.929993 | G10: 126.959999 | H10: 127.440002 | I10: 1154700 | J10: -4.739991 | K10: 2022-10-08T20:06:52.050
A11: AA | B11: Alcoa Corporation (AA) -NYSE (Daily) | C11: 2022-10-07 | D11: 16:00:00 | E11: 39.040001 | F11: 39.355 | G11: 37.880001 | H11: 39.009998 | I11: 6270400 | J11: -0.84 | K11: 2022-10-08T20:07:08.890
A12: AAL | B12: American Airlines Group Inc. (AAL) -NasdaqGS (Daily) | C12: 2022-10-07 | D12: 16:00:00 | E12: 12.5 | F12: 12.54 | G12: 11.95 | H12: 12.18 | I12: 37269800 | J12: -0.55 | K12: 2022-10-08T20:07:23.730
A13: AAPL | B13: Apple Inc. (AAPL) -NasdaqGS (Daily) | C13: 2022-10-07 | D13: 16:00:00 | E13: 142.539993 | F13: 143.100006 | G13: 139.449997 | H13: 140.089996 | I13: 85859100 | J13: -5.339997 | K13: 2022-10-08T20:07:45.780
A14: ADM | B14: Archer-Daniels-Midland Company (ADM) -NYSE (Daily) | C14: 2022-10-07 | D14: 16:00:00 | E14: 84.980003 | F14: 86.040001 | G14: 84.330002 | H14: 85.440002 | I14: 2396100 | J14: -0.309998 | K14: 2022-10-08T20:08:02.720
A15: ADBE | B15: Adobe Inc. (ADBE) -NasdaqGS (Daily) | C15: 2022-10-07 | D15: 16:00:00 | E15: 291.359985 | F15: 293.709991 | G15: 286.829987 | H15: 288.769989 | I15: 3495300 | J15: -9.640015 | K15: 2022-10-08T20:08:17.960
A16: ALGN | B16: Align Technology, Inc. (ALGN) -NasdaqGS (Daily) | C16: 2022-10-07 | D16: 16:00:00 | E16: 217.460007 | F16: 220.089996 | G16: 210.389999 | H16: 211.580002 | I16: 779500 | J16: -10.779999 | K16: 2022-10-08T20:08:33.830
A17: AMC | B17: AMC Entertainment Holdings, Inc. (AMC) -NYSE (Daily) | C17: 2022-10-07 | D17: 16:00:00 | E17: 7.1 | F17: 7.1 | G17: 6.4 | H17: 6.53 | I17: 23363000 | J17: -0.59 | K17: 2022-10-08T20:08:50.750
A18: AMD | B18: Advanced Micro Devices, Inc. (AMD) -NasdaqGS (Daily) | C18: 2022-10-07 | D18: 16:00:00 | E18: 64.010002 | F18: 64.029999 | G18: 58.220001 | H18: 58.439999 | I18: 163577800 | J18: -9.409999 | K18: 2022-10-08T20:09:06.770
A19: AR | B19: Antero Resources Corporation (AR) -NYSE (Daily) | C19: 2022-10-07 | D19: 16:01:00 | E19: 32.290001 | F19: 33.41 | G19: 31.85 | H19: 32.32 | I19: 4245800 | J19: -0.02 | K19: 2022-10-08T20:09:24.440
A20: BA | B20: The Boeing Company (BA) -NYSE (Daily) | C20: 2023-05-10 | D20: 16:00:00 | E20: 203.139999 | F20: 203.199997 | G20: 198.25 | H20: 200.839996 | I20: 3913247 | J20: -1.040009 | K20: 2023-05-10T18:06:56.110
A21: BSX | B21: Boston Scientific Corporation (BSX) -NYSE (Daily) | C21: 2022-10-07 | D21: 16:00:00 | E21: 40.27 | F21: 40.43 | G21: 39.599998 | H21: 39.759998 | I21: 9640800 | J21: -0.890004 | K21: 2022-10-08T20:10:00.290
A22: CASY | B22: Casey's General Stores, Inc. (CASY) -NasdaqGS (Daily) | C22: 2022-10-07 | D22: 16:00:00 | E22: 202.550003 | F22: 203.470001 | G22: 199.199997 | H22: 200.179993 | I22: 250900 | J22: -3.11 | K22: 2022-10-08T20:10:21.540
A23: CAT | B23: Caterpillar Inc. (CAT) -NYSE (Daily) | C23: 2022-10-07 | D23: 16:00:00 | E23: 176.720001 | F23: 178.960007 | G23: 175.139999 | H23: 177.550003 | I23: 2757700 | J23: -1.259995 | K23: 2022-10-08T20:10:40.670
A24: COST | B24: Costco Wholesale Corporation (COST) -NasdaqGS (Daily) | C24: 2023-03-06 | D24: 16:00:00 | E24: 476.519989 | F24: 488.817413 | G24: 475.609985 | H24: 483.079987 | I24: 3005250 | J24: 7.819977 | K24: 2023-03-06T21:04:51.590
A25: CSCO | B25: Cisco Systems, Inc. (CSCO) -NasdaqGS (Daily) | C25: 2023-05-12 | D25: 16:00:00 | E25: 46.279999 | F25: 46.810001 | G25: 46.279999 | H25: 46.709999 | I25: 14094800 | J25: 0.34 | K25: 2023-05-13T17:42:07.150
A26: CVS | B26: CVS Health Corporation (CVS) -NYSE (Daily) | C26: 2022-10-07 | D26: 16:00:00 | E26: 93.18 | F26: 94 | G26: 87.129997 | H26: 88.25 | I26: 19711900 | J26: -10.330002 | K26: 2022-10-08T20:11:20.560
A27: DELL | B27: Dell Technologies Inc. (DELL) -NYSE (Daily) | C27: 2022-10-07 | D27: 16:00:00 | E27: 36.049999 | F27: 36.490002 | G27: 34.540001 | H27: 34.599998 | I27: 5613900 | J27: -2.880002 | K27: 2022-10-08T20:11:39.920
A28: DG | B28: Dollar General Corporation (DG) -NYSE (Daily) | C28: 2022-10-07 | D28: 16:04:00 | E28: 240.110001 | F28: 240.610001 | G28: 238.149994 | H28: 239.5 | I28: 1595000 | J28: -2.169998 | K28: 2022-10-08T20:11:58.850
A29: DIS | B29: The Walt Disney Company (DIS) -NYSE (Daily) | C29: 2022-10-07 | D29: 16:03:00 | E29: 98.510002 | F29: 98.800003 | G29: 96.449997 | H29: 97.160004 | I29: 7045300 | J29: -2.879997 | K29: 2022-10-08T20:12:16.860
A30: DLTR | B30: Dollar Tree, Inc. (DLTR) -NasdaqGS (Daily) | C30: 2022-10-07 | D30: 16:00:00 | E30: 142.100006 | F30: 142.869995 | G30: 139.979996 | H30: 141.949997 | I30: 3123100 | J30: -0.180008 | K30: 2022-10-08T20:12:34.510
A31: EPD | B31: Enterprise Products Partners L.P. (EPD) -NYSE (Daily) | C31: 2023-04-18 | D31: 11:05:00 | E31: 27 | F31: 27.084999 | G31: 26.93 | H31: 27.055 | I31: 801822 | J31: 0.125 | K31: 2023-04-18T11:06:02.260
A32: F | B32: Ford Motor Company (F) -NYSE (Daily) | C32: 2022-10-07 | D32: 16:03:00 | E32: 12.18 | F32: 12.3 | G32: 12 | H32: 12.2 | I32: 56437700 | J32: -0.16 | K32: 2022-10-08T20:12:53.600
A33: FAS | B33: Direxion Daily Financial Bull 3X Shares (FAS) -NYSEArca (Daily) | C33: 2022-10-07 | D33: 16:00:00 | E33: 59.529999 | F33: 59.849998 | G33: 55.689999 | H33: 56.790001 | I33: 1488400 | J33: -4.290001 | K33: 2022-10-08T20:13:13.080
A34: GSK | B34: GSK plc (GSK) -NYSE (Daily) | C34: 2022-10-07 | D34: 16:00:00 | E34: 30.190001 | F34: 30.42 | G34: 30.040001 | H34: 30.110001 | I34: 5486300 | J34: 0.110001 | K34: 2022-10-08T20:13:33.450
A35: GDX | B35: VanEck Gold Miners ETF (GDX) -NYSEArca (Daily) | C35: 2023-04-18 | D35: 11:14:00 | E35: 34.41 | F35: 35.189999 | G35: 34.389999 | H35: 34.955002 | I35: 8764787 | J35: 0.655003 | K35: 2023-04-18T11:14:52.640
A36: GILD | B36: Gilead Sciences, Inc. (GILD) -NasdaqGS (Daily) | C36: 2022-10-07 | D36: 16:00:00 | E36: 64.639999 | F36: 65.099998 | G36: 63.959999 | H36: 64.290001 | I36: 6722600 | J36: -0.659996 | K36: 2022-10-08T20:14:12.060
A37: GOOG | B37: Alphabet Inc. (GOOG) -NasdaqGS (Daily) | C37: 2022-10-07 | D37: 16:00:00 | E37: 100.650002 | F37: 101.419998 | G37: 99.209999 | H37: 99.57 | I37: 24232300 | J37: 99.57 | K37: 2022-10-08T20:14:29.790
A38: HD | B38: The Home Depot, Inc. (HD) -NYSE (Daily) | C38: 2022-10-07 | D38: 16:00:00 | E38: 287.529999 | F38: 288.630005 | G38: 282.420013 | H38: 284.320007 | I38: 2404900 | J38: -6.070008 | K38: 2022-10-08T20:14:54.380
A39: HSY | B39: The Hershey Company (HSY) -NYSE (Daily) | C39: 2023-04-18 | D39: 11:18:00 | E39: 258.850006 | F39: 259.779999 | G39: 257.970001 | H39: 258.350006 | I39: 154143 | J39: -0.679993 | K39: 2023-04-18T11:19:09.130
A40: HTLD | B40: Heartland Express, Inc. (HTLD) -NasdaqGS (Daily) | C40: 2022-10-07 | D40: 16:00:00 | E40: 14.5 | F40: 14.66 | G40: 14.26 | H40: 14.32 | I40: 596000 | J40: -0.4 | K40: 2022-10-08T20:15:33.020
A41: IBM | B41: International Business Machines Corporation (IBM) -NYSE (Daily) | C41: 2022-10-07 | D41: 16:00:00 | E41: 121.5 | F41: 121.800003 | G41: 118.07 | H41: 118.82 | I41: 4498200 | J41: -3.410003 | K41: 2022-10-08T20:15:53.020
A42: ILMN | B42: Illumina, Inc. (ILMN) -NasdaqGS (Daily) | C42: 2022-10-07 | D42: 16:00:00 | E42: 208.279999 | F42: 212.070007 | G42: 205.179993 | H42: 206.179993 | I42: 1618600 | J42: -6.540008 | K42: 2022-10-08T20:16:12.660
A43: INTC | B43: Intel Corporation (INTC) -NasdaqGS (Daily) | C43: 2023-04-18 | D43: 11:18:00 | E43: 32.43 | F43: 32.459999 | G43: 31.799999 | H43: 31.99 | I43: 6962610 | J43: -0.149999 | K43: 2023-04-18T11:18:35.600
A44: JNJ | B44: Johnson & Johnson (JNJ) -NYSE (Daily) | C44: 2022-10-07 | D44: 16:00:00 | E44: 161.770004 | F44: 162.220001 | G44: 159.169998 | H44: 160.199997 | I44: 6363000 | J44: -1.710007 | K44: 2022-10-08T20:16:52.840
A45: KO | B45: The Coca-Cola Company (KO) -NYSE (Daily) | C45: 2023-04-18 | D45: 11:12:00 | E45: 63.509998 | F45: 63.59 | G45: 63.23 | H45: 63.285 | I45: 2167705 | J45: -0.174999 | K45: 2023-04-18T11:12:39.640
A46: LOW | B46: Lowe's Companies, Inc. (LOW) -NYSE (Daily) | C46: 2023-04-18 | D46: 11:13:00 | E46: 206.279999 | F46: 208.430603 | G46: 205.559998 | H46: 207.660004 | I46: 779404 | J46: 2.660004 | K46: 2023-04-18T11:13:32.230
A47: LMT | B47: Lockheed Martin Corporation (LMT) -NYSE (Daily) | C47: 2023-04-18 | D47: 11:13:00 | E47: 499 | F47: 508.089996 | G47: 498 | H47: 502.61499 | I47: 1159148 | J47: 12.974975 | K47: 2023-04-18T11:14:17.500
A48: M | B48: Macy's, Inc. (M) -NYSE (Daily) | C48: 2022-10-07 | D48: 16:00:00 | E48: 17.110001 | F48: 17.51 | G48: 17.030001 | H48: 17.440001 | I48: 7775700 | J48: -0.09 | K48: 2022-10-08T20:18:13.160
A49: MCD | B49: McDonald's Corporation (MCD) -NYSE (Daily) | C49: 2023-04-18 | D49: 11:10:00 | E49: 289.399994 | F49: 290.549988 | G49: 289 | H49: 290.109985 | I49: 520722 | J49: 0.799987 | K49: 2023-04-18T11:11:03.160
A50: MDT | B50: Medtronic plc (MDT) -NYSE (Daily) | C50: 2022-10-07 | D50: 16:00:00 | E50: 83.910004 | F50: 84.040001 | G50: 82.010002 | H50: 82.419998 | I50: 4267900 | J50: -2 | K50: 2022-10-08T20:18:53.860
A51: META | B51: Meta Platforms, Inc. (META) -NasdaqGS (Daily) | C51: 2022-10-07 | D51: 16:00:00 | E51: 136.759995 | F51: 138.289993 | G51: 132.440002 | H51: 133.449997 | I51: 33179700 | J51: -5.62001 | K51: 2022-10-08T20:19:13.140
A52: MGM | B52: MGM Resorts International (MGM) -NYSE (Daily) | C52: 2022-10-07 | D52: 16:00:00 | E52: 32.830002 | F52: 33.139999 | G52: 32.34 | H52: 32.68 | I52: 4439700 | J52: -0.64 | K52: 2022-10-08T20:19:32.570
A53: MO | B53: Altria Group, Inc. (MO) -NYSE (Daily) | C53: 2023-04-18 | D53: 11:09:00 | E53: 45.450001 | F53: 45.700001 | G53: 45.405201 | H53: 45.615002 | I53: 1343286 | J53: 0.175003 | K53: 2023-04-18T11:10:23.550
A54: MRNA | B54: Moderna, Inc. (MRNA) -NasdaqGS (Daily) | C54: 2022-10-07 | D54: 16:00:00 | E54: 121.5 | F54: 123.360001 | G54: 118.459999 | H54: 119.32 | I54: 3149000 | J54: -5.830002 | K54: 2022-10-08T20:20:13.090
A55: MSFT | B55: Microsoft Corporation (MSFT) -NasdaqGS (Daily) | C55: 2022-10-07 | D55: 16:00:00 | E55: 240.899994 | F55: 241.320007 | G55: 233.169998 | H55: 234.240005 | I55: 37732400 | J55: -12.549988 | K55: 2022-10-08T20:20:33
A56: MU | B56: Micron Technology, Inc. (MU) -NasdaqGS (Daily) | C56: 2023-03-08 | D56: 13:53:00 | E56: 55.84 | F56: 56.490002 | G56: 55.349998 | H56: 56.48 | I56: 5740982 | J56: 0.919999 | K56: 2023-03-08T13:54:12.310
A57: NFLX | B57: Netflix, Inc. (NFLX) -NasdaqGS (Daily) | C57: 2022-10-07 | D57: 16:00:00 | E57: 235.770004 | F57: 237.330002 | G57: 224.279999 | H57: 224.75 | I57: 9784800 | J57: -15.270004 | K57: 2022-10-08T20:20:51.730
A58: NUGT | B58: Direxion Daily Gold Miners Index Bull 2X Shares (NUGT) -NYSEArca (Daily) | C58: 2023-04-18 | D58: 11:15:00 | E58: 47.110001 | F58: 49.1688 | G58: 47 | H58: 48.517601 | I58: 939091 | J58: 1.647602 | K58: 2023-04-18T11:16:03.120
A59: NVS | B59: Novartis AG (NVS) -NYSE (Daily) | C59: 2022-10-07 | D59: 16:00:00 | E59: 76.160004 | F59: 76.230003 | G59: 75.360001 | H59: 75.650002 | I59: 1517700 | J59: -0.389999 | K59: 2022-10-08T20:21:29.870
A60: NVDA | B60: NVIDIA Corporation (NVDA) -NasdaqGS (Daily) | C60: 2023-04-18 | D60: 11:17:00 | E60: 275.334991 | F60: 281.0802 | G60: 275.25 | H60: 279.100006 | I60: 30613444 | J60: 9.080017 | K60: 2023-04-18T11:17:48.710
A61: NWL | B61: Newell Brands Inc. (NWL) -NasdaqGS (Daily) | C61: 2022-10-07 | D61: 16:00:00 | E61: 14.18 | F61: 14.25 | G61: 13.89 | H61: 13.96 | I61: 2832700 | J61: -0.42 | K61: 2022-10-08T20:22:10.460
A62: PEP | B62: PepsiCo, Inc. (PEP) -NasdaqGS (Daily) | C62: 2023-05-10 | D62: 16:00:00 | E62: 194.110001 | F62: 195.580002 | G62: 192.674896 | H62: 194.270004 | I62: 3490168 | J62: 0.130005 | K62: 2023-05-10T17:54:28.790
A63: PFE | B63: Pfizer Inc. (PFE) -NYSE (Daily) | C63: 2022-10-07 | D63: 16:03:00 | E63: 43.049999 | F63: 43.049999 | G63: 41.919998 | H63: 42.32 | I63: 20093100 | J63: -0.77 | K63: 2022-10-08T20:22:31.070
A64: PRU | B64: Prudential Financial, Inc. (PRU) -NYSE (Daily) | C64: 2023-05-10 | D64: 16:00:00 | E64: 82.129997 | F64: 82.160004 | G64: 79.639999 | H64: 80.349998 | I64: 2089525 | J64: -1.150002 | K64: 2023-05-10T18:06:04.230
A65: PSA | B65: Public Storage (PSA) -NYSE (Daily) | C65: 2023-03-08 | D65: 13:52:00 | E65: 301.850006 | F65: 305.119995 | G65: 300.910004 | H65: 302.279999 | I65: 329019 | J65: -0.070007 | K65: 2023-03-08T13:53:27.260
A66: PSEC | B66: Prospect Capital Corporation (PSEC) -NasdaqGS (Daily) | C66: 2022-10-07 | D66: 16:00:00 | E66: 6.62 | F66: 6.64 | G66: 6.51 | H66: 6.53 | I66: 1109800 | J66: -0.13 | K66: 2022-10-08T20:23:11.800
A67: RPM | B67: RPM International Inc. (RPM) -NYSE (Daily) | C67: 2022-10-07 | D67: 16:00:00 | E67: 94.110001 | F67: 94.110001 | G67: 90.900002 | H67: 91.050003 | I67: 955600 | J67: -3.869995 | K67: 2022-10-08T20:23:34.870
A68: RY | B68: Royal Bank of Canada (RY) -NYSE (Daily) | C68: 2023-05-12 | D68: 16:00:00 | E68: 96.489998 | F68: 96.900002 | G68: 95.370003 | H68: 95.889999 | I68: 360600 | J68: -0.330002 | K68: 2023-05-13T16:19:51.230
A69: SCHW | B69: The Charles Schwab Corporation (SCHW) -NYSE (Daily) | C69: 2023-04-18 | D69: 11:11:00 | E69: 52.5 | F69: 53.48 | G69: 52.279999 | H69: 53.400002 | I69: 12431383 | J69: 0.630002 | K69: 2023-04-18T11:11:49.210
A70: SPR | B70: Spirit AeroSystems Holdings, Inc. (SPR) -NYSE (Daily) | C70: 2022-10-07 | D70: 16:00:00 | E70: 24.26 | F70: 24.700001 | G70: 23.559999 | H70: 24.68 | I70: 1823200 | J70: -0.06 | K70: 2022-10-08T20:24:37.430
A71: SQ | B71: Block, Inc. (SQ) -NYSE (Daily) | C71: 2022-10-07 | D71: 16:00:00 | E71: 59.860001 | F71: 60.450001 | G71: 56.889999 | H71: 57.41 | I71: 11209700 | J71: -4.52 | K71: 2022-10-08T20:24:56.170
A72: SWKS | B72: Skyworks Solutions, Inc. (SWKS) -NasdaqGS (Daily) | C72: 2022-10-07 | D72: 16:00:00 | E72: 90.18 | F72: 90.400002 | G72: 86.949997 | H72: 87.199997 | I72: 2592400 | J72: -5.410004 | K72: 2022-10-08T20:25:16.990
A73: TOL | B73: Toll Brothers, Inc. (TOL) -NYSE (Daily) | C73: 2022-10-07 | D73: 16:00:00 | E73: 45.34 | F73: 45.66 | G73: 44.330002 | H73: 44.57 | I73: 1863400 | J73: -1.52 | K73: 2022-10-08T20:25:36.490
A74: TSLA | B74: Tesla, Inc. (TSLA) -NasdaqGS (Daily) | C74: 2022-10-07 | D74: 16:00:00 | E74: 233.940002 | F74: 234.570007 | G74: 222.020004 | H74: 223.070007 | I74: 83592300 | J74: -15.059998 | K74: 2022-10-08T20:25:55.990
A75: TSN | B75: Tyson Foods, Inc. (TSN) -NYSE (Daily) | C75: 2022-12-30 | D75: 16:00:00 | E75: 61.68 | F75: 62.25 | G75: 61.450001 | H75: 62.25 | I75: 2182900 | J75: 0.459999 | K75: 2023-01-02T09:34:07.600
A76: TXN | B76: Texas Instruments Incorporated (TXN) -NasdaqGS (Daily) | C76: 2022-10-07 | D76: 16:00:00 | E76: 164.020004 | F76: 165.059998 | G76: 158.610001 | H76: 159.279999 | I76: 8305200 | J76: -7.259994 | K76: 2022-10-08T20:26:16.920
A77: UNP | B77: Union Pacific Corporation (UNP) -NYSE (Daily) | C77: 2022-10-07 | D77: 16:00:00 | E77: 196.020004 | F77: 197.160004 | G77: 193.610001 | H77: 195.619995 | I77: 2874700 | J77: -2.590012 | K77: 2022-10-08T20:26:36.270
A78: VZ | B78: Verizon Communications Inc. (VZ) -NYSE (Daily) | C78: 2023-04-18 | D78: 11:16:00 | E78: 39.470001 | F78: 39.490002 | G78: 39.100101 | H78: 39.139999 | I78: 3100726 | J78: -0.32 | K78: 2023-04-18T11:16:51.420
A79: WBA | B79: Walgreens Boots Alliance, Inc. (WBA) -NasdaqGS (Daily) | C79: 2022-10-07 | D79: 16:00:00 | E79: 32.029999 | F79: 32.07 | G79: 30.389999 | H79: 30.52 | I79: 11281000 | J79: -1.73 | K79: 2022-10-08T20:27:18.330
A80: WMT | B80: Walmart Inc. (WMT) -NYSE (Daily) | C80: 2022-10-07 | D80: 16:00:00 | E80: 131.309998 | F80: 131.649994 | G80: 128.070007 | H80: 128.559998 | I80: 5690500 | J80: -3.119995 | K80: 2022-10-08T20:27:38.680
A82: ^AEX | B82: AEX-Index (^AEX) -Amsterdam (Daily) | C82: 2022-10-07 | D82: 18:05:00 | E82: 655.869995 | F82: 660.320007 | G82: 646.809998 | H82: 647.109985 | I82: 68900 | J82: -14.27002 | K82: 2022-10-08T20:27:56.300
A83: ^AORD | B83: ALL ORDINARIES (^AORD) -ASX (Daily) | C83: 2023-03-03 | D83: 16:46:00 | E83: 7460 | F83: 7493.299805 | G83: 7460 | H83: 7484 | I83: 915646200 | J83: 24 | K83: 2023-03-05T16:26:16.030
A84: ^AXJO | B84: S&P/ASX 200 (^AXJO) -ASX (Daily) | C84: 2023-03-15 | D84: 16:44:00 | E84: 7008.899902 | F84: 7068.899902 | G84: 7008.899902 | H84: 7068.899902 | I84: 0 | J84: 60 | K84: 2023-03-15T11:43:59.040
A85: DIA | B85: SPDR Dow Jones Industrial Average ETF Trust (DIA) -NYSEArca (Daily) | C85: 2022-10-07 | D85: 16:00:00 | E85: 296.730011 | F85: 296.890015 | G85: 291.440002 | H85: 292.970001 | I85: 3026900 | J85: -6.26001 | K85: 2022-10-08T20:28:35.330
A86: ^DJI | B86: Dow Jones Industrial Average (^DJI) -DJI (Daily) | C86: 2022-10-07 | D86: 17:28:00 | E86: 29685.26953 | F86: 29685.26953 | G86: 29142.66016 | H86: 29296.78906 | I86: 367950000 | J86: -630.15039 | K86: 2022-10-08T20:28:54.910
A87: ^FTSE | B87: FTSE 100 (^FTSE) -FTSE Index (Daily) | C87: 2022-10-07 | D87: 16:35:00 | E87: 6997.299805 | F87: 7022.399902 | G87: 6960.399902 | H87: 6991.100098 | I87: 807923600 | J87: -6.199707 | K87: 2022-10-08T20:29:14.340
A88: ^GSPC | B88: S&P 500 (^GSPC) -SNP (Daily) | C88: 2023-02-10 | D88: 17:04:00 | E88: 4068.919922 | F88: 4094.360107 | G88: 4060.790039 | H88: 4090.459961 | I88: 3891520000 | J88: 8.959961 | K88: 2023-02-12T10:01:40.360
A89: ^HSI | B89: HANG SENG INDEX (^HSI) -HKSE (Daily) | C89: 2023-04-18 | D89: 16:09:00 | E89: 20643.41016 | F89: 20742.39062 | G89: 20559.08008 | H89: 20650.50977 | I89: 0 | J89: -131.939453 | K89: 2023-04-18T11:21:48.850
A90: ^MID | B90: S&P MID CAP 400 INDEX (^MID) -NYSE (Daily) | C90: 2022-10-07 | D90: 16:04:00 | E90: 2325.449951 | F90: 2325.449951 | G90: 2255.810059 | H90: 2266.889893 | I90: 0 | J90: -58.560058 | K90: 2022-10-08T20:30:12.560
A91: ^NDX | B91: NASDAQ 100 (^NDX) -Nasdaq GIDS (Daily) | C91: 2022-10-07 | D91: 17:15:00 | E91: 11272.45996 | F91: 11293.65039 | G91: 10991.66016 | H91: 11039.46973 | I91: 4634190000 | J91: -446.030273 | K91: 2022-10-08T20:30:31.220
A92: ^NYA | B92: NYSE COMPOSITE (DJ) (^NYA) -NYSE (Daily) | C92: 2022-10-07 | D92: 16:20:00 | E92: 14087.37988 | F92: 14087.37988 | G92: 13727.79004 | H92: 13798.25977 | I92: 4449660000 | J92: -289.120117 | K92: 2022-10-08T20:30:51.020
A93: ^OEX | B93: S&P 100 INDEX (^OEX) -Chicago Options (Daily) | C93: 2022-10-07 | D93: 17:28:00 | E93: 1674.359985 | F93: 1674.359985 | G93: 1634.599976 | H93: 1642.890015 | I93: 4449660000 | J93: -51.380005 | K93: 2022-10-08T20:31:10.140
A94: RSP | B94: Invesco S&P 500 Equal Weight ETF (RSP) -NYSEArca (Daily) | C94: 2022-10-07 | D94: 16:00:00 | E94: 132.009995 | F94: 132.199997 | G94: 129.389999 | H94: 130.149994 | I94: 3197700 | J94: -3.160004 | K94: 2022-10-08T20:31:31.900
A95: ^RUT | B95: Russell 2000 (^RUT) -Chicago Options (Daily) | C95: 2022-10-07 | D95: 16:30:00 | E95: 1734.650024 | F95: 1734.920044 | G95: 1694.959961 | H95: 1702.150024 | I95: 4449660000 | J95: -50.359986 | K95: 2022-10-08T20:31:50.530
A96: ^VIX | B96: CBOE Volatility Index (^VIX) -Chicago Options (Daily) | C96: 2022-10-07 | D96: 16:15:00 | E96: 30.370001 | F96: 32.02 | G96: 29.879999 | H96: 31.360001 | I96: 0 | J96: 0.840001 | K96: 2022-10-08T20:32:09.750
A97: IWM | B97: iShares Russell 2000 ETF (IWM) -NYSEArca (Daily) | C97: 2022-10-07 | D97: 16:00:00 | E97: 171.929993 | F97: 172.470001 | G97: 167.919998 | H97: 168.610001 | I97: 26504500 | J97: -5.11 | K97: 2022-10-08T20:32:29.720
A98: QQQ | B98: Invesco QQQ Trust (QQQ) -NasdaqGM (Daily) | C98: 2022-10-07 | D98: 16:00:00 | E98: 275.019989 | F98: 275.149994 | G98: 267.73999 | H98: 269.100006 | I98: 71263400 | J98: -10.660004 | K98: 2022-10-08T20:32:50.270
A99: XLE | B99: Energy Select Sector SPDR Fund (XLE) -NYSEArca (Daily) | C99: 2022-10-07 | D99: 16:00:00 | E99: 82.610001 | F99: 83.540001 | G99: 81.209999 | H99: 81.800003 | I99: 28449900 | J99: -0.639999 | K99: 2022-10-08T20:33:10.770
A100: SOXL | B100: Direxion Daily Semiconductor Bull 3X Shares (SOXL) -NYSEArca (Daily) | C100: 2022-10-07 | D100: 16:00:00 | E100: 10.18 | F100: 10.28 | G100: 9 | H100: 9.21 | I100: 134291600 | J100: -1.98 | K100: 2022-10-08T20:33:31.210
A101: SPY | B101: SPDR S&P 500 ETF Trust (SPY) -NYSEArca (Daily) | C101: 2022-10-07 | D101: 16:00:00 | E101: 368.970001 | F101: 373.290009 | G101: 360.940002 | H101: 362.790009 | I101: 107680800 | J101: -10.410003 | K101: 2022-10-08T20:33:50.980
A103: ACAD | B103: ACADIA Pharmaceuticals Inc. (ACAD) -NasdaqGS (Daily) | C103: 2022-10-07 | D103: 16:00:00 | E103: 18.219999 | F103: 18.27 | G103: 16.030001 | H103: 16.290001 | I103: 2891100 | J103: -2.339998 | K103: 2022-10-08T20:34:10.690
A104: CLDX | B104: Celldex Therapeutics, Inc. (CLDX) -NasdaqCM (Daily) | C104: 2022-10-07 | D104: 16:00:00 | E104: 28.530001 | F104: 29.16 | G104: 28.01 | H104: 28.07 | I104: 426400 | J104: -0.91 | K104: 2022-10-08T20:34:27.670
A105: ICPT | B105: Intercept Pharmaceuticals, Inc. (ICPT) -NasdaqGS (Daily) | C105: 2022-10-07 | D105: 16:00:00 | E105: 13.97 | F105: 14.06 | G105: 13.64 | H105: 13.66 | I105: 691500 | J105: -0.28 | K105: 2022-10-08T20:34:46.490
A106: INO | B106: Inovio Pharmaceuticals, Inc. (INO) -NasdaqGS (Daily) | C106: 2022-10-07 | D106: 16:00:00 | E106: 1.69 | F106: 1.7 | G106: 1.6 | H106: 1.61 | I106: 4513100 | J106: -0.13 | K106: 2022-10-08T20:35:05.980
A107: LCI | B107: Lannett Company, Inc. (LCI) -NYSE (Daily) | C107: 2022-10-07 | D107: 16:00:00 | E107: 0.48 | F107: 0.493 | G107: 0.471 | H107: 0.471 | I107: 105400 | J107: -0.011 | K107: 2022-10-08T20:35:25.780
A108: PBYI | B108: Puma Biotechnology, Inc. (PBYI) -NasdaqGS (Daily) | C108: 2022-10-07 | D108: 16:00:00 | E108: 2.47 | F108: 2.5 | G108: 2.32 | H108: 2.37 | I108: 123700 | J108: -0.15 | K108: 2022-10-08T20:35:44.300
